﻿Department family,Entity,Date of payment,Expense type,Expense area,Supplier,Transaction number,Amount in Sterling,Supplier VAT Registration Number
Department of Health,Guys and St Thomas NHS Foundation Trust,25/02/2022,(81200) Medical Surgical Supplies & Equipment,(id:42134) Pathology,GRIFOLS UK,id:14926008   ,    14000.00
Department of Health,Guys and St Thomas NHS Foundation Trust,18/02/2022,(89600) Non-Healthcare from other NHS bodies,(id:42134) Pathology,NHS BLOOD AND TRANSPLANT,id:14897414,   207668.39
Department of Health,Guys and St Thomas NHS Foundation Trust,04/02/2022,(89000) Other - Training courses and conferences,(id:4988419) TAP,UNIVERSITY OF NORTHAMPTON,id:14774420    ,    14292.00
Department of Health,Guys and St Thomas NHS Foundation Trust,18/02/2022,(84650) Establishment,(id:4988419) TAP,PULSE HEALTHCARE LIMITED,id:14922155  ,2850.00
Department of Health,Guys and St Thomas NHS Foundation Trust,18/02/2022,(83400) Office Equipment,(id:4621419) TAP,NHS SUPPLY CHAIN (MAIDSTONE),id:14813451,   5.21
Department of Health,Guys and St Thomas NHS Foundation Trust,04/02/2022,(83400) Office Equipment,(id:5354419) TAP,OXLEAS NHS FOUNDATION TRUST,id:14787930 ,    48550.25
Department of Health,Guys and St Thomas NHS Foundation Trust,04/02/2022,(83400) Office Equipment,(id:5354419) TAP,OXLEAS NHS FOUNDATION TRUST,id:14787920 ,    86205.30
Department of Health,Guys and St Thomas NHS Foundation Trust,18/02/2022,(82800) Bedding & Linen,(id:41905) TAP,NHS SUPPLY CHAIN (MAIDSTONE),id:14813451   ,  67.09
Department of Health,Guys and St Thomas NHS Foundation Trust,18/02/2022,(82600) Uniforms & Clothing,(id:41905) TAP,NHS SUPPLY CHAIN (MAIDSTONE),id:14850234    ,  61.56
Department of Health,Guys and St Thomas NHS Foundation Trust,18/02/2022,(81100) Dressings,(id:41905) TAP,NHS SUPPLY CHAIN (MAIDSTONE),id:14813451    , 106.33
Department of Health,Guys and St Thomas NHS Foundation Trust,18/02/2022,(82800) Bedding & Linen,(id:41906) TAP,NHS SUPPLY CHAIN (MAIDSTONE),id:14795733   ,  33.66
Department of Health,Guys and St Thomas NHS Foundation Trust,11/02/2022,(81200) Medical Surgical Supplies & Equipment,(id:41906) TAP,HEALTH EDGE SOLUTIONS LTD,id:14899214    , 601.61
Department of Health,Guys and St Thomas NHS Foundation Trust,18/02/2022,(82600) Uniforms & Clothing,(id:41906) TAP,NHS SUPPLY CHAIN (MAIDSTONE),id:14850234    , 145.97
Department of Health,Guys and St Thomas NHS Foundation Trust,18/02/2022,(82600) Uniforms & Clothing,(id:41906) TAP,NHS SUPPLY CHAIN (MAIDSTONE),id:14795733    ,  41.76
Department of Health,Guys and St Thomas NHS Foundation Trust,18/02/2022,(82800) Bedding & Linen,(id:41907) TAP,NHS SUPPLY CHAIN (MAIDSTONE),id:14850234   , 531.41
Department of Health,Guys and St Thomas NHS Foundation Trust,18/02/2022,(82800) Bedding & Linen,(id:41907) TAP,NHS SUPPLY CHAIN (MAIDSTONE),id:14795733   ,   9.40
Department of Health,Guys and St Thomas NHS Foundation Trust,11/02/2022,(81200) Medical Surgical Supplies & Equipment,(id:41907) TAP,VYGON (UK) LTD,id:14815838, 197.64
Department of Health,Guys and St Thomas NHS Foundation Trust,18/02/2022,(82700) Uniforms & Clothing,(id:41918) TAP,NHS SUPPLY CHAIN (MAIDSTONE),id:14850234    , 299.00
Department of Health,Guys and St Thomas NHS Foundation Trust,18/02/2022,(83400) Office Equipment,(id:41918) TAP,NHS SUPPLY CHAIN (MAIDSTONE),id:14850234  ,  43.19
Department of Health,Guys and St Thomas NHS Foundation Trust,18/02/2022,(82600) Uniforms & Clothing,(id:41916) TAP,NHS SUPPLY CHAIN (MAIDSTONE),id:14850234    ,   8.53
Department of Health,Guys and St Thomas NHS Foundation Trust,18/02/2022,(81200) Medical Surgical Supplies & Equipment,(id:41916) TAP,NHS SUPPLY CHAIN (MAIDSTONE),id:14813451 , 690.21
Department of Health,Guys and St Thomas NHS Foundation Trust,18/02/2022,(81275) Medical Surgical Supplies & Equipment,(id:4851419) TAP,NHS SUPPLY CHAIN (MAIDSTONE),id:14813451    ,  36.00
Department of Health,Guys and St Thomas NHS Foundation Trust,25/02/2022,(84600) Establishment,(id:4851419) TAP,CLARITY TRAVEL MANAGEMENT,id:14843478 ,   7.80
Department of Health,Guys and St Thomas NHS Foundation Trust,18/02/2022,(82700) Uniforms & Clothing,(id:41921) TAP,NHS SUPPLY CHAIN (MAIDSTONE),id:14795733    ,  75.92
Department of Health,Guys and St Thomas NHS Foundation Trust,18/02/2022,(81700) Lab Equipment Purchase,(id:41924) TAP,NHS SUPPLY CHAIN (MAIDSTONE),id:14850234 ,  12.97
Department of Health,Guys and St Thomas NHS Foundation Trust,18/02/2022,(82800) Bedding & Linen,(id:41924) TAP,NHS SUPPLY CHAIN (MAIDSTONE),id:14850234   ,  21.31
Department of Health,Guys and St Thomas NHS Foundation Trust,11/02/2022,(81200) Medical Surgical Supplies & Equipment,(id:41886) TAP,OLYMPUS KEYMED,id:14800134,2701.30
Department of Health,Guys and St Thomas NHS Foundation Trust,18/02/2022,(82800) Bedding & Linen,(id:41883) TAP,NHS SUPPLY CHAIN (MAIDSTONE),id:14850234   , 156.75
Department of Health,Guys and St Thomas NHS Foundation Trust,18/02/2022,(81225) Medical Surgical Supplies & Equipment,(id:41883) TAP,NHS SUPPLY CHAIN (MAIDSTONE),id:14850234 , 111.69
Department of Health,Guys and St Thomas NHS Foundation Trust,25/02/2022,(81100) Dressings,(id:41883) TAP,ELIS UK LIMITED,id:14952314  ,1108.90
Department of Health,Guys and St Thomas NHS Foundation Trust,18/02/2022,(81200) Medical Surgical Supplies & Equipment,(id:41883) TAP,NHS SUPPLY CHAIN (MAIDSTONE),id:14850234 ,4116.71
Department of Health,Guys and St Thomas NHS Foundation Trust,25/02/2022,(84500) Establishment,(id:41883) TAP,OT GROUP LTD,id:14959874 ,-594.63
Department of Health,Guys and St Thomas NHS Foundation Trust,18/02/2022,(82800) Bedding & Linen,(id:2549419) TAP,NHS SUPPLY CHAIN (MAIDSTONE),id:14813451 ,   9.18
Department of Health,Guys and St Thomas NHS Foundation Trust,18/02/2022,(81100) Dressings,(id:2549419) TAP,NHS SUPPLY CHAIN (MAIDSTONE),id:14850234  ,   8.19
Department of Health,Guys and St Thomas NHS Foundation Trust,18/02/2022,(82600) Uniforms & Clothing,(id:41897) TAP,NHS SUPPLY CHAIN (MAIDSTONE),id:14795733    , 703.42
Department of Health,Guys and St Thomas NHS Foundation Trust,18/02/2022,(82600) Uniforms & Clothing,(id:41897) TAP,NHS SUPPLY CHAIN (MAIDSTONE),id:14813451    , 139.61
Department of Health,Guys and St Thomas NHS Foundation Trust,18/02/2022,(81200) Medical Surgical Supplies & Equipment,(id:41897) TAP,NHS SUPPLY CHAIN (MAIDSTONE),id:14813451 ,2947.66
Department of Health,Guys and St Thomas NHS Foundation Trust,04/02/2022,(81100) Dressings,(id:41897) TAP,ELIS UK LIMITED,id:14837834  , 662.87
Department of Health,Guys and St Thomas NHS Foundation Trust,18/02/2022,(81100) Dressings,(id:41897) TAP,NHS SUPPLY CHAIN (MAIDSTONE),id:14850234    , 328.58
Department of Health,Guys and St Thomas NHS Foundation Trust,18/02/2022,(82800) Bedding & Linen,(id:41894) TAP,NHS SUPPLY CHAIN (MAIDSTONE),id:14850234   ,  11.35
Department of Health,Guys and St Thomas NHS Foundation Trust,18/02/2022,(83400) Office Equipment,(id:41958) Gastrointestinal Medicine & Surgery,NHS SUPPLY CHAIN (MAIDSTONE),id:14795733,   3.21
Department of Health,Guys and St Thomas NHS Foundation Trust,18/02/2022,(83400) Office Equipment,(id:41958) Gastrointestinal Medicine & Surgery,NHS SUPPLY CHAIN (MAIDSTONE),id:14850234,  67.74
Department of Health,Guys and St Thomas NHS Foundation Trust,25/02/2022,(50522) Unqualified Nursing Staff,(id:41958) Gastrointestinal Medicine & Surgery,MEDICSPRO LTD,id:14969715 , 885.49
Department of Health,Guys and St Thomas NHS Foundation Trust,04/02/2022,(50522) Unqualified Nursing Staff,(id:41958) Gastrointestinal Medicine & Surgery,MSI GROUP LTD,id:14863087 , 858.64
Department of Health,Guys and St Thomas NHS Foundation Trust,18/02/2022,(50522) Unqualified Nursing Staff,(id:41958) Gastrointestinal Medicine & Surgery,MEDICSPRO LTD,id:14931724 , 681.49
Department of Health,Guys and St Thomas NHS Foundation Trust,18/02/2022,(82000) Provisions & Kitchens,(id:41959) Gastrointestinal Medicine & Surgery,NHS SUPPLY CHAIN (MAIDSTONE),id:14850234,   7.89
Department of Health,Guys and St Thomas NHS Foundation Trust,18/02/2022,(82800) Bedding & Linen,(id:41954) Gastrointestinal Medicine & Surgery,NHS SUPPLY CHAIN (MAIDSTONE),id:14850234 ,  70.84
Department of Health,Guys and St Thomas NHS Foundation Trust,25/02/2022,(50522) Unqualified Nursing Staff,(id:41954) Gastrointestinal Medicine & Surgery,CARE PROVIDERS HEALTHCARE,id:14972784    , 801.05
Department of Health,Guys and St Thomas NHS Foundation Trust,18/02/2022,(81200) Medical Surgical Supplies & Equipment,(id:41954) Gastrointestinal Medicine & Surgery,NHS SUPPLY CHAIN (MAIDSTONE),id:14795733    , 532.90
Department of Health,Guys and St Thomas NHS Foundation Trust,18/02/2022,(81100) Dressings,(id:41954) Gastrointestinal Medicine & Surgery,NHS SUPPLY CHAIN (MAIDSTONE),id:14813451  , 530.08
Department of Health,Guys and St Thomas NHS Foundation Trust,04/02/2022,(50552) Qualified Nursing Staff,(id:41954) Gastrointestinal Medicine & Surgery,CONTINENTAL NURSE LTD,id:14862796, 353.45
Department of Health,Guys and St Thomas NHS Foundation Trust,25/02/2022,(81200) Medical Surgical Supplies & Equipment,(id:5182419) Gastrointestinal Medicine & Surgery,LAWMED LTD,id:14958572, 808.20
Department of Health,Guys and St Thomas NHS Foundation Trust,25/02/2022,(81200) Medical Surgical Supplies & Equipment,(id:5182419) Gastrointestinal Medicine & Surgery,INTUITIVE SURGICAL LTD,id:14944674   ,    11853.60
Department of Health,Guys and St Thomas NHS Foundation Trust,18/02/2022,(83400) Office Equipment,(id:41949) Gastrointestinal Medicine & Surgery,NHS SUPPLY CHAIN (MAIDSTONE),id:14795733, 193.94
Department of Health,Guys and St Thomas NHS Foundation Trust,25/02/2022,(81200) Medical Surgical Supplies & Equipment,(id:41949) Gastrointestinal Medicine & Surgery,OLYMPUS KEYMED,id:14921931   ,2701.30
Department of Health,Guys and St Thomas NHS Foundation Trust,04/02/2022,(81200) Medical Surgical Supplies & Equipment,(id:41949) Gastrointestinal Medicine & Surgery,CRYOLIFE EUROPA LTD,id:14830730   ,    -1260.00
Department of Health,Guys and St Thomas NHS Foundation Trust,11/02/2022,(81200) Medical Surgical Supplies & Equipment,(id:41949) Gastrointestinal Medicine & Surgery,JOHNSON & JOHNSON MEDICAL LTD,id:14806757   , 689.27
Department of Health,Guys and St Thomas NHS Foundation Trust,18/02/2022,(81200) Medical Surgical Supplies & Equipment,(id:41949) Gastrointestinal Medicine & Surgery,NHS SUPPLY CHAIN (MAIDSTONE),id:14795733    , 230.40
Department of Health,Guys and St Thomas NHS Foundation Trust,18/02/2022,(81700) Lab Equipment Purchase,(id:2367419) Gastrointestinal Medicine & Surgery,NHS SUPPLY CHAIN (MAIDSTONE),id:14850234  ,   3.10
Department of Health,Guys and St Thomas NHS Foundation Trust,18/02/2022,(82700) Uniforms & Clothing,(id:2367419) Gastrointestinal Medicine & Surgery,NHS SUPPLY CHAIN (MAIDSTONE),id:14795733, 208.80
Department of Health,Guys and St Thomas NHS Foundation Trust,18/02/2022,(81200) Medical Surgical Supplies & Equipment,(id:2367419) Gastrointestinal Medicine & Surgery,NHS SUPPLY CHAIN (MAIDSTONE),id:14813451  , 400.79
Department of Health,Guys and St Thomas NHS Foundation Trust,18/02/2022,(81225) Medical Surgical Supplies & Equipment,(id:2367419) Gastrointestinal Medicine & Surgery,NHS SUPPLY CHAIN (MAIDSTONE),id:14850234  ,  35.53
Department of Health,Guys and St Thomas NHS Foundation Trust,11/02/2022,(50552) Qualified Nursing Staff,(id:2367419) Gastrointestinal Medicine & Surgery,CONTINENTAL NURSE LTD,id:14909623   ,2074.99
Department of Health,Guys and St Thomas NHS Foundation Trust,25/02/2022,(84500) Establishment,(id:41917) Gastrointestinal Medicine & Surgery,OT GROUP LTD,id:14948294    , 776.40
Department of Health,Guys and St Thomas NHS Foundation Trust,11/02/2022,(84500) Establishment,(id:41917) Gastrointestinal Medicine & Surgery,OT GROUP LTD,id:14858714    , 612.93
Department of Health,Guys and St Thomas NHS Foundation Trust,25/02/2022,(81200) Medical Surgical Supplies & Equipment,(id:41917) Gastrointestinal Medicine & Surgery,SYNECTICS MEDICAL LTD (SYNMED),id:14925898  , 615.60
Department of Health,Guys and St Thomas NHS Foundation Trust,25/02/2022,(81200) Medical Surgical Supplies & Equipment,(id:41917) Gastrointestinal Medicine & Surgery,ALBYN MEDICAL LTD,id:14929157, 801.60
Department of Health,Guys and St Thomas NHS Foundation Trust,25/02/2022,(81200) Medical Surgical Supplies & Equipment,(id:41917) Gastrointestinal Medicine & Surgery,BOSTON SCIENTIFIC LTD,id:14827674 ,3130.40
Department of Health,Guys and St Thomas NHS Foundation Trust,25/02/2022,(81200) Medical Surgical Supplies & Equipment,(id:41917) Gastrointestinal Medicine & Surgery,BOSTON SCIENTIFIC LTD,id:14867136 , 765.70
Department of Health,Guys and St Thomas NHS Foundation Trust,25/02/2022,(81200) Medical Surgical Supplies & Equipment,(id:41917) Gastrointestinal Medicine & Surgery,MEDTRONIC LTD,id:14872233    ,2928.00
Department of Health,Guys and St Thomas NHS Foundation Trust,04/02/2022,(81200) Medical Surgical Supplies & Equipment,(id:41917) Gastrointestinal Medicine & Surgery,OLYMPUS KEYMED,id:14856089   , 765.60
Department of Health,Guys and St Thomas NHS Foundation Trust,04/02/2022,(81200) Medical Surgical Supplies & Equipment,(id:41917) Gastrointestinal Medicine & Surgery,BOSTON SCIENTIFIC LTD,id:14796432 ,2702.59
Department of Health,Guys and St Thomas NHS Foundation Trust,11/02/2022,(81200) Medical Surgical Supplies & Equipment,(id:41917) Gastrointestinal Medicine & Surgery,BOSTON SCIENTIFIC LTD,id:14821980 ,2702.59
Department of Health,Guys and St Thomas NHS Foundation Trust,11/02/2022,(81200) Medical Surgical Supplies & Equipment,(id:41917) Gastrointestinal Medicine & Surgery,18 WEEK SUPPORT LIMITED,id:14898305    ,    11900.00
Department of Health,Guys and St Thomas NHS Foundation Trust,11/02/2022,(81200) Medical Surgical Supplies & Equipment,(id:41917) Gastrointestinal Medicine & Surgery,18 WEEK SUPPORT LIMITED,id:14742161    ,    23800.00
Department of Health,Guys and St Thomas NHS Foundation Trust,18/02/2022,(81200) Medical Surgical Supplies & Equipment,(id:41917) Gastrointestinal Medicine & Surgery,OLYMPUS KEYMED,id:14930524   , 930.00
Department of Health,Guys and St Thomas NHS Foundation Trust,18/02/2022,(81200) Medical Surgical Supplies & Equipment,(id:41917) Gastrointestinal Medicine & Surgery,BOSTON SCIENTIFIC LTD,id:14853512 ,1678.08
Department of Health,Guys and St Thomas NHS Foundation Trust,18/02/2022,(81100) Dressings,(id:41917) Gastrointestinal Medicine & Surgery,NHS SUPPLY CHAIN (MAIDSTONE),id:14850234  ,  48.96
Department of Health,Guys and St Thomas NHS Foundation Trust,18/02/2022,(83400) Office Equipment,(id:41942) Gastrointestinal Medicine & Surgery,NHS SUPPLY CHAIN (MAIDSTONE),id:14850234,  63.99
Department of Health,Guys and St Thomas NHS Foundation Trust,18/02/2022,(83500) Furniture & Fittings,(id:2534420) Gastrointestinal Medicine & Surgery,DSG RETAIL LTD T/A CURRYS PC WORLD BUSINESS,id:14860617    , 602.63
Department of Health,Guys and St Thomas NHS Foundation Trust,04/02/2022,(81225) Medical Surgical Supplies & Equipment,(id:2534420) Gastrointestinal Medicine & Surgery,RS COMPONENTS LTD,id:14863604   , 847.13
Department of Health,Guys and St Thomas NHS Foundation Trust,18/02/2022,(81100) Dressings,(id:42423) Transplant Renal and Urology,NHS SUPPLY CHAIN (MAIDSTONE),id:14850234    ,   2.68
Department of Health,Guys and St Thomas NHS Foundation Trust,18/02/2022,(82700) Uniforms & Clothing,(id:42419) Transplant Renal and Urology,NHS SUPPLY CHAIN (MAIDSTONE),id:14850234    ,  94.98
Department of Health,Guys and St Thomas NHS Foundation Trust,11/02/2022,(83500) Furniture & Fittings,(id:42419) Transplant Renal and Urology,TECHNIBLINDS LTD,id:14844383, 583.80
Department of Health,Guys and St Thomas NHS Foundation Trust,18/02/2022,(81200) Medical Surgical Supplies & Equipment,(id:42419) Transplant Renal and Urology,NHS SUPPLY CHAIN (MAIDSTONE),id:14813451 , 887.10
Department of Health,Guys and St Thomas NHS Foundation Trust,18/02/2022,(81225) Medical Surgical Supplies & Equipment,(id:42419) Transplant Renal and Urology,NHS SUPPLY CHAIN (MAIDSTONE),id:14813451 ,   3.12
Department of Health,Guys and St Thomas NHS Foundation Trust,25/02/2022,(81200) Medical Surgical Supplies & Equipment,(id:42439) Transplant Renal and Urology,INTUITIVE SURGICAL LTD,id:14944794  ,4404.00
Department of Health,Guys and St Thomas NHS Foundation Trust,18/02/2022,(81200) Medical Surgical Supplies & Equipment,(id:42449) Transplant Renal and Urology,NHS SUPPLY CHAIN (MAIDSTONE),id:14850234 ,2486.66
Department of Health,Guys and St Thomas NHS Foundation Trust,18/02/2022,(81200) Medical Surgical Supplies & Equipment,(id:42449) Transplant Renal and Urology,NHS SUPPLY CHAIN (MAIDSTONE),id:14813451 , 183.19
Department of Health,Guys and St Thomas NHS Foundation Trust,18/02/2022,(81225) Medical Surgical Supplies & Equipment,(id:42449) Transplant Renal and Urology,NHS SUPPLY CHAIN (MAIDSTONE),id:14795733 , 177.36
Department of Health,Guys and St Thomas NHS Foundation Trust,25/02/2022,(81200) Medical Surgical Supplies & Equipment,(id:42450) Transplant Renal and Urology,LOCAMED LTD,id:14954134   , 655.92
Department of Health,Guys and St Thomas NHS Foundation Trust,25/02/2022,(81200) Medical Surgical Supplies & Equipment,(id:42450) Transplant Renal and Urology,STRYKER UK LTD,id:14964828, 613.87
Department of Health,Guys and St Thomas NHS Foundation Trust,11/02/2022,(81200) Medical Surgical Supplies & Equipment,(id:42450) Transplant Renal and Urology,STRYKER UK LTD,id:14843957, 613.87
Department of Health,Guys and St Thomas NHS Foundation Trust,18/02/2022,(82800) Bedding & Linen,(id:42442) Transplant Renal and Urology,NHS SUPPLY CHAIN (MAIDSTONE),id:14850234   ,  71.51
Department of Health,Guys and St Thomas NHS Foundation Trust,18/02/2022,(81275) Medical Surgical Supplies & Equipment,(id:42442) Transplant Renal and Urology,NHS SUPPLY CHAIN (MAIDSTONE),id:14850234 ,1412.04
Department of Health,Guys and St Thomas NHS Foundation Trust,18/02/2022,(82700) Uniforms & Clothing,(id:42443) Transplant Renal and Urology,NHS SUPPLY CHAIN (MAIDSTONE),id:14813451    ,  47.52
Department of Health,Guys and St Thomas NHS Foundation Trust,18/02/2022,(82700) Uniforms & Clothing,(id:42443) Transplant Renal and Urology,NHS SUPPLY CHAIN (MAIDSTONE),id:14850234    ,  31.68
Department of Health,Guys and St Thomas NHS Foundation Trust,04/02/2022,(50522) Unqualified Nursing Staff,(id:42443) Transplant Renal and Urology,GLOBE LOCUMS LTD,id:14863099, 241.77
Department of Health,Guys and St Thomas NHS Foundation Trust,04/02/2022,(81200) Medical Surgical Supplies & Equipment,(id:42444) Transplant Renal and Urology,BOSTON SCIENTIFIC LTD,id:14728148   , 824.26
Department of Health,Guys and St Thomas NHS Foundation Trust,04/02/2022,(81200) Medical Surgical Supplies & Equipment,(id:42444) Transplant Renal and Urology,BOSTON SCIENTIFIC LTD,id:14755000   , 998.40
Department of Health,Guys and St Thomas NHS Foundation Trust,04/02/2022,(81200) Medical Surgical Supplies & Equipment,(id:42444) Transplant Renal and Urology,BOSTON SCIENTIFIC LTD,id:14775003   , 843.96
Department of Health,Guys and St Thomas NHS Foundation Trust,18/02/2022,(81225) Medical Surgical Supplies & Equipment,(id:42446) Transplant Renal and Urology,NHS SUPPLY CHAIN (MAIDSTONE),id:14813451 ,  25.36
Department of Health,Guys and St Thomas NHS Foundation Trust,04/02/2022,(81200) Medical Surgical Supplies & Equipment,(id:42446) Transplant Renal and Urology,MEDTRONIC LTD,id:14790631 ,2309.47
Department of Health,Guys and St Thomas NHS Foundation Trust,18/02/2022,(81200) Medical Surgical Supplies & Equipment,(id:42446) Transplant Renal and Urology,NHS SUPPLY CHAIN (MAIDSTONE),id:14850234 ,5607.71
Department of Health,Guys and St Thomas NHS Foundation Trust,18/02/2022,(81200) Medical Surgical Supplies & Equipment,(id:42446) Transplant Renal and Urology,MEDTRONIC LTD,id:14827713 , 986.54
Department of Health,Guys and St Thomas NHS Foundation Trust,18/02/2022,(83400) Office Equipment,(id:42446) Transplant Renal and Urology,NHS SUPPLY CHAIN (MAIDSTONE),id:14850234  , 193.94
Department of Health,Guys and St Thomas NHS Foundation Trust,18/02/2022,(81700) Lab Equipment Purchase,(id:42447) Transplant Renal and Urology,NHS SUPPLY CHAIN (MAIDSTONE),id:14795733 ,  25.23
Department of Health,Guys and St Thomas NHS Foundation Trust,18/02/2022,(81100) Dressings,(id:42447) Transplant Renal and Urology,NHS SUPPLY CHAIN (MAIDSTONE),id:14795733    ,   3.85
Department of Health,Guys and St Thomas NHS Foundation Trust,18/02/2022,(81225) Medical Surgical Supplies & Equipment,(id:42447) Transplant Renal and Urology,NHS SUPPLY CHAIN (MAIDSTONE),id:14813451 ,  12.48
Department of Health,Guys and St Thomas NHS Foundation Trust,18/02/2022,(81225) Medical Surgical Supplies & Equipment,(id:42447) Transplant Renal and Urology,NHS SUPPLY CHAIN (MAIDSTONE),id:14850234 ,  24.96
Department of Health,Guys and St Thomas NHS Foundation Trust,18/02/2022,(81100) Dressings,(id:2653419) Transplant Renal and Urology,NHS SUPPLY CHAIN (MAIDSTONE),id:14795733  , 497.28
Department of Health,Guys and St Thomas NHS Foundation Trust,25/02/2022,(81200) Medical Surgical Supplies & Equipment,(id:42420) Transplant Renal and Urology,EDAN MEDICAL (UK) LTD,id:14929821   ,2696.40
Department of Health,Guys and St Thomas NHS Foundation Trust,04/02/2022,(81200) Medical Surgical Supplies & Equipment,(id:42420) Transplant Renal and Urology,FRESENIUS MEDICAL CARE UK LTD,id:14838574,3218.76
Department of Health,Guys and St Thomas NHS Foundation Trust,18/02/2022,(82800) Bedding & Linen,(id:42420) Transplant Renal and Urology,NHS SUPPLY CHAIN (MAIDSTONE),id:14850234   , 417.91
Department of Health,Guys and St Thomas NHS Foundation Trust,25/02/2022,(81100) Dressings,(id:42420) Transplant Renal and Urology,JOHNSON & JOHNSON MEDICAL LTD,id:14895920   , 694.70
Department of Health,Guys and St Thomas NHS Foundation Trust,18/02/2022,(82700) Uniforms & Clothing,(id:42435) Transplant Renal and Urology,NHS SUPPLY CHAIN (MAIDSTONE),id:14813451    , 317.82
Department of Health,Guys and St Thomas NHS Foundation Trust,18/02/2022,(82800) Bedding & Linen,(id:42435) Transplant Renal and Urology,NHS SUPPLY CHAIN (MAIDSTONE),id:14850234   , 108.96
Department of Health,Guys and St Thomas NHS Foundation Trust,04/02/2022,(81200) Medical Surgical Supplies & Equipment,(id:42435) Transplant Renal and Urology,MEDSTROM LTD,id:13689195  , 933.00
Department of Health,Guys and St Thomas NHS Foundation Trust,18/02/2022,(81200) Medical Surgical Supplies & Equipment,(id:42435) Transplant Renal and Urology,NHS SUPPLY CHAIN (MAIDSTONE),id:14795733 ,1547.66
Department of Health,Guys and St Thomas NHS Foundation Trust,18/02/2022,(81200) Medical Surgical Supplies & Equipment,(id:42435) Transplant Renal and Urology,NHS SUPPLY CHAIN (MAIDSTONE),id:14813451 , 742.10
Department of Health,Guys and St Thomas NHS Foundation Trust,18/02/2022,(83400) Office Equipment,(id:42435) Transplant Renal and Urology,NHS SUPPLY CHAIN (MAIDSTONE),id:14850234  , 203.90
Department of Health,Guys and St Thomas NHS Foundation Trust,18/02/2022,(81235) Medical Surgical Supplies & Equipment,(id:42433) Transplant Renal and Urology,NHS SUPPLY CHAIN (MAIDSTONE),id:14813451 ,1591.20
Department of Health,Guys and St Thomas NHS Foundation Trust,18/02/2022,(81200) Medical Surgical Supplies & Equipment,(id:42433) Transplant Renal and Urology,HEALTHCARE 21 LTD,id:14888767  ,7119.00
Department of Health,Guys and St Thomas NHS Foundation Trust,18/02/2022,(82000) Provisions & Kitchens,(id:42428) Transplant Renal and Urology,NHS SUPPLY CHAIN (MAIDSTONE),id:14795733  ,   5.00
Department of Health,Guys and St Thomas NHS Foundation Trust,25/02/2022,(83410) Office Equipment,(id:42428) Transplant Renal and Urology,RICOH UK LTD,id:14972496   ,  41.16
Department of Health,Guys and St Thomas NHS Foundation Trust,18/02/2022,(83400) Office Equipment,(id:42428) Transplant Renal and Urology,NHS SUPPLY CHAIN (MAIDSTONE),id:14850234  ,  70.69
Department of Health,Guys and St Thomas NHS Foundation Trust,18/02/2022,(81700) Lab Equipment Purchase,(id:42428) Transplant Renal and Urology,NHS SUPPLY CHAIN (MAIDSTONE),id:14795733 , 105.54
Department of Health,Guys and St Thomas NHS Foundation Trust,25/02/2022,(81200) Medical Surgical Supplies & Equipment,(id:42422) Transplant Renal and Urology,NXSTAGE MEDICAL UK LIMITED,id:14963118   ,1116.00
Department of Health,Guys and St Thomas NHS Foundation Trust,04/02/2022,(81200) Medical Surgical Supplies & Equipment,(id:42422) Transplant Renal and Urology,NXSTAGE MEDICAL UK LIMITED,id:14830514   ,1346.64
Department of Health,Guys and St Thomas NHS Foundation Trust,04/02/2022,(81200) Medical Surgical Supplies & Equipment,(id:42422) Transplant Renal and Urology,NXSTAGE MEDICAL UK LIMITED,id:14575994   ,2019.96
Department of Health,Guys and St Thomas NHS Foundation Trust,18/02/2022,(81200) Medical Surgical Supplies & Equipment,(id:42422) Transplant Renal and Urology,NHS SUPPLY CHAIN (MAIDSTONE),id:14850234 ,1758.83
Department of Health,Guys and St Thomas NHS Foundation Trust,18/02/2022,(81200) Medical Surgical Supplies & Equipment,(id:42422) Transplant Renal and Urology,NHS SUPPLY CHAIN (MAIDSTONE),id:14813451 , 588.00
Department of Health,Guys and St Thomas NHS Foundation Trust,25/02/2022,(84600) Establishment,(id:42422) Transplant Renal and Urology,CLARITY TRAVEL MANAGEMENT,id:14843478   ,  26.73
Department of Health,Guys and St Thomas NHS Foundation Trust,18/02/2022,(80010) Drug Costs,(id:42422) Transplant Renal and Urology,NHS SUPPLY CHAIN (MAIDSTONE),id:14813451   ,1612.32
Department of Health,Guys and St Thomas NHS Foundation Trust,04/02/2022,(81200) Medical Surgical Supplies & Equipment,(id:42421) Transplant Renal and Urology,BAXTER HEALTHCARE LTD,id:14755411   ,1183.67
Department of Health,Guys and St Thomas NHS Foundation Trust,04/02/2022,(81200) Medical Surgical Supplies & Equipment,(id:42421) Transplant Renal and Urology,BAXTER HEALTHCARE LTD,id:14755412   ,2081.62
Department of Health,Guys and St Thomas NHS Foundation Trust,18/02/2022,(82600) Uniforms & Clothing,(id:42482) Surgery,NHS SUPPLY CHAIN (MAIDSTONE),id:14850234,   4.21
Department of Health,Guys and St Thomas NHS Foundation Trust,18/02/2022,(81200) Medical Surgical Supplies & Equipment,(id:42482) Surgery,NHS SUPPLY CHAIN (MAIDSTONE),id:14795733  ,  96.47
Department of Health,Guys and St Thomas NHS Foundation Trust,25/02/2022,(81200) Medical Surgical Supplies & Equipment,(id:42484) Surgery,EUROSURGICAL LTD,id:14727080    ,1302.00
Department of Health,Guys and St Thomas NHS Foundation Trust,04/02/2022,(81200) Medical Surgical Supplies & Equipment,(id:42484) Surgery,SEBBIN UK LTD,id:14766941  , 895.20
Department of Health,Guys and St Thomas NHS Foundation Trust,04/02/2022,(81200) Medical Surgical Supplies & Equipment,(id:42484) Surgery,MEDTRONIC LTD,id:14796440  ,1291.20
Department of Health,Guys and St Thomas NHS Foundation Trust,11/02/2022,(81200) Medical Surgical Supplies & Equipment,(id:42484) Surgery,SEVERN HEALTHCARE TECHNOLOGIES LTD,id:14897754 ,1884.00
Department of Health,Guys and St Thomas NHS Foundation Trust,18/02/2022,(81200) Medical Surgical Supplies & Equipment,(id:42484) Surgery,NHS SUPPLY CHAIN (MAIDSTONE),id:14795733  ,6910.87
Department of Health,Guys and St Thomas NHS Foundation Trust,18/02/2022,(81100) Dressings,(id:42484) Surgery,NHS SUPPLY CHAIN (MAIDSTONE),id:14850234, 120.26
Department of Health,Guys and St Thomas NHS Foundation Trust,25/02/2022,(81400) Medical Surgical Supplies & Equipment,(id:42484) Surgery,SIGH LTD,id:14926189  , 424.68
Department of Health,Guys and St Thomas NHS Foundation Trust,18/02/2022,(83400) Office Equipment,(id:42485) Surgery,NHS SUPPLY CHAIN (MAIDSTONE),id:14813451   ,  77.56
Department of Health,Guys and St Thomas NHS Foundation Trust,18/02/2022,(81275) Medical Surgical Supplies & Equipment,(id:42485) Surgery,NHS SUPPLY CHAIN (MAIDSTONE),id:14795733  ,  14.46
Department of Health,Guys and St Thomas NHS Foundation Trust,18/02/2022,(81225) Medical Surgical Supplies & Equipment,(id:42485) Surgery,NHS SUPPLY CHAIN (MAIDSTONE),id:14795733  ,  95.85
Department of Health,Guys and St Thomas NHS Foundation Trust,11/02/2022,(81000) Surgical Appliances,(id:42485) Surgery,TALAR MADE ORTHOTICS LTD,id:14892234    ,  28.53
Department of Health,Guys and St Thomas NHS Foundation Trust,18/02/2022,(82000) Provisions & Kitchens,(id:42485) Surgery,NHS SUPPLY CHAIN (MAIDSTONE),id:14850234   ,  25.71
Department of Health,Guys and St Thomas NHS Foundation Trust,18/02/2022,(81200) Medical Surgical Supplies & Equipment,(id:42485) Surgery,NHS SUPPLY CHAIN (MAIDSTONE),id:14850234  , 188.00
Department of Health,Guys and St Thomas NHS Foundation Trust,18/02/2022,(81100) Dressings,(id:884419) Surgery,NHS SUPPLY CHAIN (MAIDSTONE),id:14795733    , 111.22
Department of Health,Guys and St Thomas NHS Foundation Trust,18/02/2022,(81100) Dressings,(id:884419) Surgery,NHS SUPPLY CHAIN (MAIDSTONE),id:14850234    , 629.28
Department of Health,Guys and St Thomas NHS Foundation Trust,04/02/2022,(81200) Medical Surgical Supplies & Equipment,(id:42463) Surgery,BAXTER HEALTHCARE LTD,id:14798601    ,1188.72
Department of Health,Guys and St Thomas NHS Foundation Trust,18/02/2022,(81100) Dressings,(id:42463) Surgery,T J SMITH & NEPHEW LTD,id:14912155 , 648.00
Department of Health,Guys and St Thomas NHS Foundation Trust,25/02/2022,(83400) Office Equipment,(id:42464) Surgery,DICTATE IT,id:14888755 ,1405.80
Department of Health,Guys and St Thomas NHS Foundation Trust,18/02/2022,(81100) Dressings,(id:42465) Surgery,NHS SUPPLY CHAIN (MAIDSTONE),id:14850234,  92.34
Department of Health,Guys and St Thomas NHS Foundation Trust,18/02/2022,(50522) Unqualified Nursing Staff,(id:42465) Surgery,MSI GROUP LTD,id:14936487    , 252.93
Department of Health,Guys and St Thomas NHS Foundation Trust,18/02/2022,(83500) Furniture & Fittings,(id:42465) Surgery,TECHNIBLINDS LTD,id:14911434 , 500.40
Department of Health,Guys and St Thomas NHS Foundation Trust,04/02/2022,(81200) Medical Surgical Supplies & Equipment,(id:42466) Surgery,BIOVENTUS COOPERATIEF U.A.,id:14854464    ,    12297.60
Department of Health,Guys and St Thomas NHS Foundation Trust,18/02/2022,(81225) Medical Surgical Supplies & Equipment,(id:42466) Surgery,NHS SUPPLY CHAIN (MAIDSTONE),id:14850234  , 227.27
Department of Health,Guys and St Thomas NHS Foundation Trust,25/02/2022,(81200) Medical Surgical Supplies & Equipment,(id:42467) Surgery,JOHNSON & JOHNSON MEDICAL LTD,id:14872256 , 608.77
Department of Health,Guys and St Thomas NHS Foundation Trust,04/02/2022,(81200) Medical Surgical Supplies & Equipment,(id:42467) Surgery,JOHNSON & JOHNSON MEDICAL LTD,id:14794580 ,2721.02
Department of Health,Guys and St Thomas NHS Foundation Trust,04/02/2022,(81200) Medical Surgical Supplies & Equipment,(id:42467) Surgery,JOHNSON & JOHNSON MEDICAL LTD,id:14800899 ,2897.52
Department of Health,Guys and St Thomas NHS Foundation Trust,18/02/2022,(81225) Medical Surgical Supplies & Equipment,(id:42467) Surgery,NHS SUPPLY CHAIN (MAIDSTONE),id:14813451  ,  19.44
Department of Health,Guys and St Thomas NHS Foundation Trust,18/02/2022,(82800) Bedding & Linen,(id:42459) Surgery,NHS SUPPLY CHAIN (MAIDSTONE),id:14795733    ,  67.79
Department of Health,Guys and St Thomas NHS Foundation Trust,18/02/2022,(81100) Dressings,(id:42459) Surgery,NHS SUPPLY CHAIN (MAIDSTONE),id:14795733,  49.71
Department of Health,Guys and St Thomas NHS Foundation Trust,18/02/2022,(81100) Dressings,(id:42459) Surgery,NHS SUPPLY CHAIN (MAIDSTONE),id:14850234,  56.38
Department of Health,Guys and St Thomas NHS Foundation Trust,18/02/2022,(81225) Medical Surgical Supplies & Equipment,(id:42459) Surgery,NHS SUPPLY CHAIN (MAIDSTONE),id:14850234  ,  20.30
Department of Health,Guys and St Thomas NHS Foundation Trust,18/02/2022,(81700) Lab Equipment Purchase,(id:42459) Surgery,NHS SUPPLY CHAIN (MAIDSTONE),id:14813451  ,  16.04
Department of Health,Guys and St Thomas NHS Foundation Trust,11/02/2022,(81000) Surgical Appliances,(id:42461) Surgery,TALAR MADE ORTHOTICS LTD,id:14892276    , 570.00
Department of Health,Guys and St Thomas NHS Foundation Trust,11/02/2022,(81000) Surgical Appliances,(id:42461) Surgery,BESPOKE PROSTHETICS AND ORTHOTICS LTD,id:14892348 ,1111.73
Department of Health,Guys and St Thomas NHS Foundation Trust,18/02/2022,(82700) Uniforms & Clothing,(id:42265) Haematology Cellular Pathology and Supporting Services,NHS SUPPLY CHAIN (MAIDSTONE),id:14850234   ,  84.65
Department of Health,Guys and St Thomas NHS Foundation Trust,18/02/2022,(82600) Uniforms & Clothing,(id:42265) Haematology Cellular Pathology and Supporting Services,NHS SUPPLY CHAIN (MAIDSTONE),id:14795733   ,   8.42
Department of Health,Guys and St Thomas NHS Foundation Trust,18/02/2022,(81100) Dressings,(id:42265) Haematology Cellular Pathology and Supporting Services,NHS SUPPLY CHAIN (MAIDSTONE),id:14795733   , 245.69
Department of Health,Guys and St Thomas NHS Foundation Trust,18/02/2022,(81100) Dressings,(id:42265) Haematology Cellular Pathology and Supporting Services,NHS SUPPLY CHAIN (MAIDSTONE),id:14850234   , 476.11
Department of Health,Guys and St Thomas NHS Foundation Trust,18/02/2022,(81200) Medical Surgical Supplies & Equipment,(id:42265) Haematology Cellular Pathology and Supporting Services,NHS SUPPLY CHAIN (MAIDSTONE),id:14813451,2394.33
Department of Health,Guys and St Thomas NHS Foundation Trust,18/02/2022,(83400) Office Equipment,(id:42265) Haematology Cellular Pathology and Supporting Services,NHS SUPPLY CHAIN (MAIDSTONE),id:14813451 , 163.60
Department of Health,Guys and St Thomas NHS Foundation Trust,04/02/2022,(50552) Qualified Nursing Staff,(id:42267) Haematology Cellular Pathology and Supporting Services,HEMINGWAYS MARKETING SERVICES,id:14869334   ,    19928.70
Department of Health,Guys and St Thomas NHS Foundation Trust,25/02/2022,(84501) Establishment,(id:42268) Haematology Cellular Pathology and Supporting Services,BANNER GROUP LTD,id:14963522 , 536.84
Department of Health,Guys and St Thomas NHS Foundation Trust,18/02/2022,(81100) Dressings,(id:42270) Haematology Cellular Pathology and Supporting Services,NHS SUPPLY CHAIN (MAIDSTONE),id:14813451   ,  44.22
Department of Health,Guys and St Thomas NHS Foundation Trust,18/02/2022,(81255) Medical Surgical Supplies & Equipment,(id:42270) Haematology Cellular Pathology and Supporting Services,NHS SUPPLY CHAIN (MAIDSTONE),id:14795733,   3.36
Department of Health,Guys and St Thomas NHS Foundation Trust,18/02/2022,(81700) Lab Equipment Purchase,(id:42270) Haematology Cellular Pathology and Supporting Services,NHS SUPPLY CHAIN (MAIDSTONE),id:14850234,   5.42
Department of Health,Guys and St Thomas NHS Foundation Trust,18/02/2022,(82800) Bedding & Linen,(id:42270) Haematology Cellular Pathology and Supporting Services,NHS SUPPLY CHAIN (MAIDSTONE),id:14795733  ,  73.16
Department of Health,Guys and St Thomas NHS Foundation Trust,18/02/2022,(80150) Drug Costs,(id:42270) Haematology Cellular Pathology and Supporting Services,NHS SUPPLY CHAIN (MAIDSTONE),id:14850234  ,4099.20
Department of Health,Guys and St Thomas NHS Foundation Trust,18/02/2022,(83400) Office Equipment,(id:42272) Haematology Cellular Pathology and Supporting Services,NHS SUPPLY CHAIN (MAIDSTONE),id:14795733 ,   3.50
Department of Health,Guys and St Thomas NHS Foundation Trust,24/02/2022,(80205) Drug Costs,(id:42273) Haematology Cellular Pathology and Supporting Services,HEALTHCARE AT HOME LTD,id:14958573   ,2880.00
Department of Health,Guys and St Thomas NHS Foundation Trust,24/02/2022,(80205) Drug Costs,(id:42273) Haematology Cellular Pathology and Supporting Services,HEALTHCARE AT HOME LTD,id:14958535   ,5440.17
Department of Health,Guys and St Thomas NHS Foundation Trust,24/02/2022,(80205) Drug Costs,(id:42273) Haematology Cellular Pathology and Supporting Services,HEALTHCARE AT HOME LTD,id:14958254   ,9375.00
Department of Health,Guys and St Thomas NHS Foundation Trust,04/02/2022,(80205) Drug Costs,(id:42273) Haematology Cellular Pathology and Supporting Services,HEALTHCARE AT HOME LTD,id:14854559   ,1163.77
Department of Health,Guys and St Thomas NHS Foundation Trust,04/02/2022,(80205) Drug Costs,(id:42273) Haematology Cellular Pathology and Supporting Services,HEALTHCARE AT HOME LTD,id:14830682   ,4155.17
Department of Health,Guys and St Thomas NHS Foundation Trust,04/02/2022,(80205) Drug Costs,(id:42273) Haematology Cellular Pathology and Supporting Services,HEALTHCARE AT HOME LTD,id:14854594   ,4180.17
Department of Health,Guys and St Thomas NHS Foundation Trust,04/02/2022,(80205) Drug Costs,(id:42273) Haematology Cellular Pathology and Supporting Services,HEALTHCARE AT HOME LTD,id:14855314   ,4930.17
Department of Health,Guys and St Thomas NHS Foundation Trust,04/02/2022,(80205) Drug Costs,(id:42273) Haematology Cellular Pathology and Supporting Services,HEALTHCARE AT HOME LTD,id:14830897   ,5130.17
Department of Health,Guys and St Thomas NHS Foundation Trust,04/02/2022,(80205) Drug Costs,(id:42273) Haematology Cellular Pathology and Supporting Services,HEALTHCARE AT HOME LTD,id:14830892   ,5250.17
Department of Health,Guys and St Thomas NHS Foundation Trust,04/02/2022,(80205) Drug Costs,(id:42273) Haematology Cellular Pathology and Supporting Services,HEALTHCARE AT HOME LTD,id:14831474   ,6210.17
Department of Health,Guys and St Thomas NHS Foundation Trust,04/02/2022,(80205) Drug Costs,(id:42273) Haematology Cellular Pathology and Supporting Services,HEALTHCARE AT HOME LTD,id:14854465   ,6730.17
Department of Health,Guys and St Thomas NHS Foundation Trust,04/02/2022,(80205) Drug Costs,(id:42273) Haematology Cellular Pathology and Supporting Services,HEALTHCARE AT HOME LTD,id:14830687   ,6930.17
Department of Health,Guys and St Thomas NHS Foundation Trust,04/02/2022,(80205) Drug Costs,(id:42273) Haematology Cellular Pathology and Supporting Services,HEALTHCARE AT HOME LTD,id:14854435   ,7330.17
Department of Health,Guys and St Thomas NHS Foundation Trust,04/02/2022,(80205) Drug Costs,(id:42273) Haematology Cellular Pathology and Supporting Services,HEALTHCARE AT HOME LTD,id:14830938   ,7630.17
Department of Health,Guys and St Thomas NHS Foundation Trust,04/02/2022,(80205) Drug Costs,(id:42273) Haematology Cellular Pathology and Supporting Services,HEALTHCARE AT HOME LTD,id:14830916   ,9730.17
Department of Health,Guys and St Thomas NHS Foundation Trust,04/02/2022,(80205) Drug Costs,(id:42273) Haematology Cellular Pathology and Supporting Services,HEALTHCARE AT HOME LTD,id:14830677   ,    10630.17
Department of Health,Guys and St Thomas NHS Foundation Trust,04/02/2022,(80205) Drug Costs,(id:42273) Haematology Cellular Pathology and Supporting Services,HEALTHCARE AT HOME LTD,id:14830889   ,    10930.17
Department of Health,Guys and St Thomas NHS Foundation Trust,04/02/2022,(80205) Drug Costs,(id:42273) Haematology Cellular Pathology and Supporting Services,HEALTHCARE AT HOME LTD,id:14855654   ,    15880.17
Department of Health,Guys and St Thomas NHS Foundation Trust,04/02/2022,(80205) Drug Costs,(id:42273) Haematology Cellular Pathology and Supporting Services,HEALTHCARE AT HOME LTD,id:14830650   ,    19530.17
Department of Health,Guys and St Thomas NHS Foundation Trust,04/02/2022,(80205) Drug Costs,(id:42273) Haematology Cellular Pathology and Supporting Services,HEALTHCARE AT HOME LTD,id:14854467   ,    21130.17
Department of Health,Guys and St Thomas NHS Foundation Trust,04/02/2022,(80205) Drug Costs,(id:42273) Haematology Cellular Pathology and Supporting Services,HEALTHCARE AT HOME LTD,id:14855534   ,1930.17
Department of Health,Guys and St Thomas NHS Foundation Trust,04/02/2022,(80205) Drug Costs,(id:42273) Haematology Cellular Pathology and Supporting Services,HEALTHCARE AT HOME LTD,id:14855559   ,1938.00
Department of Health,Guys and St Thomas NHS Foundation Trust,11/02/2022,(80205) Drug Costs,(id:42273) Haematology Cellular Pathology and Supporting Services,HEALTHNET HOMECARE (UK) LTD,id:14909478   ,    12087.00
Department of Health,Guys and St Thomas NHS Foundation Trust,11/02/2022,(80205) Drug Costs,(id:42273) Haematology Cellular Pathology and Supporting Services,HEALTHCARE AT HOME LTD,id:14855114   ,    11250.00
Department of Health,Guys and St Thomas NHS Foundation Trust,04/02/2022,(54052) Technical Officers,(id:42128) Haematology Cellular Pathology and Supporting Services,TOTAL ASSIST RECRUITMENT LTD,id:14830336    ,1280.70
Department of Health,Guys and St Thomas NHS Foundation Trust,04/02/2022,(54052) Technical Officers,(id:42128) Haematology Cellular Pathology and Supporting Services,TOTAL ASSIST RECRUITMENT LTD,id:14862847    ,1280.70
Department of Health,Guys and St Thomas NHS Foundation Trust,18/02/2022,(81200) Medical Surgical Supplies & Equipment,(id:42128) Haematology Cellular Pathology and Supporting Services,CHEMSOL LIMITED,id:14935921   ,  30.00
Department of Health,Guys and St Thomas NHS Foundation Trust,18/02/2022,(82800) Bedding & Linen,(id:42277) Haematology Cellular Pathology and Supporting Services,NHS SUPPLY CHAIN (MAIDSTONE),id:14795733  , 129.38
Department of Health,Guys and St Thomas NHS Foundation Trust,04/02/2022,(89570) Other – Other Operating Expenditure,(id:42277) Haematology Cellular Pathology and Supporting Services,CITIZENS ADVICE SOUTHWARK,id:14814210    ,    27375.00
Department of Health,Guys and St Thomas NHS Foundation Trust,18/02/2022,(82600) Uniforms & Clothing,(id:42260) Oncology Services,NHS SUPPLY CHAIN (MAIDSTONE),id:14813451,  64.56
Department of Health,Guys and St Thomas NHS Foundation Trust,18/02/2022,(81200) Medical Surgical Supplies & Equipment,(id:42260) Oncology Services,NHS SUPPLY CHAIN (MAIDSTONE),id:14850234  ,5781.53
Department of Health,Guys and St Thomas NHS Foundation Trust,18/02/2022,(82700) Uniforms & Clothing,(id:42260) Oncology Services,NHS SUPPLY CHAIN (MAIDSTONE),id:14795733, 317.81
Department of Health,Guys and St Thomas NHS Foundation Trust,18/02/2022,(81200) Medical Surgical Supplies & Equipment,(id:42259) Oncology Services,NHS SUPPLY CHAIN (MAIDSTONE),id:14813451  , 712.36
Department of Health,Guys and St Thomas NHS Foundation Trust,18/02/2022,(81700) Lab Equipment Purchase,(id:42259) Oncology Services,NHS SUPPLY CHAIN (MAIDSTONE),id:14850234  ,  38.50
Department of Health,Guys and St Thomas NHS Foundation Trust,18/02/2022,(81100) Dressings,(id:42280) Surgical Oncology,NHS SUPPLY CHAIN (MAIDSTONE),id:14795733, 131.98
Department of Health,Guys and St Thomas NHS Foundation Trust,25/02/2022,(81200) Medical Surgical Supplies & Equipment,(id:42280) Surgical Oncology,IDEAL MEDICAL SOLUTIONS LTD,id:14964428   ,1956.00
Department of Health,Guys and St Thomas NHS Foundation Trust,25/02/2022,(81200) Medical Surgical Supplies & Equipment,(id:42280) Surgical Oncology,IDEAL MEDICAL SOLUTIONS LTD,id:14899354   ,5676.00
Department of Health,Guys and St Thomas NHS Foundation Trust,04/02/2022,(81200) Medical Surgical Supplies & Equipment,(id:42280) Surgical Oncology,RAISE HEALTHCARE PVT LTD,id:14849365 ,2700.00
Department of Health,Guys and St Thomas NHS Foundation Trust,11/02/2022,(81200) Medical Surgical Supplies & Equipment,(id:42280) Surgical Oncology,Q MEDICAL TECHNOLOGIES LTD,id:14830641    ,1331.40
Department of Health,Guys and St Thomas NHS Foundation Trust,18/02/2022,(81200) Medical Surgical Supplies & Equipment,(id:42280) Surgical Oncology,JOHNSON & JOHNSON MEDICAL LTD,id:14863957 , 662.58
Department of Health,Guys and St Thomas NHS Foundation Trust,18/02/2022,(83400) Office Equipment,(id:243406) Surgical Oncology,NHS SUPPLY CHAIN (MAIDSTONE),id:14795733  ,  62.08
Department of Health,Guys and St Thomas NHS Foundation Trust,18/02/2022,(81200) Medical Surgical Supplies & Equipment,(id:243406) Surgical Oncology,NHS SUPPLY CHAIN (MAIDSTONE),id:14795733 , 738.68
Department of Health,Guys and St Thomas NHS Foundation Trust,18/02/2022,(81225) Medical Surgical Supplies & Equipment,(id:243406) Surgical Oncology,NHS SUPPLY CHAIN (MAIDSTONE),id:14795733 ,   5.08
Department of Health,Guys and St Thomas NHS Foundation Trust,11/02/2022,(50562) Qualified Nursing Staff,(id:243406) Surgical Oncology,URGENT STAFFING LTD,id:14904269    , 612.15
Department of Health,Guys and St Thomas NHS Foundation Trust,04/02/2022,(50522) Unqualified Nursing Staff,(id:243406) Surgical Oncology,GLOBE LOCUMS LTD,id:14862898, 246.10
Department of Health,Guys and St Thomas NHS Foundation Trust,04/02/2022,(81200) Medical Surgical Supplies & Equipment,(id:42473) Surgical Oncology,MEDTRONIC LTD,id:14775019  , 698.40
Department of Health,Guys and St Thomas NHS Foundation Trust,04/02/2022,(81200) Medical Surgical Supplies & Equipment,(id:42473) Surgical Oncology,CCMED LTD,id:14846059 , 598.20
Department of Health,Guys and St Thomas NHS Foundation Trust,04/02/2022,(81200) Medical Surgical Supplies & Equipment,(id:42473) Surgical Oncology,MEDTRONIC LTD,id:14800855  , 619.20
Department of Health,Guys and St Thomas NHS Foundation Trust,04/02/2022,(81200) Medical Surgical Supplies & Equipment,(id:42473) Surgical Oncology,CCMED LTD,id:14843938 , 867.00
Department of Health,Guys and St Thomas NHS Foundation Trust,18/02/2022,(81200) Medical Surgical Supplies & Equipment,(id:42473) Surgical Oncology,MEDTRONIC LTD,id:14827716  , 619.20
Department of Health,Guys and St Thomas NHS Foundation Trust,18/02/2022,(82800) Bedding & Linen,(id:42474) Surgical Oncology,NHS SUPPLY CHAIN (MAIDSTONE),id:14850234    ,  28.08
Department of Health,Guys and St Thomas NHS Foundation Trust,04/02/2022,(84500) Establishment,(id:42474) Surgical Oncology,OT GROUP LTD,id:14866914  , 834.00
Department of Health,Guys and St Thomas NHS Foundation Trust,18/02/2022,(81200) Medical Surgical Supplies & Equipment,(id:42474) Surgical Oncology,NHS SUPPLY CHAIN (MAIDSTONE),id:14795733  , 178.14
Department of Health,Guys and St Thomas NHS Foundation Trust,18/02/2022,(84656) Establishment,(id:42474) Surgical Oncology,DICT8 LIMITED,id:14706218 ,1941.72
Department of Health,Guys and St Thomas NHS Foundation Trust,18/02/2022,(84656) Establishment,(id:42474) Surgical Oncology,DICT8 LIMITED,id:14706219 ,4793.88
Department of Health,Guys and St Thomas NHS Foundation Trust,18/02/2022,(81200) Medical Surgical Supplies & Equipment,(id:42475) Surgical Oncology,NHS SUPPLY CHAIN (MAIDSTONE),id:14813451  , 278.40
Department of Health,Guys and St Thomas NHS Foundation Trust,11/02/2022,(54052) Technical Officers,(id:42475) Surgical Oncology,PRICEWATERHOUSECOOPERS LLP,id:14911634   ,3069.62
Department of Health,Guys and St Thomas NHS Foundation Trust,11/02/2022,(54062) Technical Officers,(id:42475) Surgical Oncology,PRICEWATERHOUSECOOPERS LLP,id:14911676   ,1245.58
Department of Health,Guys and St Thomas NHS Foundation Trust,25/02/2022,(83410) Office Equipment,(id:42475) Surgical Oncology,RICOH UK LTD,id:14972531    , 791.11
Department of Health,Guys and St Thomas NHS Foundation Trust,25/02/2022,(81215) Medical Surgical Supplies & Equipment,(id:42475) Surgical Oncology,ADVANCED BIONICS SARL (AND UK LTD),id:14959082 , 818.40
Department of Health,Guys and St Thomas NHS Foundation Trust,25/02/2022,(81215) Medical Surgical Supplies & Equipment,(id:42475) Surgical Oncology,ADVANCED BIONICS SARL (AND UK LTD),id:14959090 ,2329.80
Department of Health,Guys and St Thomas NHS Foundation Trust,25/02/2022,(81215) Medical Surgical Supplies & Equipment,(id:42475) Surgical Oncology,COCHLEAR EUROPE LTD,id:14972618 ,4758.00
Department of Health,Guys and St Thomas NHS Foundation Trust,25/02/2022,(81215) Medical Surgical Supplies & Equipment,(id:42475) Surgical Oncology,COCHLEAR EUROPE LTD,id:14972599 ,5394.00
Department of Health,Guys and St Thomas NHS Foundation Trust,11/02/2022,(81215) Medical Surgical Supplies & Equipment,(id:42475) Surgical Oncology,COCHLEAR EUROPE LTD,id:14850479 ,5394.00
Department of Health,Guys and St Thomas NHS Foundation Trust,11/02/2022,(81235) Medical Surgical Supplies & Equipment,(id:42286) Surgical Oncology,BOSTON SCIENTIFIC LTD,id:14815817    , 146.38
Department of Health,Guys and St Thomas NHS Foundation Trust,18/02/2022,(81100) Dressings,(id:42286) Surgical Oncology,NHS SUPPLY CHAIN (MAIDSTONE),id:14813451, 229.68
Department of Health,Guys and St Thomas NHS Foundation Trust,25/02/2022,(81200) Medical Surgical Supplies & Equipment,(id:42286) Surgical Oncology,MEDTRONIC LTD,id:14901556  , 986.54
Department of Health,Guys and St Thomas NHS Foundation Trust,18/02/2022,(81200) Medical Surgical Supplies & Equipment,(id:42286) Surgical Oncology,NHS SUPPLY CHAIN (MAIDSTONE),id:14813451  ,5812.72
Department of Health,Guys and St Thomas NHS Foundation Trust,18/02/2022,(81200) Medical Surgical Supplies & Equipment,(id:42286) Surgical Oncology,MEDTRONIC LTD,id:14827715  ,5080.87
Department of Health,Guys and St Thomas NHS Foundation Trust,18/02/2022,(82000) Provisions & Kitchens,(id:42284) Surgical Oncology,NHS SUPPLY CHAIN (MAIDSTONE),id:14850234   , 364.15
Department of Health,Guys and St Thomas NHS Foundation Trust,18/02/2022,(82800) Bedding & Linen,(id:42284) Surgical Oncology,NHS SUPPLY CHAIN (MAIDSTONE),id:14795733    ,  58.79
Department of Health,Guys and St Thomas NHS Foundation Trust,18/02/2022,(83500) Furniture & Fittings,(id:42470) Surgical Oncology,TECHNIBLINDS LTD,id:14928488 , 583.80
Department of Health,Guys and St Thomas NHS Foundation Trust,18/02/2022,(84500) Establishment,(id:42470) Surgical Oncology,WYBONE LTD,id:14925794    , 698.78
Department of Health,Guys and St Thomas NHS Foundation Trust,18/02/2022,(81200) Medical Surgical Supplies & Equipment,(id:42470) Surgical Oncology,NHS SUPPLY CHAIN (MAIDSTONE),id:14795733  ,3524.33
Department of Health,Guys and St Thomas NHS Foundation Trust,25/02/2022,(50552) Qualified Nursing Staff,(id:42470) Surgical Oncology,CONTINENTAL NURSE LTD,id:14972753   , 704.41
Department of Health,Guys and St Thomas NHS Foundation Trust,11/02/2022,(50522) Unqualified Nursing Staff,(id:42470) Surgical Oncology,GLOBE LOCUMS LTD,id:14904645 , 202.04
Department of Health,Guys and St Thomas NHS Foundation Trust,18/02/2022,(50522) Unqualified Nursing Staff,(id:42470) Surgical Oncology,GLOBE LOCUMS LTD,id:14932156 , 210.27
Department of Health,Guys and St Thomas NHS Foundation Trust,18/02/2022,(83400) Office Equipment,(id:42508) Surgical Oncology,NHS SUPPLY CHAIN (MAIDSTONE),id:14850234   ,  29.54
Department of Health,Guys and St Thomas NHS Foundation Trust,04/02/2022,(89440) Research and Development,(id:4533419) Acute & General Medicine,DIGITAL TECHNOLOGY MANAGEMENT LTD,id:14850374 ,    11510.47
Department of Health,Guys and St Thomas NHS Foundation Trust,18/02/2022,(82700) Uniforms & Clothing,(id:41859) Acute & General Medicine,NHS SUPPLY CHAIN (MAIDSTONE),id:14813451   ,  31.68
Department of Health,Guys and St Thomas NHS Foundation Trust,25/02/2022,(50522) Unqualified Nursing Staff,(id:41859) Acute & General Medicine,CARE PROVIDERS HEALTHCARE,id:14969746, 258.37
Department of Health,Guys and St Thomas NHS Foundation Trust,04/02/2022,(50522) Unqualified Nursing Staff,(id:41859) Acute & General Medicine,CARE PROVIDERS HEALTHCARE,id:14862928, 258.37
Department of Health,Guys and St Thomas NHS Foundation Trust,11/02/2022,(50522) Unqualified Nursing Staff,(id:41859) Acute & General Medicine,CARE PROVIDERS HEALTHCARE,id:14904160, 820.41
Department of Health,Guys and St Thomas NHS Foundation Trust,11/02/2022,(50522) Unqualified Nursing Staff,(id:41859) Acute & General Medicine,CARE PROVIDERS HEALTHCARE,id:14909619, 593.97
Department of Health,Guys and St Thomas NHS Foundation Trust,25/02/2022,(81200) Medical Surgical Supplies & Equipment,(id:41859) Acute & General Medicine,BENMOR MEDICAL UK LTD,id:14799795  , 580.80
Department of Health,Guys and St Thomas NHS Foundation Trust,18/02/2022,(81700) Lab Equipment Purchase,(id:41859) Acute & General Medicine,NHS SUPPLY CHAIN (MAIDSTONE),id:14795733,  22.50
Department of Health,Guys and St Thomas NHS Foundation Trust,11/02/2022,(84500) Establishment,(id:41860) Acute & General Medicine,OT GROUP LTD,id:14881574, 545.52
Department of Health,Guys and St Thomas NHS Foundation Trust,11/02/2022,(50532) Unqualified Nursing Staff,(id:41860) Acute & General Medicine,GLOBE LOCUMS LTD,id:14904179    , 217.71
Department of Health,Guys and St Thomas NHS Foundation Trust,25/02/2022,(50552) Qualified Nursing Staff,(id:41860) Acute & General Medicine,GLOBE LOCUMS LTD,id:14972860 , 325.47
Department of Health,Guys and St Thomas NHS Foundation Trust,04/02/2022,(50522) Unqualified Nursing Staff,(id:41860) Acute & General Medicine,CARE PROVIDERS HEALTHCARE,id:14862702, 516.74
Department of Health,Guys and St Thomas NHS Foundation Trust,18/02/2022,(81200) Medical Surgical Supplies & Equipment,(id:2182419) Acute & General Medicine,NHS SUPPLY CHAIN (MAIDSTONE),id:14813451   ,1754.63
Department of Health,Guys and St Thomas NHS Foundation Trust,04/02/2022,(50552) Qualified Nursing Staff,(id:2182419) Acute & General Medicine,GLOBE LOCUMS LTD,id:14862897    , 346.75
Department of Health,Guys and St Thomas NHS Foundation Trust,11/02/2022,(50552) Qualified Nursing Staff,(id:2182419) Acute & General Medicine,GLOBE LOCUMS LTD,id:14904323    , 291.41
Department of Health,Guys and St Thomas NHS Foundation Trust,18/02/2022,(50552) Qualified Nursing Staff,(id:2182419) Acute & General Medicine,MSI GROUP LTD,id:14931998  , 354.02
Department of Health,Guys and St Thomas NHS Foundation Trust,25/02/2022,(50522) Unqualified Nursing Staff,(id:2182419) Acute & General Medicine,CARE PROVIDERS HEALTHCARE,id:14972782   , 277.20
Department of Health,Guys and St Thomas NHS Foundation Trust,04/02/2022,(50522) Unqualified Nursing Staff,(id:2182419) Acute & General Medicine,GLOBE LOCUMS LTD,id:14862896  , 261.65
Department of Health,Guys and St Thomas NHS Foundation Trust,11/02/2022,(50522) Unqualified Nursing Staff,(id:2182419) Acute & General Medicine,CARE PROVIDERS HEALTHCARE,id:14909580   , 262.81
Department of Health,Guys and St Thomas NHS Foundation Trust,18/02/2022,(81100) Dressings,(id:2182419) Acute & General Medicine,NHS SUPPLY CHAIN (MAIDSTONE),id:14850234 , 229.51
Department of Health,Guys and St Thomas NHS Foundation Trust,18/02/2022,(82000) Provisions & Kitchens,(id:2182419) Acute & General Medicine,NHS SUPPLY CHAIN (MAIDSTONE),id:14850234    , 303.93
Department of Health,Guys and St Thomas NHS Foundation Trust,18/02/2022,(83400) Office Equipment,(id:2182419) Acute & General Medicine,NHS SUPPLY CHAIN (MAIDSTONE),id:14813451    , 329.29
Department of Health,Guys and St Thomas NHS Foundation Trust,04/02/2022,(50552) Qualified Nursing Staff,(id:41872) Acute & General Medicine,CONTINENTAL NURSE LTD,id:14862948 ,1037.62
Department of Health,Guys and St Thomas NHS Foundation Trust,18/02/2022,(50552) Qualified Nursing Staff,(id:41872) Acute & General Medicine,HAYS HEALTHCARE LTD,id:14931948   , 426.48
Department of Health,Guys and St Thomas NHS Foundation Trust,18/02/2022,(86300) Healthcare from non-NHS bodies,(id:860419) Acute & General Medicine,SELDOC LTD,id:14824667    ,   -20853.35
Department of Health,Guys and St Thomas NHS Foundation Trust,18/02/2022,(81100) Dressings,(id:41868) Acute & General Medicine,NHS SUPPLY CHAIN (MAIDSTONE),id:14850234   , 245.82
Department of Health,Guys and St Thomas NHS Foundation Trust,18/02/2022,(82700) Uniforms & Clothing,(id:41868) Acute & General Medicine,NHS SUPPLY CHAIN (MAIDSTONE),id:14813451   ,  23.76
Department of Health,Guys and St Thomas NHS Foundation Trust,18/02/2022,(83400) Office Equipment,(id:41868) Acute & General Medicine,NHS SUPPLY CHAIN (MAIDSTONE),id:14813451 , 160.81
Department of Health,Guys and St Thomas NHS Foundation Trust,18/02/2022,(82700) Uniforms & Clothing,(id:41869) Acute & General Medicine,NHS SUPPLY CHAIN (MAIDSTONE),id:14813451   ,  52.97
Department of Health,Guys and St Thomas NHS Foundation Trust,25/02/2022,(84500) Establishment,(id:41869) Acute & General Medicine,PLINTH MEDICAL LTD,id:14926328    ,1248.00
Department of Health,Guys and St Thomas NHS Foundation Trust,04/02/2022,(84500) Establishment,(id:41869) Acute & General Medicine,DON RUFFLES LTD,id:14856095  , 892.80
Department of Health,Guys and St Thomas NHS Foundation Trust,18/02/2022,(84500) Establishment,(id:41869) Acute & General Medicine,LAZERBEAM FIRE AND SECURITY LTD,id:14908535 ,2109.80
Department of Health,Guys and St Thomas NHS Foundation Trust,18/02/2022,(82800) Bedding & Linen,(id:41869) Acute & General Medicine,NHS SUPPLY CHAIN (MAIDSTONE),id:14850234  , 547.23
Department of Health,Guys and St Thomas NHS Foundation Trust,18/02/2022,(82600) Uniforms & Clothing,(id:41882) Acute & General Medicine,NHS SUPPLY CHAIN (MAIDSTONE),id:14795733   ,   8.42
Department of Health,Guys and St Thomas NHS Foundation Trust,18/02/2022,(83400) Office Equipment,(id:41882) Acute & General Medicine,NHS SUPPLY CHAIN (MAIDSTONE),id:14813451 ,   4.38
Department of Health,Guys and St Thomas NHS Foundation Trust,18/02/2022,(81100) Dressings,(id:41882) Acute & General Medicine,NHS SUPPLY CHAIN (MAIDSTONE),id:14813451   ,   2.10
Department of Health,Guys and St Thomas NHS Foundation Trust,18/02/2022,(81400) Medical Surgical Supplies & Equipment,(id:41882) Acute & General Medicine,SMART MEDICAL,id:14934614,2315.00
Department of Health,Guys and St Thomas NHS Foundation Trust,18/02/2022,(81200) Medical Surgical Supplies & Equipment,(id:41882) Acute & General Medicine,NHS SUPPLY CHAIN (MAIDSTONE),id:14813451,  85.58
Department of Health,Guys and St Thomas NHS Foundation Trust,18/02/2022,(81100) Dressings,(id:41878) Acute & General Medicine,NHS SUPPLY CHAIN (MAIDSTONE),id:14795733   ,  60.06
Department of Health,Guys and St Thomas NHS Foundation Trust,11/02/2022,(84500) Establishment,(id:41878) Acute & General Medicine,OT GROUP LTD,id:14878576, 597.96
Department of Health,Guys and St Thomas NHS Foundation Trust,25/02/2022,(50522) Unqualified Nursing Staff,(id:41878) Acute & General Medicine,GLOBE LOCUMS LTD,id:14972791    , 505.85
Department of Health,Guys and St Thomas NHS Foundation Trust,11/02/2022,(50522) Unqualified Nursing Staff,(id:41878) Acute & General Medicine,GLOBE LOCUMS LTD,id:14904644    , 249.52
Department of Health,Guys and St Thomas NHS Foundation Trust,18/02/2022,(81225) Medical Surgical Supplies & Equipment,(id:41878) Acute & General Medicine,NHS SUPPLY CHAIN (MAIDSTONE),id:14795733,   3.12
Department of Health,Guys and St Thomas NHS Foundation Trust,18/02/2022,(81700) Lab Equipment Purchase,(id:41878) Acute & General Medicine,NHS SUPPLY CHAIN (MAIDSTONE),id:14850234,   3.10
Department of Health,Guys and St Thomas NHS Foundation Trust,25/02/2022,(50522) Unqualified Nursing Staff,(id:41879) Acute & General Medicine,GLOBE LOCUMS LTD,id:14972834    , 224.50
Department of Health,Guys and St Thomas NHS Foundation Trust,04/02/2022,(50522) Unqualified Nursing Staff,(id:41879) Acute & General Medicine,CARE PROVIDERS HEALTHCARE,id:14862932, 591.03
Department of Health,Guys and St Thomas NHS Foundation Trust,18/02/2022,(81200) Medical Surgical Supplies & Equipment,(id:41880) Acute & General Medicine,NHS SUPPLY CHAIN (MAIDSTONE),id:14795733, 684.54
Department of Health,Guys and St Thomas NHS Foundation Trust,25/02/2022,(50522) Unqualified Nursing Staff,(id:41881) Acute & General Medicine,GLOBE LOCUMS LTD,id:14972824    , 222.60
Department of Health,Guys and St Thomas NHS Foundation Trust,25/02/2022,(50522) Unqualified Nursing Staff,(id:41881) Acute & General Medicine,MSI GROUP LTD,id:14970024  , 477.48
Department of Health,Guys and St Thomas NHS Foundation Trust,18/02/2022,(50522) Unqualified Nursing Staff,(id:41881) Acute & General Medicine,GLOBE LOCUMS LTD,id:14931669    , 445.21
Department of Health,Guys and St Thomas NHS Foundation Trust,18/02/2022,(81225) Medical Surgical Supplies & Equipment,(id:41881) Acute & General Medicine,NHS SUPPLY CHAIN (MAIDSTONE),id:14795733,  33.46
Department of Health,Guys and St Thomas NHS Foundation Trust,18/02/2022,(81225) Medical Surgical Supplies & Equipment,(id:41881) Acute & General Medicine,NHS SUPPLY CHAIN (MAIDSTONE),id:14813451,  25.38
Department of Health,Guys and St Thomas NHS Foundation Trust,18/02/2022,(81275) Medical Surgical Supplies & Equipment,(id:41881) Acute & General Medicine,NHS SUPPLY CHAIN (MAIDSTONE),id:14795733,  14.46
Department of Health,Guys and St Thomas NHS Foundation Trust,11/02/2022,(89200) Other - Patient travel,(id:1435419) Acute & General Medicine,TRANSPORT TRADING LTD,id:14898174, 910.00
Department of Health,Guys and St Thomas NHS Foundation Trust,18/02/2022,(83500) Furniture & Fittings,(id:41968) Inpatient Services,OCURA HEALTHCARE FURNITURE,id:14787910,7537.32
Department of Health,Guys and St Thomas NHS Foundation Trust,18/02/2022,(82800) Bedding & Linen,(id:42025) Dental Services,NHS SUPPLY CHAIN (MAIDSTONE),id:14795733 , 107.82
Department of Health,Guys and St Thomas NHS Foundation Trust,11/02/2022,(81200) Medical Surgical Supplies & Equipment,(id:42037) Dental Services,3M UNITED KINGDOM PLC,id:14853575 , 949.20
Department of Health,Guys and St Thomas NHS Foundation Trust,11/02/2022,(81200) Medical Surgical Supplies & Equipment,(id:42037) Dental Services,3M UNITED KINGDOM PLC,id:14849401 , 970.20
Department of Health,Guys and St Thomas NHS Foundation Trust,18/02/2022,(81200) Medical Surgical Supplies & Equipment,(id:42037) Dental Services,HENRY SCHEIN,id:14901915, 912.41
Department of Health,Guys and St Thomas NHS Foundation Trust,18/02/2022,(81200) Medical Surgical Supplies & Equipment,(id:42005) Dental Services,NHS SUPPLY CHAIN (MAIDSTONE),id:14850234    , 862.22
Department of Health,Guys and St Thomas NHS Foundation Trust,18/02/2022,(82600) Uniforms & Clothing,(id:42007) Dental Services,GRANTLEIGH LTD,id:14891569 ,7190.00
Department of Health,Guys and St Thomas NHS Foundation Trust,18/02/2022,(81100) Dressings,(id:42007) Dental Services,NHS SUPPLY CHAIN (MAIDSTONE),id:14795733  ,   2.26
Department of Health,Guys and St Thomas NHS Foundation Trust,18/02/2022,(81200) Medical Surgical Supplies & Equipment,(id:42007) Dental Services,NHS SUPPLY CHAIN (MAIDSTONE),id:14850234    ,2053.32
Department of Health,Guys and St Thomas NHS Foundation Trust,18/02/2022,(81700) Lab Equipment Purchase,(id:42007) Dental Services,NHS SUPPLY CHAIN (MAIDSTONE),id:14850234    ,  15.72
Department of Health,Guys and St Thomas NHS Foundation Trust,11/02/2022,(81200) Medical Surgical Supplies & Equipment,(id:42027) Dental Services,HENRY SCHEIN,id:14845816, 784.31
Department of Health,Guys and St Thomas NHS Foundation Trust,18/02/2022,(82800) Bedding & Linen,(id:42027) Dental Services,NHS SUPPLY CHAIN (MAIDSTONE),id:14795733 , 129.38
Department of Health,Guys and St Thomas NHS Foundation Trust,18/02/2022,(81200) Medical Surgical Supplies & Equipment,(id:42028) Dental Services,NHS SUPPLY CHAIN (MAIDSTONE),id:14850234    , 562.49
Department of Health,Guys and St Thomas NHS Foundation Trust,25/02/2022,(81500) X Ray Equipment Purchase,(id:42014) Dental Services,SIDENT LTD,id:14936784,4788.00
Department of Health,Guys and St Thomas NHS Foundation Trust,25/02/2022,(81200) Medical Surgical Supplies & Equipment,(id:42035) Dental Services,DENTSPLY IH LTD,id:14774033  , 708.86
Department of Health,Guys and St Thomas NHS Foundation Trust,11/02/2022,(81200) Medical Surgical Supplies & Equipment,(id:42035) Dental Services,DENTSPLY IH LTD,id:14890534  , 812.81
Department of Health,Guys and St Thomas NHS Foundation Trust,11/02/2022,(81200) Medical Surgical Supplies & Equipment,(id:42035) Dental Services,DENTSPLY IH LTD,id:14888862  ,1075.48
Department of Health,Guys and St Thomas NHS Foundation Trust,11/02/2022,(81200) Medical Surgical Supplies & Equipment,(id:42035) Dental Services,GEISTLICH SONS LTD,id:14908134    , 926.15
Department of Health,Guys and St Thomas NHS Foundation Trust,18/02/2022,(81200) Medical Surgical Supplies & Equipment,(id:42035) Dental Services,STRAUMANN LTD,id:14921994    , 673.14
Department of Health,Guys and St Thomas NHS Foundation Trust,18/02/2022,(81200) Medical Surgical Supplies & Equipment,(id:42035) Dental Services,DENTSPLY IH LTD,id:14909976  , 568.28
Department of Health,Guys and St Thomas NHS Foundation Trust,11/02/2022,(83630) IT Costs,(id:42035) Dental Services,SMARTSURVEY LTD,id:14910106 ,1224.00
Department of Health,Guys and St Thomas NHS Foundation Trust,18/02/2022,(81700) Lab Equipment Purchase,(id:4622420) Dental Services,NHS SUPPLY CHAIN (MAIDSTONE),id:14813451  ,  97.02
Department of Health,Guys and St Thomas NHS Foundation Trust,25/02/2022,(82600) Uniforms & Clothing,(id:1634429) Dental Services,OT GROUP LTD,id:14954595 ,3679.92
Department of Health,Guys and St Thomas NHS Foundation Trust,04/02/2022,(81200) Medical Surgical Supplies & Equipment,(id:1634429) Dental Services,HENRY SCHEIN,id:14816586   ,1183.51
Department of Health,Guys and St Thomas NHS Foundation Trust,04/02/2022,(81200) Medical Surgical Supplies & Equipment,(id:1634429) Dental Services,HENRY SCHEIN,id:14816691   , 884.08
Department of Health,Guys and St Thomas NHS Foundation Trust,11/02/2022,(81200) Medical Surgical Supplies & Equipment,(id:1634429) Dental Services,HENRY SCHEIN,id:14819254   ,3628.48
Department of Health,Guys and St Thomas NHS Foundation Trust,18/02/2022,(81200) Medical Surgical Supplies & Equipment,(id:1634432) Dental Services,HENRY SCHEIN,id:14903996   , 790.33
Department of Health,Guys and St Thomas NHS Foundation Trust,18/02/2022,(81200) Medical Surgical Supplies & Equipment,(id:1634432) Dental Services,NHS SUPPLY CHAIN (MAIDSTONE),id:14795733  , 249.52
Department of Health,Guys and St Thomas NHS Foundation Trust,11/02/2022,(81200) Medical Surgical Supplies & Equipment,(id:1634433) Dental Services,HENRY SCHEIN,id:14898858   , 950.52
Department of Health,Guys and St Thomas NHS Foundation Trust,25/02/2022,(82600) Uniforms & Clothing,(id:1634433) Dental Services,OT GROUP LTD,id:14955652 ,1471.96
Department of Health,Guys and St Thomas NHS Foundation Trust,18/02/2022,(81200) Medical Surgical Supplies & Equipment,(id:42011) Dental Services,NHS SUPPLY CHAIN (MAIDSTONE),id:14813451    , 156.90
Department of Health,Guys and St Thomas NHS Foundation Trust,11/02/2022,(89440) Research and Development,(id:4539419) Specialist Ambulatory Services,GL ASSESSMENT,id:14901474, 552.00
Department of Health,Guys and St Thomas NHS Foundation Trust,11/02/2022,(89000) Other - Training courses and conferences,(id:2862419) Specialist Ambulatory Services,PROCREATION UK LTD,id:14898115    ,3925.00
Department of Health,Guys and St Thomas NHS Foundation Trust,08/02/2022,(84400) Transport,(id:42193) Specialist Ambulatory Services,FEDERAL EXPRESS EUROPE INC,id:14849646    ,1057.79
Department of Health,Guys and St Thomas NHS Foundation Trust,11/02/2022,(81700) Lab Equipment Purchase,(id:42193) Specialist Ambulatory Services,GE HEALTHCARE (50652318),id:14894454   , 756.00
Department of Health,Guys and St Thomas NHS Foundation Trust,18/02/2022,(81000) Surgical Appliances,(id:42193) Specialist Ambulatory Services,LBG MEDICAL LTD,id:14888655, 523.74
Department of Health,Guys and St Thomas NHS Foundation Trust,25/02/2022,(84500) Establishment,(id:42358) Specialist Ambulatory Services,OT GROUP LTD,id:14955821    ,1910.22
Department of Health,Guys and St Thomas NHS Foundation Trust,25/02/2022,(84500) Establishment,(id:42358) Specialist Ambulatory Services,OT GROUP LTD,id:14955719    , 577.00
Department of Health,Guys and St Thomas NHS Foundation Trust,11/02/2022,(84500) Establishment,(id:42100) Specialist Ambulatory Services,OT GROUP LTD,id:14862294    , 819.21
Department of Health,Guys and St Thomas NHS Foundation Trust,25/02/2022,(81275) Medical Surgical Supplies & Equipment,(id:42088) Specialist Ambulatory Services,CANUTE PHARMA LTD,id:14937079, 598.86
Department of Health,Guys and St Thomas NHS Foundation Trust,18/02/2022,(82800) Bedding & Linen,(id:42091) Specialist Ambulatory Services,NHS SUPPLY CHAIN (MAIDSTONE),id:14813451 , 230.16
Department of Health,Guys and St Thomas NHS Foundation Trust,18/02/2022,(81100) Dressings,(id:42091) Specialist Ambulatory Services,NHS SUPPLY CHAIN (MAIDSTONE),id:14813451  ,2138.76
Department of Health,Guys and St Thomas NHS Foundation Trust,18/02/2022,(82000) Provisions & Kitchens,(id:3608419) Specialist Ambulatory Services,NHS SUPPLY CHAIN (MAIDSTONE),id:14795733   ,  11.76
Department of Health,Guys and St Thomas NHS Foundation Trust,18/02/2022,(82800) Bedding & Linen,(id:42079) Specialist Ambulatory Services,NHS SUPPLY CHAIN (MAIDSTONE),id:14813451 ,  86.58
Department of Health,Guys and St Thomas NHS Foundation Trust,04/02/2022,(80010) Drug Costs,(id:42079) Specialist Ambulatory Services,THERAKOS (UK) LIMITED,id:14820234   ,    11286.00
Department of Health,Guys and St Thomas NHS Foundation Trust,18/02/2022,(81200) Medical Surgical Supplies & Equipment,(id:42079) Specialist Ambulatory Services,NHS SUPPLY CHAIN (MAIDSTONE),id:14795733    , 608.43
Department of Health,Guys and St Thomas NHS Foundation Trust,18/02/2022,(82800) Bedding & Linen,(id:42097) Specialist Ambulatory Services,NHS SUPPLY CHAIN (MAIDSTONE),id:14795733 ,  21.56
Department of Health,Guys and St Thomas NHS Foundation Trust,18/02/2022,(83400) Office Equipment,(id:42097) Specialist Ambulatory Services,NHS SUPPLY CHAIN (MAIDSTONE),id:14850234,  14.08
Department of Health,Guys and St Thomas NHS Foundation Trust,18/02/2022,(84400) Transport,(id:42097) Specialist Ambulatory Services,CITYSPRINT (UK) LTD,id:14931603 , 718.19
Department of Health,Guys and St Thomas NHS Foundation Trust,18/02/2022,(81700) Lab Equipment Purchase,(id:42066) Specialist Ambulatory Services,NHS SUPPLY CHAIN (MAIDSTONE),id:14813451    ,  53.40
Department of Health,Guys and St Thomas NHS Foundation Trust,18/02/2022,(83500) Furniture & Fittings,(id:391417) Specialist Ambulatory Services,NHS SUPPLY CHAIN (MAIDSTONE),id:14850234,1944.00
Department of Health,Guys and St Thomas NHS Foundation Trust,18/02/2022,(81200) Medical Surgical Supplies & Equipment,(id:42064) Specialist Ambulatory Services,NHS SUPPLY CHAIN (MAIDSTONE),id:14795733    , 215.34
Department of Health,Guys and St Thomas NHS Foundation Trust,25/02/2022,(83610) IT Costs,(id:42061) Specialist Ambulatory Services,COMPUTACENTER UK LTD,id:14245973 ,5734.67
Department of Health,Guys and St Thomas NHS Foundation Trust,25/02/2022,(83410) Office Equipment,(id:42061) Specialist Ambulatory Services,RICOH UK LTD,id:14972548 ,1593.79
Department of Health,Guys and St Thomas NHS Foundation Trust,11/02/2022,(84500) Establishment,(id:42057) Specialist Ambulatory Services,OT GROUP LTD,id:14884517    , 729.00
Department of Health,Guys and St Thomas NHS Foundation Trust,25/02/2022,(84656) Establishment,(id:42057) Specialist Ambulatory Services,DICT8 LIMITED,id:14909154   ,1505.40
Department of Health,Guys and St Thomas NHS Foundation Trust,18/02/2022,(81200) Medical Surgical Supplies & Equipment,(id:42055) Specialist Ambulatory Services,NHS SUPPLY CHAIN (MAIDSTONE),id:14813451    ,   7.00
Department of Health,Guys and St Thomas NHS Foundation Trust,18/02/2022,(81200) Medical Surgical Supplies & Equipment,(id:42050) Specialist Ambulatory Services,NHS SUPPLY CHAIN (MAIDSTONE),id:14850234    , 294.54
Department of Health,Guys and St Thomas NHS Foundation Trust,18/02/2022,(81200) Medical Surgical Supplies & Equipment,(id:42050) Specialist Ambulatory Services,NHS SUPPLY CHAIN (MAIDSTONE),id:14813451    ,2186.33
Department of Health,Guys and St Thomas NHS Foundation Trust,18/02/2022,(81275) Medical Surgical Supplies & Equipment,(id:42050) Specialist Ambulatory Services,NHS SUPPLY CHAIN (MAIDSTONE),id:14813451    , 136.03
Department of Health,Guys and St Thomas NHS Foundation Trust,18/02/2022,(81700) Lab Equipment Purchase,(id:42050) Specialist Ambulatory Services,NHS SUPPLY CHAIN (MAIDSTONE),id:14850234    , 278.40
Department of Health,Guys and St Thomas NHS Foundation Trust,25/02/2022,(53680) Pharmacists,(id:42165) Pharmacy,LEWISHAM AND GREENWICH NHS TRUST,id:14797595   ,5818.00
Department of Health,Guys and St Thomas NHS Foundation Trust,04/02/2022,(53680) Pharmacists,(id:42165) Pharmacy,LEWISHAM AND GREENWICH NHS TRUST,id:14683041   ,    47631.00
Department of Health,Guys and St Thomas NHS Foundation Trust,27/02/2022,(53682) Pharmacists,(id:42165) Pharmacy,PRICEWATERHOUSECOOPERS LLP,id:14977054    ,1645.12
Department of Health,Guys and St Thomas NHS Foundation Trust,11/02/2022,(53672) Pharmacists,(id:42165) Pharmacy,PRICEWATERHOUSECOOPERS LLP,id:14911634    ,1322.82
Department of Health,Guys and St Thomas NHS Foundation Trust,25/02/2022,(89270) Establishment,(id:42159) Pharmacy,DATA INTEGRAL LTD,id:14955843 ,3187.50
Department of Health,Guys and St Thomas NHS Foundation Trust,11/02/2022,(81200) Medical Surgical Supplies & Equipment,(id:42159) Pharmacy,WICKHAM MICRO LIMITED,id:14900998   , 646.00
Department of Health,Guys and St Thomas NHS Foundation Trust,27/02/2022,(54052) Technical Officers,(id:42159) Pharmacy,PRICEWATERHOUSECOOPERS LLP,id:14977074  ,1869.79
Department of Health,Guys and St Thomas NHS Foundation Trust,11/02/2022,(55062) Admin & Clerical,(id:42159) Pharmacy,HYPER RECRUITMENT SOLUTIONS LTD,id:14904318    ,1251.90
Department of Health,Guys and St Thomas NHS Foundation Trust,11/02/2022,(55122) Admin & Clerical,(id:42159) Pharmacy,HYPER RECRUITMENT SOLUTIONS LTD,id:14904507    ,3000.00
Department of Health,Guys and St Thomas NHS Foundation Trust,11/02/2022,(55122) Admin & Clerical,(id:42159) Pharmacy,HYPER RECRUITMENT SOLUTIONS LTD,id:14904317    ,5964.00
Department of Health,Guys and St Thomas NHS Foundation Trust,18/02/2022,(81275) Medical Surgical Supplies & Equipment,(id:42159) Pharmacy,SCI-TEK INSTRUMENTS LTD,id:14897054 ,1062.58
Department of Health,Guys and St Thomas NHS Foundation Trust,25/02/2022,(81200) Medical Surgical Supplies & Equipment,(id:581409) Pharmacy,DURBIN PLC,id:14924720   ,1955.18
Department of Health,Guys and St Thomas NHS Foundation Trust,11/02/2022,(81200) Medical Surgical Supplies & Equipment,(id:581409) Pharmacy,NITRITEX LTD,id:14856754 ,1597.58
Department of Health,Guys and St Thomas NHS Foundation Trust,25/02/2022,(83400) Office Equipment,(id:581409) Pharmacy,MICRONCLEAN (FENLAND LAUNDRIES),id:14961574   , 806.88
Department of Health,Guys and St Thomas NHS Foundation Trust,18/02/2022,(83400) Office Equipment,(id:581409) Pharmacy,NHS SUPPLY CHAIN (MAIDSTONE),id:14795733 ,  16.78
Department of Health,Guys and St Thomas NHS Foundation Trust,11/02/2022,(84500) Establishment,(id:581409) Pharmacy,OT GROUP LTD,id:14884507, 667.20
Department of Health,Guys and St Thomas NHS Foundation Trust,27/02/2022,(53632) Pharmacists,(id:581409) Pharmacy,PRICEWATERHOUSECOOPERS LLP,id:14977054   ,2001.63
Department of Health,Guys and St Thomas NHS Foundation Trust,11/02/2022,(53662) Pharmacists,(id:581409) Pharmacy,PRICEWATERHOUSECOOPERS LLP,id:14911676   ,3465.76
Department of Health,Guys and St Thomas NHS Foundation Trust,04/02/2022,(83130) Energy Costs,(id:42154) Pharmacy,BOC LTD :02107500,id:14850903  ,    23310.16
Department of Health,Guys and St Thomas NHS Foundation Trust,27/02/2022,(53632) Pharmacists,(id:42156) Pharmacy,PRICEWATERHOUSECOOPERS LLP,id:14977054    , 389.67
Department of Health,Guys and St Thomas NHS Foundation Trust,11/02/2022,(53672) Pharmacists,(id:42164) Pharmacy,PRICEWATERHOUSECOOPERS LLP,id:14911634    ,6294.66
Department of Health,Guys and St Thomas NHS Foundation Trust,25/02/2022,(84501) Establishment,(id:42217) Medical Specialties,BANNER GROUP LTD,id:14962774 ,2147.36
Department of Health,Guys and St Thomas NHS Foundation Trust,25/02/2022,(82000) Provisions & Kitchens,(id:42251) Medical Specialties,AAH PHARMACEUTICALS LTD,id:14872194 , 584.58
Department of Health,Guys and St Thomas NHS Foundation Trust,11/02/2022,(51262) Dieticians,(id:42251) Medical Specialties,PRICEWATERHOUSECOOPERS LLP,id:14911676    ,1610.76
Department of Health,Guys and St Thomas NHS Foundation Trust,18/02/2022,(83400) Office Equipment,(id:4590420) Medical Specialties,FOOD FOR PURPOSE FFP CIC,id:14910395   ,1080.00
Department of Health,Guys and St Thomas NHS Foundation Trust,18/02/2022,(83400) Office Equipment,(id:42221) Medical Specialties,NHS SUPPLY CHAIN (MAIDSTONE),id:14795733 ,   4.26
Department of Health,Guys and St Thomas NHS Foundation Trust,25/02/2022,(81200) Medical Surgical Supplies & Equipment,(id:42221) Medical Specialties,JOHNSON & JOHNSON MEDICAL LTD,id:14872270    , 533.15
Department of Health,Guys and St Thomas NHS Foundation Trust,25/02/2022,(84500) Establishment,(id:42223) Medical Specialties,OT GROUP LTD,id:14953595, 524.06
Department of Health,Guys and St Thomas NHS Foundation Trust,25/02/2022,(81200) Medical Surgical Supplies & Equipment,(id:42223) Medical Specialties,BLINK MEDICAL LTD,id:14789904 ,1027.20
Department of Health,Guys and St Thomas NHS Foundation Trust,11/02/2022,(81200) Medical Surgical Supplies & Equipment,(id:42223) Medical Specialties,DORC LTD,id:14850960, 864.00
Department of Health,Guys and St Thomas NHS Foundation Trust,18/02/2022,(81200) Medical Surgical Supplies & Equipment,(id:42223) Medical Specialties,ULTRAVISION CLPL,id:14856134  ,3472.28
Department of Health,Guys and St Thomas NHS Foundation Trust,25/02/2022,(89600) Non-Healthcare from other NHS bodies,(id:42223) Medical Specialties,NHS BLOOD AND TRANSPLANT,id:14970534,1353.72
Department of Health,Guys and St Thomas NHS Foundation Trust,04/02/2022,(84500) Establishment,(id:42208) Medical Specialties,OT GROUP LTD,id:14857134, 500.70
Department of Health,Guys and St Thomas NHS Foundation Trust,25/02/2022,(81200) Medical Surgical Supplies & Equipment,(id:42208) Medical Specialties,MEDTRONIC LTD,id:14872276,1261.26
Department of Health,Guys and St Thomas NHS Foundation Trust,25/02/2022,(81200) Medical Surgical Supplies & Equipment,(id:42208) Medical Specialties,MEDTRONIC LTD,id:14812068, 850.50
Department of Health,Guys and St Thomas NHS Foundation Trust,25/02/2022,(81200) Medical Surgical Supplies & Equipment,(id:42208) Medical Specialties,DEXCOM INTERNATIONAL LTD,id:14895214    , 600.00
Department of Health,Guys and St Thomas NHS Foundation Trust,25/02/2022,(81200) Medical Surgical Supplies & Equipment,(id:42208) Medical Specialties,DEXCOM INTERNATIONAL LTD,id:14894714    , 600.00
Department of Health,Guys and St Thomas NHS Foundation Trust,25/02/2022,(81200) Medical Surgical Supplies & Equipment,(id:42208) Medical Specialties,DEXCOM INTERNATIONAL LTD,id:14894874    , 600.00
Department of Health,Guys and St Thomas NHS Foundation Trust,25/02/2022,(81200) Medical Surgical Supplies & Equipment,(id:42208) Medical Specialties,DEXCOM INTERNATIONAL LTD,id:14895314    , 600.00
Department of Health,Guys and St Thomas NHS Foundation Trust,25/02/2022,(81200) Medical Surgical Supplies & Equipment,(id:42208) Medical Specialties,DEXCOM INTERNATIONAL LTD,id:14895337    , 600.00
Department of Health,Guys and St Thomas NHS Foundation Trust,25/02/2022,(81200) Medical Surgical Supplies & Equipment,(id:42208) Medical Specialties,DEXCOM INTERNATIONAL LTD,id:14845634    , 600.00
Department of Health,Guys and St Thomas NHS Foundation Trust,25/02/2022,(81200) Medical Surgical Supplies & Equipment,(id:42208) Medical Specialties,DEXCOM INTERNATIONAL LTD,id:14895657    , 600.00
Department of Health,Guys and St Thomas NHS Foundation Trust,25/02/2022,(81200) Medical Surgical Supplies & Equipment,(id:42208) Medical Specialties,DEXCOM INTERNATIONAL LTD,id:14895659    , 600.00
Department of Health,Guys and St Thomas NHS Foundation Trust,25/02/2022,(81200) Medical Surgical Supplies & Equipment,(id:42208) Medical Specialties,DEXCOM INTERNATIONAL LTD,id:14895434    , 600.00
Department of Health,Guys and St Thomas NHS Foundation Trust,25/02/2022,(81200) Medical Surgical Supplies & Equipment,(id:42208) Medical Specialties,DEXCOM INTERNATIONAL LTD,id:14895827    , 600.00
Department of Health,Guys and St Thomas NHS Foundation Trust,25/02/2022,(81200) Medical Surgical Supplies & Equipment,(id:42208) Medical Specialties,DEXCOM INTERNATIONAL LTD,id:14929603    , 600.00
Department of Health,Guys and St Thomas NHS Foundation Trust,25/02/2022,(81200) Medical Surgical Supplies & Equipment,(id:42208) Medical Specialties,DEXCOM INTERNATIONAL LTD,id:14929608    , 600.00
Department of Health,Guys and St Thomas NHS Foundation Trust,25/02/2022,(81200) Medical Surgical Supplies & Equipment,(id:42208) Medical Specialties,DEXCOM INTERNATIONAL LTD,id:14895818    , 600.00
Department of Health,Guys and St Thomas NHS Foundation Trust,25/02/2022,(81200) Medical Surgical Supplies & Equipment,(id:42208) Medical Specialties,DEXCOM INTERNATIONAL LTD,id:14894569    , 600.00
Department of Health,Guys and St Thomas NHS Foundation Trust,25/02/2022,(81200) Medical Surgical Supplies & Equipment,(id:42208) Medical Specialties,DEXCOM INTERNATIONAL LTD,id:14894576    , 600.00
Department of Health,Guys and St Thomas NHS Foundation Trust,11/02/2022,(81200) Medical Surgical Supplies & Equipment,(id:42208) Medical Specialties,MEDTRONIC LTD,id:14731878,1577.05
Department of Health,Guys and St Thomas NHS Foundation Trust,18/02/2022,(81200) Medical Surgical Supplies & Equipment,(id:42208) Medical Specialties,MEDTRONIC LTD,id:14770135,1237.43
Department of Health,Guys and St Thomas NHS Foundation Trust,18/02/2022,(81200) Medical Surgical Supplies & Equipment,(id:42208) Medical Specialties,MEDTRONIC LTD,id:14770136, 762.77
Department of Health,Guys and St Thomas NHS Foundation Trust,18/02/2022,(81200) Medical Surgical Supplies & Equipment,(id:42208) Medical Specialties,AIR LIQUIDE (HOMECARE) LTD,id:14813514  , 828.00
Department of Health,Guys and St Thomas NHS Foundation Trust,18/02/2022,(81200) Medical Surgical Supplies & Equipment,(id:42208) Medical Specialties,MEDTRONIC LTD,id:14806968, 567.00
Department of Health,Guys and St Thomas NHS Foundation Trust,18/02/2022,(81200) Medical Surgical Supplies & Equipment,(id:42208) Medical Specialties,MEDTRONIC LTD,id:14806976, 850.50
Department of Health,Guys and St Thomas NHS Foundation Trust,18/02/2022,(81200) Medical Surgical Supplies & Equipment,(id:42208) Medical Specialties,AIR LIQUIDE (HOMECARE) LTD,id:14888515  ,3366.00
Department of Health,Guys and St Thomas NHS Foundation Trust,18/02/2022,(83400) Office Equipment,(id:42208) Medical Specialties,NHS SUPPLY CHAIN (MAIDSTONE),id:14850234 ,  30.96
Department of Health,Guys and St Thomas NHS Foundation Trust,18/02/2022,(81200) Medical Surgical Supplies & Equipment,(id:42209) Medical Specialties,AIR LIQUIDE (HOMECARE) LTD,id:14888515  , 640.80
Department of Health,Guys and St Thomas NHS Foundation Trust,18/02/2022,(81200) Medical Surgical Supplies & Equipment,(id:42213) Medical Specialties,NHS SUPPLY CHAIN (MAIDSTONE),id:14813451, 602.17
Department of Health,Guys and St Thomas NHS Foundation Trust,18/02/2022,(81100) Dressings,(id:42213) Medical Specialties,NHS SUPPLY CHAIN (MAIDSTONE),id:14813451   ,1559.15
Department of Health,Guys and St Thomas NHS Foundation Trust,25/02/2022,(83420) Office Equipment,(id:42206) Medical Specialties,TECHNIBLINDS LTD,id:14964848   , 642.44
Department of Health,Guys and St Thomas NHS Foundation Trust,18/02/2022,(80010) Drug Costs,(id:42204) Medical Specialties,THE LONDON UPRIGHT MRI CENTRE:70838400,id:14926196  , 600.00
Department of Health,Guys and St Thomas NHS Foundation Trust,11/02/2022,(81000) Surgical Appliances,(id:42204) Medical Specialties,TALAR MADE ORTHOTICS LTD,id:14888869  ,  43.66
Department of Health,Guys and St Thomas NHS Foundation Trust,11/02/2022,(84500) Establishment,(id:302405) Medical Specialties,OT GROUP LTD,id:14884555    , 539.61
Department of Health,Guys and St Thomas NHS Foundation Trust,18/02/2022,(81200) Medical Surgical Supplies & Equipment,(id:41937) Medical Specialties,NHS SUPPLY CHAIN (MAIDSTONE),id:14850234,   113101.61
Department of Health,Guys and St Thomas NHS Foundation Trust,18/02/2022,(81200) Medical Surgical Supplies & Equipment,(id:41937) Medical Specialties,NHS SUPPLY CHAIN (MAIDSTONE),id:14795733,    82597.52
Department of Health,Guys and St Thomas NHS Foundation Trust,11/02/2022,(84656) Establishment,(id:41937) Medical Specialties,DICT8 LIMITED,id:14909174    ,1368.48
Department of Health,Guys and St Thomas NHS Foundation Trust,18/02/2022,(81225) Medical Surgical Supplies & Equipment,(id:42232) Therapies and Rehabilitation,NHS SUPPLY CHAIN (MAIDSTONE),id:14813451 ,  14.06
Department of Health,Guys and St Thomas NHS Foundation Trust,11/02/2022,(51872) Physiotherapists,(id:42234) Therapies and Rehabilitation,PRICEWATERHOUSECOOPERS LLP,id:14911676    ,2010.19
Department of Health,Guys and St Thomas NHS Foundation Trust,04/02/2022,(81100) Dressings,(id:42239) Therapies and Rehabilitation,PROMEDICS ORTHOPAEDICS LTD,id:14846124 , 759.36
Department of Health,Guys and St Thomas NHS Foundation Trust,18/02/2022,(83400) Office Equipment,(id:42239) Therapies and Rehabilitation,NHS SUPPLY CHAIN (MAIDSTONE),id:14813451  ,  37.56
Department of Health,Guys and St Thomas NHS Foundation Trust,18/02/2022,(83400) Office Equipment,(id:42240) Therapies and Rehabilitation,BANNER GROUP LTD,id:14911681    , 528.66
Department of Health,Guys and St Thomas NHS Foundation Trust,11/02/2022,(51472) Occupational Therapists,(id:42240) Therapies and Rehabilitation,PRICEWATERHOUSECOOPERS LLP,id:14911634  ,5773.55
Department of Health,Guys and St Thomas NHS Foundation Trust,25/02/2022,(81225) Medical Surgical Supplies & Equipment,(id:42240) Therapies and Rehabilitation,PERFORMANCE HEALTH INTERNATIONAL LTD (PATTERSON),id:14955689 , 759.12
Department of Health,Guys and St Thomas NHS Foundation Trust,18/02/2022,(81200) Medical Surgical Supplies & Equipment,(id:590530) Therapies and Rehabilitation,NHS SUPPLY CHAIN (MAIDSTONE),id:14813451,  63.95
Department of Health,Guys and St Thomas NHS Foundation Trust,27/02/2022,(51062) Chiropodists,(id:590490) Therapies and Rehabilitation,PRICEWATERHOUSECOOPERS LLP,id:14977074  ,1993.72
Department of Health,Guys and St Thomas NHS Foundation Trust,18/02/2022,(83400) Office Equipment,(id:590490) Therapies and Rehabilitation,NHS SUPPLY CHAIN (MAIDSTONE),id:14795733 ,  79.14
Department of Health,Guys and St Thomas NHS Foundation Trust,18/02/2022,(81225) Medical Surgical Supplies & Equipment,(id:590490) Therapies and Rehabilitation,NHS SUPPLY CHAIN (MAIDSTONE),id:14813451,  95.40
Department of Health,Guys and St Thomas NHS Foundation Trust,27/02/2022,(53062) Speech Therapists,(id:42248) Therapies and Rehabilitation,PRICEWATERHOUSECOOPERS LLP,id:14977054   , 899.37
Department of Health,Guys and St Thomas NHS Foundation Trust,18/02/2022,(81100) Dressings,(id:590496) Therapies and Rehabilitation,NHS SUPPLY CHAIN (MAIDSTONE),id:14813451   , 116.60
Department of Health,Guys and St Thomas NHS Foundation Trust,18/02/2022,(81200) Medical Surgical Supplies & Equipment,(id:590499) Therapies and Rehabilitation,INVACARE LTD,id:14922441 ,1944.00
Department of Health,Guys and St Thomas NHS Foundation Trust,18/02/2022,(81200) Medical Surgical Supplies & Equipment,(id:590499) Therapies and Rehabilitation,INVACARE LTD,id:14922479 ,3048.00
Department of Health,Guys and St Thomas NHS Foundation Trust,18/02/2022,(81200) Medical Surgical Supplies & Equipment,(id:590499) Therapies and Rehabilitation,INVACARE LTD,id:14922480 ,3556.80
Department of Health,Guys and St Thomas NHS Foundation Trust,18/02/2022,(89595) Non-Healthcare from Foundation Trusts,(id:590499) Therapies and Rehabilitation,KING'S COLLEGE HOSPITAL NHS FOUNDATION TRUST,id:14750758    ,    48317.42
Department of Health,Guys and St Thomas NHS Foundation Trust,25/02/2022,(83610) IT Costs,(id:590500) Therapies and Rehabilitation,SENSORY GURU LTD,id:14970707 , 819.00
Department of Health,Guys and St Thomas NHS Foundation Trust,04/02/2022,(83610) IT Costs,(id:590500) Therapies and Rehabilitation,CBC COMPUTER SYSTEMS LTD,id:14860274   ,1674.00
Department of Health,Guys and St Thomas NHS Foundation Trust,18/02/2022,(84400) Transport,(id:1042419) Therapies and Rehabilitation,CITYSPRINT (UK) LTD,id:14636958 , 494.79
Department of Health,Guys and St Thomas NHS Foundation Trust,18/02/2022,(81700) Lab Equipment Purchase,(id:1042419) Therapies and Rehabilitation,NHS SUPPLY CHAIN (MAIDSTONE),id:14850234    , 131.65
Department of Health,Guys and St Thomas NHS Foundation Trust,18/02/2022,(82800) Bedding & Linen,(id:42366) Clinical Imaging & Med Physics,NHS SUPPLY CHAIN (MAIDSTONE),id:14795733 , 229.28
Department of Health,Guys and St Thomas NHS Foundation Trust,18/02/2022,(81200) Medical Surgical Supplies & Equipment,(id:42366) Clinical Imaging & Med Physics,NHS SUPPLY CHAIN (MAIDSTONE),id:14813451    , 109.45
Department of Health,Guys and St Thomas NHS Foundation Trust,11/02/2022,(83400) Office Equipment,(id:42366) Clinical Imaging & Med Physics,LAZERBEAM FIRE AND SECURITY LTD,id:14908719  ,1280.00
Department of Health,Guys and St Thomas NHS Foundation Trust,18/02/2022,(81225) Medical Surgical Supplies & Equipment,(id:42366) Clinical Imaging & Med Physics,NHS SUPPLY CHAIN (MAIDSTONE),id:14850234    , 485.86
Department of Health,Guys and St Thomas NHS Foundation Trust,18/02/2022,(81100) Dressings,(id:42367) Clinical Imaging & Med Physics,NHS SUPPLY CHAIN (MAIDSTONE),id:14813451  , 267.77
Department of Health,Guys and St Thomas NHS Foundation Trust,04/02/2022,(81400) Medical Surgical Supplies & Equipment,(id:42367) Clinical Imaging & Med Physics,NHS SUPPLY CHAIN ( CAPITAL FUND ONLY),id:14849352,1852.29
Department of Health,Guys and St Thomas NHS Foundation Trust,25/02/2022,(81200) Medical Surgical Supplies & Equipment,(id:42367) Clinical Imaging & Med Physics,BOSTON SCIENTIFIC LTD,id:14896168 ,1518.00
Department of Health,Guys and St Thomas NHS Foundation Trust,25/02/2022,(81200) Medical Surgical Supplies & Equipment,(id:42367) Clinical Imaging & Med Physics,WL GORE & ASSOCIATES (UK) LTD,id:14958656   ,1618.80
Department of Health,Guys and St Thomas NHS Foundation Trust,04/02/2022,(81200) Medical Surgical Supplies & Equipment,(id:42367) Clinical Imaging & Med Physics,BOSTON SCIENTIFIC LTD,id:14790598 ,2570.40
Department of Health,Guys and St Thomas NHS Foundation Trust,11/02/2022,(81200) Medical Surgical Supplies & Equipment,(id:42367) Clinical Imaging & Med Physics,MEDTRONIC LTD,id:14819720    , 630.00
Department of Health,Guys and St Thomas NHS Foundation Trust,11/02/2022,(81200) Medical Surgical Supplies & Equipment,(id:42367) Clinical Imaging & Med Physics,MEDTRONIC LTD,id:14806902    , 840.00
Department of Health,Guys and St Thomas NHS Foundation Trust,11/02/2022,(81200) Medical Surgical Supplies & Equipment,(id:42367) Clinical Imaging & Med Physics,COOK UK LTD,id:14790837 ,1140.00
Department of Health,Guys and St Thomas NHS Foundation Trust,11/02/2022,(81200) Medical Surgical Supplies & Equipment,(id:42367) Clinical Imaging & Med Physics,BOSTON SCIENTIFIC LTD,id:14821986 ,3156.00
Department of Health,Guys and St Thomas NHS Foundation Trust,18/02/2022,(81200) Medical Surgical Supplies & Equipment,(id:42367) Clinical Imaging & Med Physics,BOSTON SCIENTIFIC LTD,id:14853525 , 866.40
Department of Health,Guys and St Thomas NHS Foundation Trust,18/02/2022,(81200) Medical Surgical Supplies & Equipment,(id:42367) Clinical Imaging & Med Physics,AQUILANT LTD,id:14888863, 540.00
Department of Health,Guys and St Thomas NHS Foundation Trust,18/02/2022,(81200) Medical Surgical Supplies & Equipment,(id:42367) Clinical Imaging & Med Physics,VYGON (UK) LTD,id:14832939   , 670.68
Department of Health,Guys and St Thomas NHS Foundation Trust,18/02/2022,(81200) Medical Surgical Supplies & Equipment,(id:42367) Clinical Imaging & Med Physics,AQUILANT LTD,id:14888872,3000.00
Department of Health,Guys and St Thomas NHS Foundation Trust,25/02/2022,(81235) Medical Surgical Supplies & Equipment,(id:42367) Clinical Imaging & Med Physics,BOSTON SCIENTIFIC LTD,id:14895867 , 252.00
Department of Health,Guys and St Thomas NHS Foundation Trust,18/02/2022,(81235) Medical Surgical Supplies & Equipment,(id:42367) Clinical Imaging & Med Physics,BOSTON SCIENTIFIC LTD,id:14863830 , 102.00
Department of Health,Guys and St Thomas NHS Foundation Trust,04/02/2022,(81230) Medical Surgical Supplies & Equipment,(id:42367) Clinical Imaging & Med Physics,TELEFLEX MEDICAL,id:14797854 , 840.00
Department of Health,Guys and St Thomas NHS Foundation Trust,18/02/2022,(81230) Medical Surgical Supplies & Equipment,(id:42367) Clinical Imaging & Med Physics,BOSTON SCIENTIFIC LTD,id:14853516 ,  96.00
Department of Health,Guys and St Thomas NHS Foundation Trust,18/02/2022,(81230) Medical Surgical Supplies & Equipment,(id:42367) Clinical Imaging & Med Physics,NHS SUPPLY CHAIN (MAIDSTONE),id:14850234    , 184.80
Department of Health,Guys and St Thomas NHS Foundation Trust,18/02/2022,(81230) Medical Surgical Supplies & Equipment,(id:42367) Clinical Imaging & Med Physics,TERUMO UK LTD,id:14921944    , 210.00
Department of Health,Guys and St Thomas NHS Foundation Trust,18/02/2022,(81500) X Ray Equipment Purchase,(id:42367) Clinical Imaging & Med Physics,NHS SUPPLY CHAIN (MAIDSTONE),id:14850234  ,2430.00
Department of Health,Guys and St Thomas NHS Foundation Trust,27/02/2022,(52062) Radiographers,(id:42368) Clinical Imaging & Med Physics,PRICEWATERHOUSECOOPERS LLP,id:14977074,9068.01
Department of Health,Guys and St Thomas NHS Foundation Trust,25/02/2022,(84600) Establishment,(id:42372) Clinical Imaging & Med Physics,CLARITY TRAVEL MANAGEMENT,id:14843478 , 408.90
Department of Health,Guys and St Thomas NHS Foundation Trust,18/02/2022,(81700) Lab Equipment Purchase,(id:42372) Clinical Imaging & Med Physics,NHS SUPPLY CHAIN (MAIDSTONE),id:14813451    ,  14.00
Department of Health,Guys and St Thomas NHS Foundation Trust,25/02/2022,(81275) Medical Surgical Supplies & Equipment,(id:42372) Clinical Imaging & Med Physics,GE HEALTHCARE (50652318),id:14844475   , 756.00
Department of Health,Guys and St Thomas NHS Foundation Trust,04/02/2022,(81275) Medical Surgical Supplies & Equipment,(id:42372) Clinical Imaging & Med Physics,GE HEALTHCARE (50652318),id:14817158   , 756.00
Department of Health,Guys and St Thomas NHS Foundation Trust,11/02/2022,(81275) Medical Surgical Supplies & Equipment,(id:42372) Clinical Imaging & Med Physics,GE HEALTHCARE (50652318),id:14844554   , 611.51
Department of Health,Guys and St Thomas NHS Foundation Trust,18/02/2022,(81275) Medical Surgical Supplies & Equipment,(id:42372) Clinical Imaging & Med Physics,NHS SUPPLY CHAIN (MAIDSTONE),id:14813451    ,   2.88
Department of Health,Guys and St Thomas NHS Foundation Trust,25/02/2022,(81500) X Ray Equipment Purchase,(id:42372) Clinical Imaging & Med Physics,GE HEALTHCARE (50652318),id:14922264 , 824.40
Department of Health,Guys and St Thomas NHS Foundation Trust,25/02/2022,(81500) X Ray Equipment Purchase,(id:42372) Clinical Imaging & Med Physics,CURIUM PHARMA UK LTD,id:14951334,1539.60
Department of Health,Guys and St Thomas NHS Foundation Trust,25/02/2022,(81500) X Ray Equipment Purchase,(id:42372) Clinical Imaging & Med Physics,CURIUM PHARMA UK LTD,id:14951374,1494.00
Department of Health,Guys and St Thomas NHS Foundation Trust,04/02/2022,(81500) X Ray Equipment Purchase,(id:42372) Clinical Imaging & Med Physics,BARTEC TECHNOLOGIES LIMITED,id:14843353   ,6348.00
Department of Health,Guys and St Thomas NHS Foundation Trust,04/02/2022,(81500) X Ray Equipment Purchase,(id:42372) Clinical Imaging & Med Physics,CURIUM PHARMA UK LTD,id:14849281,1732.00
Department of Health,Guys and St Thomas NHS Foundation Trust,04/02/2022,(81500) X Ray Equipment Purchase,(id:42372) Clinical Imaging & Med Physics,HEALTHCARE EQUIPMENT & SUPPLIES,id:14843308    ,1116.56
Department of Health,Guys and St Thomas NHS Foundation Trust,11/02/2022,(81500) X Ray Equipment Purchase,(id:42372) Clinical Imaging & Med Physics,CURIUM PHARMA UK LTD,id:14887696,3571.20
Department of Health,Guys and St Thomas NHS Foundation Trust,11/02/2022,(81500) X Ray Equipment Purchase,(id:42372) Clinical Imaging & Med Physics,CURIUM PHARMA UK LTD,id:14898074,1875.60
Department of Health,Guys and St Thomas NHS Foundation Trust,11/02/2022,(81500) X Ray Equipment Purchase,(id:42372) Clinical Imaging & Med Physics,CURIUM PHARMA UK LTD,id:14887699, 636.00
Department of Health,Guys and St Thomas NHS Foundation Trust,04/02/2022,(83400) Office Equipment,(id:4187419) Clinical Imaging & Med Physics,GE HEALTHCARE (50652318),id:14817162  , 558.00
Department of Health,Guys and St Thomas NHS Foundation Trust,25/02/2022,(55642) Maintenance Staff,(id:42375) Clinical Imaging & Med Physics,MORGAN HUNT UK LTD,id:14972765    , 966.60
Department of Health,Guys and St Thomas NHS Foundation Trust,25/02/2022,(89000) Other - Training courses and conferences,(id:42377) Clinical Imaging & Med Physics,KINGS COLLEGE LONDON:03529700,id:14904755,3300.00
Department of Health,Guys and St Thomas NHS Foundation Trust,25/02/2022,(81400) Medical Surgical Supplies & Equipment,(id:42379) Clinical Imaging & Med Physics,C FRANKLIN LTD,id:14966858   , 937.89
Department of Health,Guys and St Thomas NHS Foundation Trust,25/02/2022,(81200) Medical Surgical Supplies & Equipment,(id:42379) Clinical Imaging & Med Physics,EDAN MEDICAL (UK) LTD,id:14964674 , 534.60
Department of Health,Guys and St Thomas NHS Foundation Trust,11/02/2022,(81200) Medical Surgical Supplies & Equipment,(id:42379) Clinical Imaging & Med Physics,CABLEMED LTD,id:14843962,1039.44
Department of Health,Guys and St Thomas NHS Foundation Trust,11/02/2022,(81200) Medical Surgical Supplies & Equipment,(id:1348419) Clinical Imaging & Med Physics,MEDTRONIC LTD,id:14806926  , 679.50
Department of Health,Guys and St Thomas NHS Foundation Trust,18/02/2022,(81200) Medical Surgical Supplies & Equipment,(id:1348419) Clinical Imaging & Med Physics,MEDTRONIC LTD,id:14853658  , 756.00
Department of Health,Guys and St Thomas NHS Foundation Trust,18/02/2022,(81100) Dressings,(id:1348419) Clinical Imaging & Med Physics,NHS SUPPLY CHAIN (MAIDSTONE),id:14795733, 228.22
Department of Health,Guys and St Thomas NHS Foundation Trust,18/02/2022,(81275) Medical Surgical Supplies & Equipment,(id:1348419) Clinical Imaging & Med Physics,NHS SUPPLY CHAIN (MAIDSTONE),id:14795733  ,  43.38
Department of Health,Guys and St Thomas NHS Foundation Trust,11/02/2022,(83350) Premises Services,(id:4631420) Integrated Local Services,ASSIST SECURITY LIMITED,id:14824274  ,1260.00
Department of Health,Guys and St Thomas NHS Foundation Trust,18/02/2022,(82800) Bedding & Linen,(id:590495) Integrated Local Services,NHS SUPPLY CHAIN (MAIDSTONE),id:14813451,  14.06
Department of Health,Guys and St Thomas NHS Foundation Trust,25/02/2022,(89000) Other - Training courses and conferences,(id:590494) Integrated Local Services,HANDS FREE COMPUTING LTD,id:14851181    , 340.00
Department of Health,Guys and St Thomas NHS Foundation Trust,25/02/2022,(89000) Other - Training courses and conferences,(id:590494) Integrated Local Services,HANDS FREE COMPUTING LTD,id:14814378    , 960.00
Department of Health,Guys and St Thomas NHS Foundation Trust,18/02/2022,(82000) Provisions & Kitchens,(id:839420) Integrated Local Services,NHS SUPPLY CHAIN (MAIDSTONE),id:14813451    ,  23.40
Department of Health,Guys and St Thomas NHS Foundation Trust,18/02/2022,(50562) Qualified Nursing Staff,(id:1885424) Integrated Local Services,MSI GROUP LTD,id:14932070 , 430.39
Department of Health,Guys and St Thomas NHS Foundation Trust,18/02/2022,(81225) Medical Surgical Supplies & Equipment,(id:684420) Integrated Local Services,NHS SUPPLY CHAIN (MAIDSTONE),id:14813451   ,  23.40
Department of Health,Guys and St Thomas NHS Foundation Trust,27/02/2022,(51842) Physiotherapists,(id:684419) Integrated Local Services,PRICEWATERHOUSECOOPERS LLP,id:14977074 , 736.31
Department of Health,Guys and St Thomas NHS Foundation Trust,11/02/2022,(51842) Physiotherapists,(id:684419) Integrated Local Services,PRICEWATERHOUSECOOPERS LLP,id:14911676 , 736.31
Department of Health,Guys and St Thomas NHS Foundation Trust,25/02/2022,(50200) Consultants,(id:590503) Integrated Local Services,KING'S COLLEGE HOSPITAL NHS FOUNDATION TRUST,id:14478677   , 936.66
Department of Health,Guys and St Thomas NHS Foundation Trust,18/02/2022,(81255) Medical Surgical Supplies & Equipment,(id:590471) Integrated Local Services,NHS SUPPLY CHAIN (MAIDSTONE),id:14813451   ,   8.74
Department of Health,Guys and St Thomas NHS Foundation Trust,18/02/2022,(50552) Qualified Nursing Staff,(id:590522) Integrated Local Services,MSI GROUP LTD,id:14931732  , 258.37
Department of Health,Guys and St Thomas NHS Foundation Trust,18/02/2022,(81200) Medical Surgical Supplies & Equipment,(id:590521) Integrated Local Services,NHS SUPPLY CHAIN (MAIDSTONE),id:14850234   , 195.83
Department of Health,Guys and St Thomas NHS Foundation Trust,18/02/2022,(81200) Medical Surgical Supplies & Equipment,(id:590520) Integrated Local Services,NHS SUPPLY CHAIN (MAIDSTONE),id:14795733   ,2125.56
Department of Health,Guys and St Thomas NHS Foundation Trust,25/02/2022,(50552) Qualified Nursing Staff,(id:590520) Integrated Local Services,NURSING 2000 LTD,id:14969785    ,1080.46
Department of Health,Guys and St Thomas NHS Foundation Trust,18/02/2022,(82800) Bedding & Linen,(id:590535) Integrated Local Services,NHS SUPPLY CHAIN (MAIDSTONE),id:14813451,    .77
Department of Health,Guys and St Thomas NHS Foundation Trust,11/02/2022,(86300) Healthcare from non-NHS bodies,(id:590477) Integrated Local Services,NHS SUPPLY CHAIN (MAIDSTONE),id:14801345,1097.59
Department of Health,Guys and St Thomas NHS Foundation Trust,18/02/2022,(86300) Healthcare from non-NHS bodies,(id:590477) Integrated Local Services,NHS SUPPLY CHAIN (MAIDSTONE),id:14906414, 799.44
Department of Health,Guys and St Thomas NHS Foundation Trust,18/02/2022,(83500) Furniture & Fittings,(id:590527) Integrated Local Services,NHS SUPPLY CHAIN (MAIDSTONE),id:14795733,  13.74
Department of Health,Guys and St Thomas NHS Foundation Trust,18/02/2022,(83400) Office Equipment,(id:903421) Integrated Local Services,NHS SUPPLY CHAIN (MAIDSTONE),id:14813451    ,  42.96
Department of Health,Guys and St Thomas NHS Foundation Trust,18/02/2022,(81700) Lab Equipment Purchase,(id:903421) Integrated Local Services,NHS SUPPLY CHAIN (MAIDSTONE),id:14813451   ,  52.87
Department of Health,Guys and St Thomas NHS Foundation Trust,04/02/2022,(86300) Healthcare from non-NHS bodies,(id:5205419) Integrated Local Services,HOMELINK HEALTHCARE LTD,id:14650634    ,    79164.00
Department of Health,Guys and St Thomas NHS Foundation Trust,18/02/2022,(50552) Qualified Nursing Staff,(id:4834422) Integrated Local Services,NURSING 2000 LTD,id:14936479   ,1376.79
Department of Health,Guys and St Thomas NHS Foundation Trust,11/02/2022,(50552) Qualified Nursing Staff,(id:4263423) Integrated Local Services,MEDICARE HEALTH PROFESSIONALS LTD,id:14909610 ,1097.51
Department of Health,Guys and St Thomas NHS Foundation Trust,18/02/2022,(83400) Office Equipment,(id:42518) Evelina Womens Services,NHS SUPPLY CHAIN (MAIDSTONE),id:14813451  ,  56.33
Department of Health,Guys and St Thomas NHS Foundation Trust,25/02/2022,(83410) Office Equipment,(id:42517) Evelina Womens Services,RICOH UK LTD,id:14972533   ,1062.69
Department of Health,Guys and St Thomas NHS Foundation Trust,11/02/2022,(89595) Non-Healthcare from Foundation Trusts,(id:42517) Evelina Womens Services,ROYAL DEVON AND EXETER NHS FOUNDATION TRUST,id:14747908 ,1587.00
Department of Health,Guys and St Thomas NHS Foundation Trust,18/02/2022,(89595) Non-Healthcare from Foundation Trusts,(id:42517) Evelina Womens Services,SHEFFIELD TEACHING HOSPITALS NHS FOUNDATION TRUST,id:14502614,    -1696.00
Department of Health,Guys and St Thomas NHS Foundation Trust,25/02/2022,(81200) Medical Surgical Supplies & Equipment,(id:42517) Evelina Womens Services,BRITANNIA MONITORING SYSTEMS LTD,id:14804198  ,1428.00
Department of Health,Guys and St Thomas NHS Foundation Trust,18/02/2022,(81700) Lab Equipment Purchase,(id:42517) Evelina Womens Services,NHS SUPPLY CHAIN (MAIDSTONE),id:14850234 , 141.78
Department of Health,Guys and St Thomas NHS Foundation Trust,18/02/2022,(81700) Lab Equipment Purchase,(id:42517) Evelina Womens Services,NHS SUPPLY CHAIN (MAIDSTONE),id:14813451 ,  69.47
Department of Health,Guys and St Thomas NHS Foundation Trust,25/02/2022,(84600) Establishment,(id:42517) Evelina Womens Services,BRITANNIA MONITORING SYSTEMS LTD,id:14804198 , 954.00
Department of Health,Guys and St Thomas NHS Foundation Trust,18/02/2022,(83400) Office Equipment,(id:42513) Evelina Womens Services,NHS SUPPLY CHAIN (MAIDSTONE),id:14795733  ,  60.70
Department of Health,Guys and St Thomas NHS Foundation Trust,18/02/2022,(81255) Medical Surgical Supplies & Equipment,(id:42513) Evelina Womens Services,NHS SUPPLY CHAIN (MAIDSTONE),id:14795733 ,  36.00
Department of Health,Guys and St Thomas NHS Foundation Trust,18/02/2022,(81700) Lab Equipment Purchase,(id:42513) Evelina Womens Services,NHS SUPPLY CHAIN (MAIDSTONE),id:14795733 ,  19.40
Department of Health,Guys and St Thomas NHS Foundation Trust,18/02/2022,(82700) Uniforms & Clothing,(id:42513) Evelina Womens Services,NHS SUPPLY CHAIN (MAIDSTONE),id:14813451    ,  79.20
Department of Health,Guys and St Thomas NHS Foundation Trust,18/02/2022,(82700) Uniforms & Clothing,(id:42513) Evelina Womens Services,NHS SUPPLY CHAIN (MAIDSTONE),id:14795733    ,  31.68
Department of Health,Guys and St Thomas NHS Foundation Trust,18/02/2022,(82000) Provisions & Kitchens,(id:42513) Evelina Womens Services,NHS SUPPLY CHAIN (MAIDSTONE),id:14850234  , 126.12
Department of Health,Guys and St Thomas NHS Foundation Trust,04/02/2022,(83500) Furniture & Fittings,(id:42509) Evelina Womens Services,HOSPITAL METALCRAFT LTD,id:14854357   ,2073.12
Department of Health,Guys and St Thomas NHS Foundation Trust,18/02/2022,(81200) Medical Surgical Supplies & Equipment,(id:42509) Evelina Womens Services,MEDTRONIC LTD,id:14832926 ,4305.60
Department of Health,Guys and St Thomas NHS Foundation Trust,11/02/2022,(81200) Medical Surgical Supplies & Equipment,(id:42511) Evelina Womens Services,FRONTIERE MEDICALE EUROPE,id:14821954    ,2979.60
Department of Health,Guys and St Thomas NHS Foundation Trust,11/02/2022,(81200) Medical Surgical Supplies & Equipment,(id:42506) Evelina Womens Services,SCHULTZ MEDICAL (UK) LTD,id:14887774,1824.00
Department of Health,Guys and St Thomas NHS Foundation Trust,18/02/2022,(81550) X Ray Equipment Purchase,(id:42486) Evelina Womens Services,NHS SUPPLY CHAIN (MAIDSTONE),id:14813451    ,  66.00
Department of Health,Guys and St Thomas NHS Foundation Trust,18/02/2022,(82800) Bedding & Linen,(id:42491) Evelina Womens Services,NHS SUPPLY CHAIN (MAIDSTONE),id:14813451   , 183.98
Department of Health,Guys and St Thomas NHS Foundation Trust,18/02/2022,(81100) Dressings,(id:42491) Evelina Womens Services,NHS SUPPLY CHAIN (MAIDSTONE),id:14850234    , 150.65
Department of Health,Guys and St Thomas NHS Foundation Trust,04/02/2022,(82600) Uniforms & Clothing,(id:42492) Evelina Womens Services,TEASDALE HEALTHCARE EQUIPMENT LTD,id:14831935    , 745.08
Department of Health,Guys and St Thomas NHS Foundation Trust,18/02/2022,(82600) Uniforms & Clothing,(id:42492) Evelina Womens Services,NHS SUPPLY CHAIN (MAIDSTONE),id:14813451    , 191.79
Department of Health,Guys and St Thomas NHS Foundation Trust,18/02/2022,(81100) Dressings,(id:42492) Evelina Womens Services,365 HEALTHCARE LTD,id:14932625    ,-672.00
Department of Health,Guys and St Thomas NHS Foundation Trust,04/02/2022,(84500) Establishment,(id:42492) Evelina Womens Services,CDP  PRINT MANAGEMENT,id:14863449  ,1555.20
Department of Health,Guys and St Thomas NHS Foundation Trust,11/02/2022,(84500) Establishment,(id:42492) Evelina Womens Services,CDP  PRINT MANAGEMENT,id:14870271  ,1352.46
Department of Health,Guys and St Thomas NHS Foundation Trust,11/02/2022,(84500) Establishment,(id:42492) Evelina Womens Services,OT GROUP LTD,id:14866194 ,1056.00
Department of Health,Guys and St Thomas NHS Foundation Trust,18/02/2022,(81225) Medical Surgical Supplies & Equipment,(id:42492) Evelina Womens Services,NHS SUPPLY CHAIN (MAIDSTONE),id:14813451 ,  84.92
Department of Health,Guys and St Thomas NHS Foundation Trust,18/02/2022,(81225) Medical Surgical Supplies & Equipment,(id:42492) Evelina Womens Services,NHS SUPPLY CHAIN (MAIDSTONE),id:14850234 ,  69.29
Department of Health,Guys and St Thomas NHS Foundation Trust,18/02/2022,(81700) Lab Equipment Purchase,(id:42492) Evelina Womens Services,NHS SUPPLY CHAIN (MAIDSTONE),id:14795733 ,  22.52
Department of Health,Guys and St Thomas NHS Foundation Trust,18/02/2022,(81255) Medical Surgical Supplies & Equipment,(id:42492) Evelina Womens Services,NHS SUPPLY CHAIN (MAIDSTONE),id:14813451 ,   9.00
Department of Health,Guys and St Thomas NHS Foundation Trust,25/02/2022,(83400) Office Equipment,(id:42493) Evelina Womens Services,LAZERBEAM FIRE AND SECURITY LTD,id:14968054    ,4640.00
Department of Health,Guys and St Thomas NHS Foundation Trust,25/02/2022,(50562) Qualified Nursing Staff,(id:42497) Evelina Womens Services,CARE PROVIDERS HEALTHCARE,id:14972687   ,1367.87
Department of Health,Guys and St Thomas NHS Foundation Trust,11/02/2022,(50562) Qualified Nursing Staff,(id:42497) Evelina Womens Services,CARE PROVIDERS HEALTHCARE,id:14904154   ,1417.37
Department of Health,Guys and St Thomas NHS Foundation Trust,18/02/2022,(80010) Drug Costs,(id:42331) Evelina Central,NHS SUPPLY CHAIN (MAIDSTONE),id:14795733 ,  18.00
Department of Health,Guys and St Thomas NHS Foundation Trust,18/02/2022,(83500) Furniture & Fittings,(id:42348) Evelina Central,NHS SUPPLY CHAIN (MAIDSTONE),id:14795733 , 710.64
Department of Health,Guys and St Thomas NHS Foundation Trust,18/02/2022,(82800) Bedding & Linen,(id:42348) Evelina Central,NHS SUPPLY CHAIN (MAIDSTONE),id:14795733 ,  91.94
Department of Health,Guys and St Thomas NHS Foundation Trust,18/02/2022,(81230) Medical Surgical Supplies & Equipment,(id:42348) Evelina Central,NHS SUPPLY CHAIN (MAIDSTONE),id:14850234    , 228.00
Department of Health,Guys and St Thomas NHS Foundation Trust,25/02/2022,(83610) IT Costs,(id:4247419) Evelina Central,CLICKY MEDIA LTD,id:14943534   , 845.94
Department of Health,Guys and St Thomas NHS Foundation Trust,25/02/2022,(84500) Establishment,(id:2709419) Evelina Central,OT GROUP LTD,id:14947194  , 667.20
Department of Health,Guys and St Thomas NHS Foundation Trust,11/02/2022,(83500) Furniture & Fittings,(id:2709419) Evelina Central,GAMA HEALTHCARE LTD,id:14889138   ,9600.00
Department of Health,Guys and St Thomas NHS Foundation Trust,27/02/2022,(54062) Technical Officers,(id:590444) Evelina Community Services,PRICEWATERHOUSECOOPERS LLP,id:14977074   , 959.55
Department of Health,Guys and St Thomas NHS Foundation Trust,18/02/2022,(81255) Medical Surgical Supplies & Equipment,(id:590547) Evelina Community Services,NHS SUPPLY CHAIN (MAIDSTONE),id:14850234  ,  61.20
Department of Health,Guys and St Thomas NHS Foundation Trust,04/02/2022,(81200) Medical Surgical Supplies & Equipment,(id:590547) Evelina Community Services,RESMED (UK) LTD,id:14796128, 797.04
Department of Health,Guys and St Thomas NHS Foundation Trust,04/02/2022,(83765) Rent,(id:590547) Evelina Community Services,RESMED (UK) LTD,id:14797903   ,1440.00
Department of Health,Guys and St Thomas NHS Foundation Trust,18/02/2022,(81700) Lab Equipment Purchase,(id:590561) Evelina Community Services,NHS SUPPLY CHAIN (MAIDSTONE),id:14850234  ,  15.91
Department of Health,Guys and St Thomas NHS Foundation Trust,18/02/2022,(82000) Provisions & Kitchens,(id:590557) Evelina Community Services,NHS SUPPLY CHAIN (MAIDSTONE),id:14850234   ,  48.30
Department of Health,Guys and St Thomas NHS Foundation Trust,25/02/2022,(84500) Establishment,(id:590557) Evelina Community Services,PEARSON EDUCATION LTD,id:14817139   ,1584.00
Department of Health,Guys and St Thomas NHS Foundation Trust,18/02/2022,(84656) Establishment,(id:590545) Evelina Community Services,DICT8 LIMITED,id:14868314 ,3180.48
Department of Health,Guys and St Thomas NHS Foundation Trust,25/02/2022,(50562) Qualified Nursing Staff,(id:590416) Evelina Community Services,ARTHUR RAI MEDICAL SERVICES LTD,id:14972806   ,1053.60
Department of Health,Guys and St Thomas NHS Foundation Trust,18/02/2022,(82600) Uniforms & Clothing,(id:590417) Evelina Community Services,NHS SUPPLY CHAIN (MAIDSTONE),id:14795733,  13.50
Department of Health,Guys and St Thomas NHS Foundation Trust,04/02/2022,(50552) Qualified Nursing Staff,(id:590537) Evelina Community Services,HEMINGWAYS MARKETING SERVICES,id:14862155, 780.00
Department of Health,Guys and St Thomas NHS Foundation Trust,11/02/2022,(81200) Medical Surgical Supplies & Equipment,(id:590537) Evelina Community Services,MARSDEN WEIGHING MACHINE GROUP LTD,id:14891737 ,  46.80
Department of Health,Guys and St Thomas NHS Foundation Trust,25/02/2022,(50562) Qualified Nursing Staff,(id:590423) Evelina Community Services,ARTHUR RAI MEDICAL SERVICES LTD,id:14972769   ,1317.00
Department of Health,Guys and St Thomas NHS Foundation Trust,04/02/2022,(81200) Medical Surgical Supplies & Equipment,(id:2356419) Evelina Medicine & Neonatology,GBUK ENTERAL UK,id:14828975, 604.80
Department of Health,Guys and St Thomas NHS Foundation Trust,18/02/2022,(82600) Uniforms & Clothing,(id:4446419) Evelina Medicine & Neonatology,DE SMIT MEDICAL SYSTEMS LTD,id:14888154 ,1778.64
Department of Health,Guys and St Thomas NHS Foundation Trust,11/02/2022,(50552) Qualified Nursing Staff,(id:2499420) Evelina Medicine & Neonatology,CONTINENTAL NURSE LTD,id:14904451   ,1245.43
Department of Health,Guys and St Thomas NHS Foundation Trust,18/02/2022,(81200) Medical Surgical Supplies & Equipment,(id:42349) Evelina Medicine & Neonatology,NHS SUPPLY CHAIN (MAIDSTONE),id:14813451    ,  38.96
Department of Health,Guys and St Thomas NHS Foundation Trust,18/02/2022,(81235) Medical Surgical Supplies & Equipment,(id:42349) Evelina Medicine & Neonatology,NHS SUPPLY CHAIN (MAIDSTONE),id:14813451    ,1411.20
Department of Health,Guys and St Thomas NHS Foundation Trust,25/02/2022,(81200) Medical Surgical Supplies & Equipment,(id:817420) Evelina Medicine & Neonatology,RADIOMETER LTD,id:14822602  ,1167.60
Department of Health,Guys and St Thomas NHS Foundation Trust,04/02/2022,(81200) Medical Surgical Supplies & Equipment,(id:817420) Evelina Medicine & Neonatology,RADIOMETER LTD,id:14823424  ,    10805.34
Department of Health,Guys and St Thomas NHS Foundation Trust,18/02/2022,(81200) Medical Surgical Supplies & Equipment,(id:42335) Evelina Medicine & Neonatology,NHS SUPPLY CHAIN (MAIDSTONE),id:14850234    ,    73729.76
Department of Health,Guys and St Thomas NHS Foundation Trust,04/02/2022,(80100) Drug Costs,(id:42327) Evelina Medicine & Neonatology,BOC LTD :02107500,id:14795135  ,1632.00
Department of Health,Guys and St Thomas NHS Foundation Trust,18/02/2022,(81100) Dressings,(id:42327) Evelina Medicine & Neonatology,NHS SUPPLY CHAIN (MAIDSTONE),id:14850234  , 498.53
Department of Health,Guys and St Thomas NHS Foundation Trust,11/02/2022,(81230) Medical Surgical Supplies & Equipment,(id:42327) Evelina Medicine & Neonatology,VYGON (UK) LTD,id:14648771   , 558.60
Department of Health,Guys and St Thomas NHS Foundation Trust,18/02/2022,(81200) Medical Surgical Supplies & Equipment,(id:1196420) Evelina Medicine & Neonatology,MEDTRONIC LTD,id:14744142  , 567.00
Department of Health,Guys and St Thomas NHS Foundation Trust,04/02/2022,(89000) Other - Training courses and conferences,(id:3736419) Evelina Medicine & Neonatology,LAERDAL MEDICAL LTD,id:14830982   , 854.60
Department of Health,Guys and St Thomas NHS Foundation Trust,18/02/2022,(82800) Bedding & Linen,(id:2496419) Evelina Medicine & Neonatology,NHS SUPPLY CHAIN (MAIDSTONE),id:14850234    ,  84.30
Department of Health,Guys and St Thomas NHS Foundation Trust,11/02/2022,(51862) Physiotherapists,(id:2982419) Evelina Medicine & Neonatology,PRICEWATERHOUSECOOPERS LLP,id:14911676,1394.81
Department of Health,Guys and St Thomas NHS Foundation Trust,18/02/2022,(81200) Medical Surgical Supplies & Equipment,(id:2981419) Evelina Medicine & Neonatology,GBUK ENTERAL UK,id:14865067, 600.00
Department of Health,Guys and St Thomas NHS Foundation Trust,11/02/2022,(50552) Qualified Nursing Staff,(id:41874) Evelina Medicine & Neonatology,CONTINENTAL NURSE LTD,id:14904249,2563.78
Department of Health,Guys and St Thomas NHS Foundation Trust,11/02/2022,(50552) Qualified Nursing Staff,(id:41874) Evelina Medicine & Neonatology,GLOBE LOCUMS LTD,id:14904323, 291.40
Department of Health,Guys and St Thomas NHS Foundation Trust,18/02/2022,(50552) Qualified Nursing Staff,(id:41874) Evelina Medicine & Neonatology,MSI GROUP LTD,id:14931927   , 317.01
Department of Health,Guys and St Thomas NHS Foundation Trust,18/02/2022,(83400) Office Equipment,(id:41874) Evelina Medicine & Neonatology,NHS SUPPLY CHAIN (MAIDSTONE),id:14813451,   2.49
Department of Health,Guys and St Thomas NHS Foundation Trust,18/02/2022,(84656) Establishment,(id:42326) Evelina Medicine & Neonatology,DICT8 LIMITED,id:14868339   ,3133.80
Department of Health,Guys and St Thomas NHS Foundation Trust,25/02/2022,(89600) Non-Healthcare from other NHS bodies,(id:42326) Evelina Medicine & Neonatology,NHS BLOOD AND TRANSPLANT,id:14970522    ,1295.00
Department of Health,Guys and St Thomas NHS Foundation Trust,18/02/2022,(83400) Office Equipment,(id:42323) Evelina Medicine & Neonatology,NHS SUPPLY CHAIN (MAIDSTONE),id:14795733,  80.98
Department of Health,Guys and St Thomas NHS Foundation Trust,18/02/2022,(81200) Medical Surgical Supplies & Equipment,(id:42323) Evelina Medicine & Neonatology,NHS SUPPLY CHAIN (MAIDSTONE),id:14850234    ,  47.90
Department of Health,Guys and St Thomas NHS Foundation Trust,18/02/2022,(82800) Bedding & Linen,(id:42323) Evelina Medicine & Neonatology,NHS SUPPLY CHAIN (MAIDSTONE),id:14795733 , 107.31
Department of Health,Guys and St Thomas NHS Foundation Trust,18/02/2022,(84500) Establishment,(id:2499419) Evelina Surgery Theatres & PICU,BANNER GROUP LTD,id:14915974  , 683.23
Department of Health,Guys and St Thomas NHS Foundation Trust,25/02/2022,(50542) Unqualified Nursing Staff,(id:2499419) Evelina Surgery Theatres & PICU,CONTINENTAL NURSE LTD,id:14972670, 626.93
Department of Health,Guys and St Thomas NHS Foundation Trust,25/02/2022,(81200) Medical Surgical Supplies & Equipment,(id:42312) Evelina Surgery Theatres & PICU,COOK UK LTD,id:14881436, 102.00
Department of Health,Guys and St Thomas NHS Foundation Trust,04/02/2022,(81200) Medical Surgical Supplies & Equipment,(id:42312) Evelina Surgery Theatres & PICU,KIMAL PLC,id:14839275  , 604.30
Department of Health,Guys and St Thomas NHS Foundation Trust,04/02/2022,(81200) Medical Surgical Supplies & Equipment,(id:42312) Evelina Surgery Theatres & PICU,COOK UK LTD,id:14856879,2841.60
Department of Health,Guys and St Thomas NHS Foundation Trust,11/02/2022,(81400) Medical Surgical Supplies & Equipment,(id:42312) Evelina Surgery Theatres & PICU,JOHNSON & JOHNSON MEDICAL LTD,id:14796481  ,    25000.00
Department of Health,Guys and St Thomas NHS Foundation Trust,18/02/2022,(81280) Medical Surgical Supplies & Equipment,(id:42312) Evelina Surgery Theatres & PICU,NHS SUPPLY CHAIN (MAIDSTONE),id:14850234   ,    16096.80
Department of Health,Guys and St Thomas NHS Foundation Trust,11/02/2022,(83880) Building & Engineering,(id:42312) Evelina Surgery Theatres & PICU,COMPUTACENTER UK LTD,id:14890694 ,2196.62
Department of Health,Guys and St Thomas NHS Foundation Trust,18/02/2022,(83400) Office Equipment,(id:42312) Evelina Surgery Theatres & PICU,NHS SUPPLY CHAIN (MAIDSTONE),id:14813451    ,  42.24
Department of Health,Guys and St Thomas NHS Foundation Trust,18/02/2022,(81200) Medical Surgical Supplies & Equipment,(id:4082419) Evelina Surgery Theatres & PICU,NHS SUPPLY CHAIN (MAIDSTONE),id:14795733 ,1425.60
Department of Health,Guys and St Thomas NHS Foundation Trust,04/02/2022,(81200) Medical Surgical Supplies & Equipment,(id:42351) Evelina Surgery Theatres & PICU,MERCIAN SURGICAL SUPPLY CO LTD,id:14753634 ,1782.00
Department of Health,Guys and St Thomas NHS Foundation Trust,18/02/2022,(82700) Uniforms & Clothing,(id:41914) Evelina Surgery Theatres & PICU,NHS SUPPLY CHAIN (MAIDSTONE),id:14850234 ,  17.25
Department of Health,Guys and St Thomas NHS Foundation Trust,25/02/2022,(81100) Dressings,(id:41914) Evelina Surgery Theatres & PICU,ELIS UK LIMITED,id:14734954    , 765.35
Department of Health,Guys and St Thomas NHS Foundation Trust,18/02/2022,(81100) Dressings,(id:41914) Evelina Surgery Theatres & PICU,NHS SUPPLY CHAIN (MAIDSTONE),id:14850234 , 428.31
Department of Health,Guys and St Thomas NHS Foundation Trust,11/02/2022,(81200) Medical Surgical Supplies & Equipment,(id:41910) Evelina Surgery Theatres & PICU,AVANOS MEDICAL,id:14844056  , 504.00
Department of Health,Guys and St Thomas NHS Foundation Trust,18/02/2022,(81200) Medical Surgical Supplies & Equipment,(id:41910) Evelina Surgery Theatres & PICU,NHS SUPPLY CHAIN (MAIDSTONE),id:14813451   ,2767.83
Department of Health,Guys and St Thomas NHS Foundation Trust,18/02/2022,(81200) Medical Surgical Supplies & Equipment,(id:41910) Evelina Surgery Theatres & PICU,NHS SUPPLY CHAIN (MAIDSTONE),id:14795733   ,1765.40
Department of Health,Guys and St Thomas NHS Foundation Trust,18/02/2022,(81100) Dressings,(id:41910) Evelina Surgery Theatres & PICU,NHS SUPPLY CHAIN (MAIDSTONE),id:14795733 ,  54.90
Department of Health,Guys and St Thomas NHS Foundation Trust,25/02/2022,(81200) Medical Surgical Supplies & Equipment,(id:1196421) Evelina Surgery Theatres & PICU,NUVASIVE UK LTD,id:14966876    ,1264.80
Department of Health,Guys and St Thomas NHS Foundation Trust,11/02/2022,(81300) Medical Surgical Supplies & Equipment,(id:431409) Evelina Surgery Theatres & PICU,LAVENDER MEDICAL LTD,id:14823954,2913.00
Department of Health,Guys and St Thomas NHS Foundation Trust,25/02/2022,(81200) Medical Surgical Supplies & Equipment,(id:431409) Evelina Surgery Theatres & PICU,SMITH & NEPHEW ORTHOPAEDICS LTD.,id:14952734   , 594.97
Department of Health,Guys and St Thomas NHS Foundation Trust,25/02/2022,(81200) Medical Surgical Supplies & Equipment,(id:431409) Evelina Surgery Theatres & PICU,DESOUTTER MEDICAL LTD,id:14962314    ,1172.40
Department of Health,Guys and St Thomas NHS Foundation Trust,11/02/2022,(81200) Medical Surgical Supplies & Equipment,(id:431409) Evelina Surgery Theatres & PICU,JOHNSON & JOHNSON MEDICAL LTD,id:14748281 ,3231.37
Department of Health,Guys and St Thomas NHS Foundation Trust,18/02/2022,(81200) Medical Surgical Supplies & Equipment,(id:431409) Evelina Surgery Theatres & PICU,ORTHOPEDIATRICS EU LIMITED,id:14901756    ,1057.86
Department of Health,Guys and St Thomas NHS Foundation Trust,11/02/2022,(81000) Surgical Appliances,(id:431409) Evelina Surgery Theatres & PICU,JOHN FLORENCE LTD,id:14891742 , 746.47
Department of Health,Guys and St Thomas NHS Foundation Trust,18/02/2022,(81200) Medical Surgical Supplies & Equipment,(id:468410) Evelina Surgery Theatres & PICU,NHS SUPPLY CHAIN (MAIDSTONE),id:14795733  , 123.38
Department of Health,Guys and St Thomas NHS Foundation Trust,25/02/2022,(81200) Medical Surgical Supplies & Equipment,(id:468409) Evelina Surgery Theatres & PICU,T J SMITH & NEPHEW LTD,id:14912354   , 874.66
Department of Health,Guys and St Thomas NHS Foundation Trust,18/02/2022,(81200) Medical Surgical Supplies & Equipment,(id:468409) Evelina Surgery Theatres & PICU,NHS SUPPLY CHAIN (MAIDSTONE),id:14850234  , 234.46
Department of Health,Guys and St Thomas NHS Foundation Trust,11/02/2022,(84656) Establishment,(id:468409) Evelina Surgery Theatres & PICU,DICT8 LIMITED,id:14909199 ,1271.76
Department of Health,Guys and St Thomas NHS Foundation Trust,11/02/2022,(50532) Unqualified Nursing Staff,(id:2495421) Evelina Surgery Theatres & PICU,GLOBE LOCUMS LTD,id:14904643, 280.99
Department of Health,Guys and St Thomas NHS Foundation Trust,18/02/2022,(81235) Medical Surgical Supplies & Equipment,(id:42347) Evelina Surgery Theatres & PICU,NHS SUPPLY CHAIN (MAIDSTONE),id:14795733   , 110.16
Department of Health,Guys and St Thomas NHS Foundation Trust,11/02/2022,(84656) Establishment,(id:42347) Evelina Surgery Theatres & PICU,DICT8 LIMITED,id:14706982  , 437.76
Department of Health,Guys and St Thomas NHS Foundation Trust,11/02/2022,(84656) Establishment,(id:42347) Evelina Surgery Theatres & PICU,DICT8 LIMITED,id:14797224  , 565.80
Department of Health,Guys and St Thomas NHS Foundation Trust,18/02/2022,(82000) Provisions & Kitchens,(id:42344) Evelina Surgery Theatres & PICU,NHS SUPPLY CHAIN (MAIDSTONE),id:14813451    , 115.70
Department of Health,Guys and St Thomas NHS Foundation Trust,18/02/2022,(82700) Uniforms & Clothing,(id:42339) Evelina Surgery Theatres & PICU,NHS SUPPLY CHAIN (MAIDSTONE),id:14795733 ,   5.00
Department of Health,Guys and St Thomas NHS Foundation Trust,18/02/2022,(82700) Uniforms & Clothing,(id:42339) Evelina Surgery Theatres & PICU,NHS SUPPLY CHAIN (MAIDSTONE),id:14813451 ,  24.92
Department of Health,Guys and St Thomas NHS Foundation Trust,25/02/2022,(84500) Establishment,(id:42339) Evelina Surgery Theatres & PICU,BANNER GROUP LTD,id:14963954    , 572.40
Department of Health,Guys and St Thomas NHS Foundation Trust,11/02/2022,(84500) Establishment,(id:42339) Evelina Surgery Theatres & PICU,OT GROUP LTD,id:14868774   , 567.70
Department of Health,Guys and St Thomas NHS Foundation Trust,25/02/2022,(81100) Dressings,(id:42339) Evelina Surgery Theatres & PICU,ADVANCED STERILIZATION PRODUCTS (UK) LTD,id:14970825    , 590.65
Department of Health,Guys and St Thomas NHS Foundation Trust,18/02/2022,(81200) Medical Surgical Supplies & Equipment,(id:42339) Evelina Surgery Theatres & PICU,NHS SUPPLY CHAIN (MAIDSTONE),id:14813451   ,9774.31
Department of Health,Guys and St Thomas NHS Foundation Trust,18/02/2022,(83400) Office Equipment,(id:42339) Evelina Surgery Theatres & PICU,NHS SUPPLY CHAIN (MAIDSTONE),id:14850234    , 269.25
Department of Health,Guys and St Thomas NHS Foundation Trust,18/02/2022,(81225) Medical Surgical Supplies & Equipment,(id:42339) Evelina Surgery Theatres & PICU,NHS SUPPLY CHAIN (MAIDSTONE),id:14813451   ,  73.68
Department of Health,Guys and St Thomas NHS Foundation Trust,25/02/2022,(81700) Lab Equipment Purchase,(id:3805419) Evelina R&D and Charity,THE DOCTORS LABORATORY LTD,id:14972154 ,7731.00
Department of Health,Guys and St Thomas NHS Foundation Trust,08/02/2022,(89440) Research and Development,(id:4049419) Cardiovascular Services,CLINLOGIX,id:14487783 ,1132.55
Department of Health,Guys and St Thomas NHS Foundation Trust,08/02/2022,(89440) Research and Development,(id:4049419) Cardiovascular Services,CLINLOGIX,id:14487782 ,5713.18
Department of Health,Guys and St Thomas NHS Foundation Trust,04/02/2022,(81250) Medical Surgical Supplies & Equipment,(id:639421) Cardiovascular Services,COOK UK LTD,id:14601055  ,    16200.00
Department of Health,Guys and St Thomas NHS Foundation Trust,25/02/2022,(81200) Medical Surgical Supplies & Equipment,(id:639421) Cardiovascular Services,COOK UK LTD,id:14968094  ,  97.20
Department of Health,Guys and St Thomas NHS Foundation Trust,25/02/2022,(81200) Medical Surgical Supplies & Equipment,(id:639421) Cardiovascular Services,BOSTON SCIENTIFIC LTD,id:14960877  , 564.00
Department of Health,Guys and St Thomas NHS Foundation Trust,25/02/2022,(81200) Medical Surgical Supplies & Equipment,(id:639421) Cardiovascular Services,WL GORE & ASSOCIATES (UK) LTD,id:14970161    ,8388.00
Department of Health,Guys and St Thomas NHS Foundation Trust,04/02/2022,(81200) Medical Surgical Supplies & Equipment,(id:639421) Cardiovascular Services,SHOCKWAVE MEDICAL,id:14830779 ,1800.00
Department of Health,Guys and St Thomas NHS Foundation Trust,04/02/2022,(81200) Medical Surgical Supplies & Equipment,(id:639421) Cardiovascular Services,MEDTRONIC LTD,id:14854463, 756.00
Department of Health,Guys and St Thomas NHS Foundation Trust,04/02/2022,(81200) Medical Surgical Supplies & Equipment,(id:639421) Cardiovascular Services,BENTLEY INNOMED GMBH,id:14828842   ,2040.00
Department of Health,Guys and St Thomas NHS Foundation Trust,04/02/2022,(81200) Medical Surgical Supplies & Equipment,(id:639421) Cardiovascular Services,BENTLEY INNOMED GMBH,id:14830554   ,1020.00
Department of Health,Guys and St Thomas NHS Foundation Trust,11/02/2022,(81200) Medical Surgical Supplies & Equipment,(id:639421) Cardiovascular Services,BOSTON SCIENTIFIC LTD,id:14827620  , 936.00
Department of Health,Guys and St Thomas NHS Foundation Trust,11/02/2022,(81200) Medical Surgical Supplies & Equipment,(id:639421) Cardiovascular Services,BENTLEY INNOMED GMBH,id:14854609   ,1020.00
Department of Health,Guys and St Thomas NHS Foundation Trust,11/02/2022,(81200) Medical Surgical Supplies & Equipment,(id:639421) Cardiovascular Services,WL GORE & ASSOCIATES (UK) LTD,id:14844357    ,2284.80
Department of Health,Guys and St Thomas NHS Foundation Trust,11/02/2022,(81200) Medical Surgical Supplies & Equipment,(id:639421) Cardiovascular Services,WL GORE & ASSOCIATES (UK) LTD,id:14844356    ,2284.80
Department of Health,Guys and St Thomas NHS Foundation Trust,11/02/2022,(81200) Medical Surgical Supplies & Equipment,(id:639421) Cardiovascular Services,WL GORE & ASSOCIATES (UK) LTD,id:14844375    ,4800.00
Department of Health,Guys and St Thomas NHS Foundation Trust,18/02/2022,(81100) Dressings,(id:780420) Cardiovascular Services,NHS SUPPLY CHAIN (MAIDSTONE),id:14795733   , 715.71
Department of Health,Guys and St Thomas NHS Foundation Trust,18/02/2022,(83400) Office Equipment,(id:780420) Cardiovascular Services,NHS SUPPLY CHAIN (MAIDSTONE),id:14850234 , 127.83
Department of Health,Guys and St Thomas NHS Foundation Trust,18/02/2022,(81200) Medical Surgical Supplies & Equipment,(id:780420) Cardiovascular Services,NHS SUPPLY CHAIN (MAIDSTONE),id:14850234, 786.79
Department of Health,Guys and St Thomas NHS Foundation Trust,11/02/2022,(50522) Unqualified Nursing Staff,(id:780420) Cardiovascular Services,CARE PROVIDERS HEALTHCARE,id:14909505, 204.01
Department of Health,Guys and St Thomas NHS Foundation Trust,18/02/2022,(50522) Unqualified Nursing Staff,(id:780420) Cardiovascular Services,MSI GROUP LTD,id:14932145  , 286.22
Department of Health,Guys and St Thomas NHS Foundation Trust,18/02/2022,(50522) Unqualified Nursing Staff,(id:780420) Cardiovascular Services,MSI GROUP LTD,id:14936521  , 329.34
Department of Health,Guys and St Thomas NHS Foundation Trust,18/02/2022,(82000) Provisions & Kitchens,(id:41952) Cardiovascular Services,NHS SUPPLY CHAIN (MAIDSTONE),id:14850234  , 183.25
Department of Health,Guys and St Thomas NHS Foundation Trust,18/02/2022,(81100) Dressings,(id:41952) Cardiovascular Services,NHS SUPPLY CHAIN (MAIDSTONE),id:14813451    , 367.63
Department of Health,Guys and St Thomas NHS Foundation Trust,18/02/2022,(81200) Medical Surgical Supplies & Equipment,(id:41950) Cardiovascular Services,NHS SUPPLY CHAIN (MAIDSTONE),id:14813451 ,    11881.06
Department of Health,Guys and St Thomas NHS Foundation Trust,18/02/2022,(81100) Dressings,(id:41950) Cardiovascular Services,NHS SUPPLY CHAIN (MAIDSTONE),id:14813451    ,  25.80
Department of Health,Guys and St Thomas NHS Foundation Trust,18/02/2022,(81225) Medical Surgical Supplies & Equipment,(id:41950) Cardiovascular Services,NHS SUPPLY CHAIN (MAIDSTONE),id:14795733 ,  40.61
Department of Health,Guys and St Thomas NHS Foundation Trust,18/02/2022,(81225) Medical Surgical Supplies & Equipment,(id:41950) Cardiovascular Services,NHS SUPPLY CHAIN (MAIDSTONE),id:14813451 ,  30.46
Department of Health,Guys and St Thomas NHS Foundation Trust,18/02/2022,(81500) X Ray Equipment Purchase,(id:41950) Cardiovascular Services,NHS SUPPLY CHAIN (MAIDSTONE),id:14850234    , 186.60
Department of Health,Guys and St Thomas NHS Foundation Trust,18/02/2022,(81200) Medical Surgical Supplies & Equipment,(id:41948) Cardiovascular Services,BARD LTD,id:14832971 ,2307.24
Department of Health,Guys and St Thomas NHS Foundation Trust,18/02/2022,(81200) Medical Surgical Supplies & Equipment,(id:41948) Cardiovascular Services,NHS SUPPLY CHAIN (MAIDSTONE),id:14813451 , 289.24
Department of Health,Guys and St Thomas NHS Foundation Trust,18/02/2022,(83400) Office Equipment,(id:41947) Cardiovascular Services,NHS SUPPLY CHAIN (MAIDSTONE),id:14850234  ,  56.32
Department of Health,Guys and St Thomas NHS Foundation Trust,18/02/2022,(81200) Medical Surgical Supplies & Equipment,(id:41947) Cardiovascular Services,NHS SUPPLY CHAIN (MAIDSTONE),id:14850234 ,  12.53
Department of Health,Guys and St Thomas NHS Foundation Trust,25/02/2022,(83410) Office Equipment,(id:42305) Cardiovascular Services,RICOH UK LTD,id:14972537   , 451.18
Department of Health,Guys and St Thomas NHS Foundation Trust,25/02/2022,(83410) Office Equipment,(id:42305) Cardiovascular Services,RICOH UK LTD,id:14972524   , 605.04
Department of Health,Guys and St Thomas NHS Foundation Trust,11/02/2022,(84500) Establishment,(id:42300) Cardiovascular Services,OT GROUP LTD,id:14865334 , 834.00
Department of Health,Guys and St Thomas NHS Foundation Trust,18/02/2022,(83400) Office Equipment,(id:42300) Cardiovascular Services,NHS SUPPLY CHAIN (MAIDSTONE),id:14813451  , 308.38
Department of Health,Guys and St Thomas NHS Foundation Trust,18/02/2022,(81225) Medical Surgical Supplies & Equipment,(id:42300) Cardiovascular Services,NHS SUPPLY CHAIN (MAIDSTONE),id:14795733 ,  15.23
Department of Health,Guys and St Thomas NHS Foundation Trust,18/02/2022,(81700) Lab Equipment Purchase,(id:42300) Cardiovascular Services,NHS SUPPLY CHAIN (MAIDSTONE),id:14813451 ,  19.40
Department of Health,Guys and St Thomas NHS Foundation Trust,18/02/2022,(82000) Provisions & Kitchens,(id:42301) Cardiovascular Services,NHS SUPPLY CHAIN (MAIDSTONE),id:14795733  ,   5.07
Department of Health,Guys and St Thomas NHS Foundation Trust,25/02/2022,(81200) Medical Surgical Supplies & Equipment,(id:42302) Cardiovascular Services,XAVIOURMED LLP,id:14966979, 510.00
Department of Health,Guys and St Thomas NHS Foundation Trust,25/02/2022,(81200) Medical Surgical Supplies & Equipment,(id:42302) Cardiovascular Services,ZOLL MEDICAL UK LTD,id:14971093, 647.88
Department of Health,Guys and St Thomas NHS Foundation Trust,11/02/2022,(81200) Medical Surgical Supplies & Equipment,(id:42302) Cardiovascular Services,CARDINAL HEALTH UK 432 LIMITED,id:14811977    , 604.80
Department of Health,Guys and St Thomas NHS Foundation Trust,18/02/2022,(81200) Medical Surgical Supplies & Equipment,(id:42302) Cardiovascular Services,NHS SUPPLY CHAIN (MAIDSTONE),id:14813451 ,   113186.39
Department of Health,Guys and St Thomas NHS Foundation Trust,18/02/2022,(81200) Medical Surgical Supplies & Equipment,(id:42302) Cardiovascular Services,NHS SUPPLY CHAIN (MAIDSTONE),id:14795733 ,   111666.29
Department of Health,Guys and St Thomas NHS Foundation Trust,18/02/2022,(81200) Medical Surgical Supplies & Equipment,(id:42302) Cardiovascular Services,BOSTON SCIENTIFIC LTD,id:14863820   , 990.00
Department of Health,Guys and St Thomas NHS Foundation Trust,18/02/2022,(81200) Medical Surgical Supplies & Equipment,(id:42302) Cardiovascular Services,XAVIOURMED LLP,id:14910983, 510.00
Department of Health,Guys and St Thomas NHS Foundation Trust,18/02/2022,(81200) Medical Surgical Supplies & Equipment,(id:42302) Cardiovascular Services,XAVIOURMED LLP,id:14910981, 510.00
Department of Health,Guys and St Thomas NHS Foundation Trust,27/02/2022,(54062) Technical Officers,(id:42303) Cardiovascular Services,PRICEWATERHOUSECOOPERS LLP,id:14977054  ,1022.81
Department of Health,Guys and St Thomas NHS Foundation Trust,27/02/2022,(51842) Physiotherapists,(id:42303) Cardiovascular Services,PRICEWATERHOUSECOOPERS LLP,id:14977074    , 506.26
Department of Health,Guys and St Thomas NHS Foundation Trust,18/02/2022,(81200) Medical Surgical Supplies & Equipment,(id:3923419) Cardiovascular Services,NHS SUPPLY CHAIN (MAIDSTONE),id:14813451    , 315.66
Department of Health,Guys and St Thomas NHS Foundation Trust,27/02/2022,(54072) Technical Officers,(id:1243420) Cardiovascular Services,PRICEWATERHOUSECOOPERS LLP,id:14977074, 331.42
Department of Health,Guys and St Thomas NHS Foundation Trust,11/02/2022,(52072) Radiographers,(id:1243419) Cardiovascular Services,PRICEWATERHOUSECOOPERS LLP,id:14911634,1447.60
Department of Health,Guys and St Thomas NHS Foundation Trust,11/02/2022,(50522) Unqualified Nursing Staff,(id:42291) Cardiovascular Services,GLOBE LOCUMS LTD,id:14904517, 259.06
Department of Health,Guys and St Thomas NHS Foundation Trust,18/02/2022,(82600) Uniforms & Clothing,(id:42290) Cardiovascular Services,NHS SUPPLY CHAIN (MAIDSTONE),id:14795733    ,  16.84
Department of Health,Guys and St Thomas NHS Foundation Trust,18/02/2022,(82000) Provisions & Kitchens,(id:42290) Cardiovascular Services,NHS SUPPLY CHAIN (MAIDSTONE),id:14813451  ,   2.80
Department of Health,Guys and St Thomas NHS Foundation Trust,18/02/2022,(81100) Dressings,(id:42290) Cardiovascular Services,NHS SUPPLY CHAIN (MAIDSTONE),id:14795733    , 226.18
Department of Health,Guys and St Thomas NHS Foundation Trust,18/02/2022,(50552) Qualified Nursing Staff,(id:42290) Cardiovascular Services,PULSE HEALTHCARE LIMITED,id:14931876    , 687.90
Department of Health,Guys and St Thomas NHS Foundation Trust,04/02/2022,(50522) Unqualified Nursing Staff,(id:42290) Cardiovascular Services,CARE PROVIDERS HEALTHCARE,id:14862695 , 258.37
Department of Health,Guys and St Thomas NHS Foundation Trust,04/02/2022,(50522) Unqualified Nursing Staff,(id:42290) Cardiovascular Services,GLOBE LOCUMS LTD,id:14862846, 269.10
Department of Health,Guys and St Thomas NHS Foundation Trust,18/02/2022,(50522) Unqualified Nursing Staff,(id:42290) Cardiovascular Services,MSI GROUP LTD,id:14936496   , 269.97
Department of Health,Guys and St Thomas NHS Foundation Trust,18/02/2022,(83400) Office Equipment,(id:42298) Cardiovascular Services,NHS SUPPLY CHAIN (MAIDSTONE),id:14795733  ,  41.97
Department of Health,Guys and St Thomas NHS Foundation Trust,25/02/2022,(81200) Medical Surgical Supplies & Equipment,(id:42298) Cardiovascular Services,ABBOTT MEDICAL UK LTD,id:14926714   , 240.00
Department of Health,Guys and St Thomas NHS Foundation Trust,25/02/2022,(81200) Medical Surgical Supplies & Equipment,(id:42298) Cardiovascular Services,VASCULAR PERSPECTIVES LTD,id:14970133    , 660.00
Department of Health,Guys and St Thomas NHS Foundation Trust,25/02/2022,(81200) Medical Surgical Supplies & Equipment,(id:42298) Cardiovascular Services,JOHNSON & JOHNSON MEDICAL LTD,id:14901583, 862.32
Department of Health,Guys and St Thomas NHS Foundation Trust,11/02/2022,(81200) Medical Surgical Supplies & Equipment,(id:42298) Cardiovascular Services,TELEFLEX MEDICAL,id:14812008   ,1956.00
Department of Health,Guys and St Thomas NHS Foundation Trust,11/02/2022,(81200) Medical Surgical Supplies & Equipment,(id:42298) Cardiovascular Services,JOHNSON & JOHNSON MEDICAL LTD,id:14819731,1500.00
Department of Health,Guys and St Thomas NHS Foundation Trust,18/02/2022,(81200) Medical Surgical Supplies & Equipment,(id:42298) Cardiovascular Services,JOHNSON & JOHNSON MEDICAL LTD,id:14851027, 862.32
Department of Health,Guys and St Thomas NHS Foundation Trust,18/02/2022,(81200) Medical Surgical Supplies & Equipment,(id:42298) Cardiovascular Services,BIOTRONIK UK LTD,id:14935534   , 516.00
Department of Health,Guys and St Thomas NHS Foundation Trust,18/02/2022,(81100) Dressings,(id:42298) Cardiovascular Services,NHS SUPPLY CHAIN (MAIDSTONE),id:14795733    , 141.24
Department of Health,Guys and St Thomas NHS Foundation Trust,18/02/2022,(81230) Medical Surgical Supplies & Equipment,(id:42298) Cardiovascular Services,ABBOTT MEDICAL UK LTD,id:14893655   , 918.00
Department of Health,Guys and St Thomas NHS Foundation Trust,18/02/2022,(81700) Lab Equipment Purchase,(id:42298) Cardiovascular Services,NHS SUPPLY CHAIN (MAIDSTONE),id:14850234 ,  13.36
Department of Health,Guys and St Thomas NHS Foundation Trust,18/02/2022,(82800) Bedding & Linen,(id:42298) Cardiovascular Services,NHS SUPPLY CHAIN (MAIDSTONE),id:14795733   ,  17.03
Department of Health,Guys and St Thomas NHS Foundation Trust,18/02/2022,(81240) Medical Surgical Supplies & Equipment,(id:42298) Cardiovascular Services,NHS SUPPLY CHAIN (MAIDSTONE),id:14813451 ,    24775.20
Department of Health,Guys and St Thomas NHS Foundation Trust,18/02/2022,(81240) Medical Surgical Supplies & Equipment,(id:42298) Cardiovascular Services,MEDTRONIC LTD,id:14907694 ,    23100.00
Department of Health,Guys and St Thomas NHS Foundation Trust,18/02/2022,(81240) Medical Surgical Supplies & Equipment,(id:42298) Cardiovascular Services,MEDTRONIC LTD,id:14907674 ,    23100.00
Department of Health,Guys and St Thomas NHS Foundation Trust,18/02/2022,(81200) Medical Surgical Supplies & Equipment,(id:42292) Cardiovascular Services,NHS SUPPLY CHAIN (MAIDSTONE),id:14850234 , 150.07
Department of Health,Guys and St Thomas NHS Foundation Trust,18/02/2022,(81200) Medical Surgical Supplies & Equipment,(id:42292) Cardiovascular Services,TERUMO UK LTD,id:14928555 , 672.00
Department of Health,Guys and St Thomas NHS Foundation Trust,18/02/2022,(83400) Office Equipment,(id:42293) Cardiovascular Services,NHS SUPPLY CHAIN (MAIDSTONE),id:14850234  , 198.75
Department of Health,Guys and St Thomas NHS Foundation Trust,25/02/2022,(81200) Medical Surgical Supplies & Equipment,(id:42293) Cardiovascular Services,JOHNSON & JOHNSON MEDICAL LTD,id:14872269, 308.92
Department of Health,Guys and St Thomas NHS Foundation Trust,04/02/2022,(81200) Medical Surgical Supplies & Equipment,(id:42293) Cardiovascular Services,EDWARDS LIFESCIENCES LTD,id:14863628, 576.00
Department of Health,Guys and St Thomas NHS Foundation Trust,11/02/2022,(81200) Medical Surgical Supplies & Equipment,(id:42293) Cardiovascular Services,MEDTRONIC LTD,id:14819716 ,1108.80
Department of Health,Guys and St Thomas NHS Foundation Trust,18/02/2022,(81200) Medical Surgical Supplies & Equipment,(id:42293) Cardiovascular Services,NHS SUPPLY CHAIN (MAIDSTONE),id:14850234 , 322.77
Department of Health,Guys and St Thomas NHS Foundation Trust,25/02/2022,(81280) Medical Surgical Supplies & Equipment,(id:42293) Cardiovascular Services,LEMAITRE VASCULAR LTD,id:14921859   ,2238.00
Department of Health,Guys and St Thomas NHS Foundation Trust,25/02/2022,(81280) Medical Surgical Supplies & Equipment,(id:42293) Cardiovascular Services,EDWARDS LIFESCIENCES LTD,id:14972654,3420.00
Department of Health,Guys and St Thomas NHS Foundation Trust,11/02/2022,(81280) Medical Surgical Supplies & Equipment,(id:42293) Cardiovascular Services,EDWARDS LIFESCIENCES LTD,id:14908761,1056.00
Department of Health,Guys and St Thomas NHS Foundation Trust,11/02/2022,(81280) Medical Surgical Supplies & Equipment,(id:42293) Cardiovascular Services,EDWARDS LIFESCIENCES LTD,id:14908754,3420.00
Department of Health,Guys and St Thomas NHS Foundation Trust,18/02/2022,(83400) Office Equipment,(id:42287) Cardiovascular Services,NHS SUPPLY CHAIN (MAIDSTONE),id:14795733  , 159.89
Department of Health,Guys and St Thomas NHS Foundation Trust,18/02/2022,(81200) Medical Surgical Supplies & Equipment,(id:42287) Cardiovascular Services,NHS SUPPLY CHAIN (MAIDSTONE),id:14813451 , 404.52
Department of Health,Guys and St Thomas NHS Foundation Trust,25/02/2022,(50522) Unqualified Nursing Staff,(id:42287) Cardiovascular Services,MSI GROUP LTD,id:14969816   ,1081.05
Department of Health,Guys and St Thomas NHS Foundation Trust,18/02/2022,(81225) Medical Surgical Supplies & Equipment,(id:42287) Cardiovascular Services,NHS SUPPLY CHAIN (MAIDSTONE),id:14850234 ,  20.31
Department of Health,Guys and St Thomas NHS Foundation Trust,25/02/2022,(81200) Medical Surgical Supplies & Equipment,(id:41863) PACCS,RESMED (UK) LTD,id:14901300  ,4800.00
Department of Health,Guys and St Thomas NHS Foundation Trust,25/02/2022,(81200) Medical Surgical Supplies & Equipment,(id:41863) PACCS,RESMED (UK) LTD,id:14901314  ,4800.00
Department of Health,Guys and St Thomas NHS Foundation Trust,11/02/2022,(81200) Medical Surgical Supplies & Equipment,(id:41863) PACCS,RESMED (UK) LTD,id:14901399  ,1920.00
Department of Health,Guys and St Thomas NHS Foundation Trust,18/02/2022,(81200) Medical Surgical Supplies & Equipment,(id:41863) PACCS,RESMED (UK) LTD,id:14861355  ,4800.00
Department of Health,Guys and St Thomas NHS Foundation Trust,18/02/2022,(84656) Establishment,(id:41863) PACCS,DICT8 LIMITED,id:14869681   , 901.20
Department of Health,Guys and St Thomas NHS Foundation Trust,11/02/2022,(84500) Establishment,(id:41935) PACCS,OT GROUP LTD,id:14857121    , 782.78
Department of Health,Guys and St Thomas NHS Foundation Trust,25/02/2022,(50562) Qualified Nursing Staff,(id:41935) PACCS,GLOBE LOCUMS LTD,id:14972795, 476.18
Department of Health,Guys and St Thomas NHS Foundation Trust,25/02/2022,(50562) Qualified Nursing Staff,(id:41935) PACCS,MEDICSPRO LTD,id:14969911   , 509.80
Department of Health,Guys and St Thomas NHS Foundation Trust,25/02/2022,(50562) Qualified Nursing Staff,(id:41935) PACCS,CROMWELL MEDICAL STAFFING LIMITED,id:14969789   , 509.80
Department of Health,Guys and St Thomas NHS Foundation Trust,04/02/2022,(50562) Qualified Nursing Staff,(id:41935) PACCS,URGENT STAFFING LTD,id:14862677  , 572.11
Department of Health,Guys and St Thomas NHS Foundation Trust,25/02/2022,(81200) Medical Surgical Supplies & Equipment,(id:41935) PACCS,WILLIAMS MEDICAL SUPPLIES PLC,id:14725872   , 546.60
Department of Health,Guys and St Thomas NHS Foundation Trust,11/02/2022,(81200) Medical Surgical Supplies & Equipment,(id:41935) PACCS,RESMED (UK) LTD,id:14828935  , 864.00
Department of Health,Guys and St Thomas NHS Foundation Trust,18/02/2022,(86300) Healthcare from non-NHS bodies,(id:1856419) PACCS,REMEO HEALTHCARE LIMITED,id:14931377   ,    35997.50
Department of Health,Guys and St Thomas NHS Foundation Trust,18/02/2022,(81200) Medical Surgical Supplies & Equipment,(id:2545419) PACCS,NHS SUPPLY CHAIN (MAIDSTONE),id:14850234  , 740.38
Department of Health,Guys and St Thomas NHS Foundation Trust,18/02/2022,(82800) Bedding & Linen,(id:2545419) PACCS,NHS SUPPLY CHAIN (MAIDSTONE),id:14813451    , 133.13
Department of Health,Guys and St Thomas NHS Foundation Trust,18/02/2022,(81100) Dressings,(id:2545419) PACCS,NHS SUPPLY CHAIN (MAIDSTONE),id:14813451,  37.84
Department of Health,Guys and St Thomas NHS Foundation Trust,18/02/2022,(81100) Dressings,(id:2545419) PACCS,NHS SUPPLY CHAIN (MAIDSTONE),id:14795733, 194.23
Department of Health,Guys and St Thomas NHS Foundation Trust,18/02/2022,(83400) Office Equipment,(id:41919) PACCS,NHS SUPPLY CHAIN (MAIDSTONE),id:14813451,   2.05
Department of Health,Guys and St Thomas NHS Foundation Trust,18/02/2022,(81700) Lab Equipment Purchase,(id:1842421) PACCS,NHS SUPPLY CHAIN (MAIDSTONE),id:14813451  ,  19.40
Department of Health,Guys and St Thomas NHS Foundation Trust,18/02/2022,(82000) Provisions & Kitchens,(id:1842421) PACCS,NHS SUPPLY CHAIN (MAIDSTONE),id:14813451   ,  15.00
Department of Health,Guys and St Thomas NHS Foundation Trust,18/02/2022,(81225) Medical Surgical Supplies & Equipment,(id:1842421) PACCS,NHS SUPPLY CHAIN (MAIDSTONE),id:14795733  , 327.42
Department of Health,Guys and St Thomas NHS Foundation Trust,18/02/2022,(83400) Office Equipment,(id:1842421) PACCS,NHS SUPPLY CHAIN (MAIDSTONE),id:14795733   ,  67.32
Department of Health,Guys and St Thomas NHS Foundation Trust,18/02/2022,(81100) Dressings,(id:2121419) PACCS,NHS SUPPLY CHAIN (MAIDSTONE),id:14850234,  10.65
Department of Health,Guys and St Thomas NHS Foundation Trust,18/02/2022,(82800) Bedding & Linen,(id:3135419) PACCS,NHS SUPPLY CHAIN (MAIDSTONE),id:14795733    ,  31.39
Department of Health,Guys and St Thomas NHS Foundation Trust,18/02/2022,(83500) Furniture & Fittings,(id:3135419) PACCS,1ST CALL MOBILITY LTD,id:14782296 , 792.00
Department of Health,Guys and St Thomas NHS Foundation Trust,25/02/2022,(81200) Medical Surgical Supplies & Equipment,(id:4819420) PACCS,B.BRAUN MEDICAL LTD,id:14924201 , 894.00
Department of Health,Guys and St Thomas NHS Foundation Trust,11/02/2022,(81200) Medical Surgical Supplies & Equipment,(id:4819420) PACCS,HAMILTON MEDICAL UK (A DIVISION OF HAMILTON SALES & SERVICE UK LTD),id:14781714   ,3264.00
Department of Health,Guys and St Thomas NHS Foundation Trust,18/02/2022,(83400) Office Equipment,(id:41927) PACCS,NHS SUPPLY CHAIN (MAIDSTONE),id:14795733,  83.92
Department of Health,Guys and St Thomas NHS Foundation Trust,18/02/2022,(81275) Medical Surgical Supplies & Equipment,(id:41927) PACCS,NHS SUPPLY CHAIN (MAIDSTONE),id:14850234    ,  14.46
Department of Health,Guys and St Thomas NHS Foundation Trust,18/02/2022,(82000) Provisions & Kitchens,(id:41928) PACCS,NHS SUPPLY CHAIN (MAIDSTONE),id:14850234, 100.49
Department of Health,Guys and St Thomas NHS Foundation Trust,18/02/2022,(83400) Office Equipment,(id:41928) PACCS,NHS SUPPLY CHAIN (MAIDSTONE),id:14850234, 919.79
Department of Health,Guys and St Thomas NHS Foundation Trust,04/02/2022,(83500) Furniture & Fittings,(id:41928) PACCS,DISPOSABLE CUBICLE CURTAINS LIMITED T/A HYGENICA,id:14843486 , 503.10
Department of Health,Guys and St Thomas NHS Foundation Trust,18/02/2022,(81100) Dressings,(id:41928) PACCS,NHS SUPPLY CHAIN (MAIDSTONE),id:14850234  ,2259.50
Department of Health,Guys and St Thomas NHS Foundation Trust,25/02/2022,(81200) Medical Surgical Supplies & Equipment,(id:41928) PACCS,ZOLL MEDICAL UK LTD,id:14971099   , 614.69
Department of Health,Guys and St Thomas NHS Foundation Trust,25/02/2022,(81200) Medical Surgical Supplies & Equipment,(id:41928) PACCS,BOC LTD :02107500,id:14760354,1632.00
Department of Health,Guys and St Thomas NHS Foundation Trust,04/02/2022,(81200) Medical Surgical Supplies & Equipment,(id:41928) PACCS,BOC LTD :02107500,id:14797474,3216.00
Department of Health,Guys and St Thomas NHS Foundation Trust,11/02/2022,(81200) Medical Surgical Supplies & Equipment,(id:41928) PACCS,KAPITEX HEALTHCARE LTD,id:14855955, 963.80
Department of Health,Guys and St Thomas NHS Foundation Trust,11/02/2022,(81200) Medical Surgical Supplies & Equipment,(id:41928) PACCS,HAMILTON MEDICAL UK (A DIVISION OF HAMILTON SALES & SERVICE UK LTD),id:14855074, 619.20
Department of Health,Guys and St Thomas NHS Foundation Trust,11/02/2022,(81200) Medical Surgical Supplies & Equipment,(id:41928) PACCS,BOC LTD :02107500,id:14846015,1632.00
Department of Health,Guys and St Thomas NHS Foundation Trust,18/02/2022,(81200) Medical Surgical Supplies & Equipment,(id:41928) PACCS,NHS SUPPLY CHAIN (MAIDSTONE),id:14813451    ,9468.81
Department of Health,Guys and St Thomas NHS Foundation Trust,25/02/2022,(50522) Unqualified Nursing Staff,(id:41928) PACCS,CARE PROVIDERS HEALTHCARE,id:14969894    , 593.97
Department of Health,Guys and St Thomas NHS Foundation Trust,18/02/2022,(81275) Medical Surgical Supplies & Equipment,(id:41928) PACCS,NHS SUPPLY CHAIN (MAIDSTONE),id:14850234    ,  14.46
Department of Health,Guys and St Thomas NHS Foundation Trust,04/02/2022,(50562) Qualified Nursing Staff,(id:41928) PACCS,MEDICSPRO LTD,id:14862889   , 564.16
Department of Health,Guys and St Thomas NHS Foundation Trust,04/02/2022,(50562) Qualified Nursing Staff,(id:41928) PACCS,AMC PROFESSIONAL LTD,id:14862801 , 580.05
Department of Health,Guys and St Thomas NHS Foundation Trust,04/02/2022,(50562) Qualified Nursing Staff,(id:41928) PACCS,AMC PROFESSIONAL LTD,id:14830113 , 735.20
Department of Health,Guys and St Thomas NHS Foundation Trust,04/02/2022,(50562) Qualified Nursing Staff,(id:41928) PACCS,AMC PROFESSIONAL LTD,id:14862735 ,1470.40
Department of Health,Guys and St Thomas NHS Foundation Trust,04/02/2022,(50562) Qualified Nursing Staff,(id:41928) PACCS,AMC PROFESSIONAL LTD,id:14830230 , 754.97
Department of Health,Guys and St Thomas NHS Foundation Trust,04/02/2022,(50562) Qualified Nursing Staff,(id:41928) PACCS,AMC PROFESSIONAL LTD,id:14830115 , 764.62
Department of Health,Guys and St Thomas NHS Foundation Trust,04/02/2022,(50562) Qualified Nursing Staff,(id:41928) PACCS,AMC PROFESSIONAL LTD,id:14863106 , 798.00
Department of Health,Guys and St Thomas NHS Foundation Trust,04/02/2022,(50562) Qualified Nursing Staff,(id:41928) PACCS,CROMWELL MEDICAL STAFFING LIMITED,id:14862962   , 509.80
Department of Health,Guys and St Thomas NHS Foundation Trust,04/02/2022,(50562) Qualified Nursing Staff,(id:41928) PACCS,AMC PROFESSIONAL LTD,id:14830191 , 558.92
Department of Health,Guys and St Thomas NHS Foundation Trust,11/02/2022,(50562) Qualified Nursing Staff,(id:41928) PACCS,AMC PROFESSIONAL LTD,id:14904647 , 566.66
Department of Health,Guys and St Thomas NHS Foundation Trust,11/02/2022,(50562) Qualified Nursing Staff,(id:41928) PACCS,URGENT STAFFING LTD,id:14904269  , 579.26
Department of Health,Guys and St Thomas NHS Foundation Trust,11/02/2022,(50562) Qualified Nursing Staff,(id:41928) PACCS,AMC PROFESSIONAL LTD,id:14904646 , 599.27
Department of Health,Guys and St Thomas NHS Foundation Trust,11/02/2022,(50562) Qualified Nursing Staff,(id:41928) PACCS,AMC PROFESSIONAL LTD,id:14904580 , 684.10
Department of Health,Guys and St Thomas NHS Foundation Trust,11/02/2022,(50562) Qualified Nursing Staff,(id:41928) PACCS,AMC PROFESSIONAL LTD,id:14904579 ,1406.11
Department of Health,Guys and St Thomas NHS Foundation Trust,11/02/2022,(50562) Qualified Nursing Staff,(id:41928) PACCS,AMC PROFESSIONAL LTD,id:14904181 , 735.20
Department of Health,Guys and St Thomas NHS Foundation Trust,11/02/2022,(50562) Qualified Nursing Staff,(id:41928) PACCS,AMC PROFESSIONAL LTD,id:14904187 , 735.20
Department of Health,Guys and St Thomas NHS Foundation Trust,11/02/2022,(50562) Qualified Nursing Staff,(id:41928) PACCS,AMC PROFESSIONAL LTD,id:14904253 , 754.97
Department of Health,Guys and St Thomas NHS Foundation Trust,11/02/2022,(50562) Qualified Nursing Staff,(id:41928) PACCS,AMC PROFESSIONAL LTD,id:14904186 , 754.97
Department of Health,Guys and St Thomas NHS Foundation Trust,11/02/2022,(50562) Qualified Nursing Staff,(id:41928) PACCS,AMC PROFESSIONAL LTD,id:14904184 , 754.97
Department of Health,Guys and St Thomas NHS Foundation Trust,11/02/2022,(50562) Qualified Nursing Staff,(id:41928) PACCS,AMC PROFESSIONAL LTD,id:14904520 , 798.00
Department of Health,Guys and St Thomas NHS Foundation Trust,18/02/2022,(50562) Qualified Nursing Staff,(id:41928) PACCS,MEDICSPRO LTD,id:14931863   , 509.80
Department of Health,Guys and St Thomas NHS Foundation Trust,18/02/2022,(50562) Qualified Nursing Staff,(id:41928) PACCS,URGENT STAFFING LTD,id:14931821  , 564.16
Department of Health,Guys and St Thomas NHS Foundation Trust,18/02/2022,(50562) Qualified Nursing Staff,(id:41928) PACCS,URGENT STAFFING LTD,id:14931951  ,1128.32
Department of Health,Guys and St Thomas NHS Foundation Trust,18/02/2022,(50562) Qualified Nursing Staff,(id:41928) PACCS,URGENT STAFFING LTD,id:14931747  ,1128.32
Department of Health,Guys and St Thomas NHS Foundation Trust,18/02/2022,(50562) Qualified Nursing Staff,(id:41928) PACCS,CROMWELL MEDICAL STAFFING LIMITED,id:14932036   , 612.15
Department of Health,Guys and St Thomas NHS Foundation Trust,18/02/2022,(50562) Qualified Nursing Staff,(id:41928) PACCS,AMC PROFESSIONAL LTD,id:14932088 , 735.20
Department of Health,Guys and St Thomas NHS Foundation Trust,18/02/2022,(50562) Qualified Nursing Staff,(id:41928) PACCS,AMC PROFESSIONAL LTD,id:14931800 , 735.20
Department of Health,Guys and St Thomas NHS Foundation Trust,18/02/2022,(50562) Qualified Nursing Staff,(id:41928) PACCS,AMC PROFESSIONAL LTD,id:14932162 , 754.97
Department of Health,Guys and St Thomas NHS Foundation Trust,18/02/2022,(50562) Qualified Nursing Staff,(id:41928) PACCS,AMC PROFESSIONAL LTD,id:14932089 ,1620.48
Department of Health,Guys and St Thomas NHS Foundation Trust,25/02/2022,(50532) Unqualified Nursing Staff,(id:41931) PACCS,CONTINENTAL NURSE LTD,id:14972809   ,2166.62
Department of Health,Guys and St Thomas NHS Foundation Trust,18/02/2022,(81100) Dressings,(id:41931) PACCS,NHS SUPPLY CHAIN (MAIDSTONE),id:14795733  , 444.35
Department of Health,Guys and St Thomas NHS Foundation Trust,04/02/2022,(50552) Qualified Nursing Staff,(id:41931) PACCS,MSI GROUP LTD,id:14862836   , 964.97
Department of Health,Guys and St Thomas NHS Foundation Trust,04/02/2022,(50552) Qualified Nursing Staff,(id:41931) PACCS,MSI GROUP LTD,id:14868797   , 740.01
Department of Health,Guys and St Thomas NHS Foundation Trust,11/02/2022,(50552) Qualified Nursing Staff,(id:41931) PACCS,MSI GROUP LTD,id:14904242   , 223.54
Department of Health,Guys and St Thomas NHS Foundation Trust,18/02/2022,(50552) Qualified Nursing Staff,(id:41931) PACCS,CONTINENTAL NURSE LTD,id:14932080,3653.74
Department of Health,Guys and St Thomas NHS Foundation Trust,25/02/2022,(50562) Qualified Nursing Staff,(id:41931) PACCS,CARE PROVIDERS HEALTHCARE,id:14969839 ,1692.49
Department of Health,Guys and St Thomas NHS Foundation Trust,04/02/2022,(50562) Qualified Nursing Staff,(id:41931) PACCS,CARE PROVIDERS HEALTHCARE,id:14862822 , 564.16
Department of Health,Guys and St Thomas NHS Foundation Trust,04/02/2022,(50562) Qualified Nursing Staff,(id:41931) PACCS,CARE PROVIDERS HEALTHCARE,id:14862696 , 612.15
Department of Health,Guys and St Thomas NHS Foundation Trust,04/02/2022,(50562) Qualified Nursing Staff,(id:41931) PACCS,AMC PROFESSIONAL LTD,id:14863105 , 754.97
Department of Health,Guys and St Thomas NHS Foundation Trust,11/02/2022,(50562) Qualified Nursing Staff,(id:41931) PACCS,YOUR NURSE LIMITED,id:14904202   , 564.16
Department of Health,Guys and St Thomas NHS Foundation Trust,11/02/2022,(50562) Qualified Nursing Staff,(id:41931) PACCS,AMC PROFESSIONAL LTD,id:14904458 , 612.15
Department of Health,Guys and St Thomas NHS Foundation Trust,11/02/2022,(50562) Qualified Nursing Staff,(id:41931) PACCS,AMC PROFESSIONAL LTD,id:14904185 , 735.20
Department of Health,Guys and St Thomas NHS Foundation Trust,18/02/2022,(50562) Qualified Nursing Staff,(id:41931) PACCS,AMC PROFESSIONAL LTD,id:14931886 , 599.27
Department of Health,Guys and St Thomas NHS Foundation Trust,18/02/2022,(50562) Qualified Nursing Staff,(id:41931) PACCS,AMC PROFESSIONAL LTD,id:14931671 , 764.62
Department of Health,Guys and St Thomas NHS Foundation Trust,18/02/2022,(81200) Medical Surgical Supplies & Equipment,(id:41864) PACCS,NHS SUPPLY CHAIN (MAIDSTONE),id:14813451    , 443.82
Department of Health,Guys and St Thomas NHS Foundation Trust,18/02/2022,(81200) Medical Surgical Supplies & Equipment,(id:41864) PACCS,NHS SUPPLY CHAIN (MAIDSTONE),id:14850234    ,1100.97
Department of Health,Guys and St Thomas NHS Foundation Trust,25/02/2022,(84600) Establishment,(id:987420) Hosted Services,CLARITY TRAVEL MANAGEMENT,id:14843478,  70.09
Department of Health,Guys and St Thomas NHS Foundation Trust,25/02/2022,(84600) Establishment,(id:221406) Hosted Services,CLARITY TRAVEL MANAGEMENT,id:14843478,-631.11
Department of Health,Guys and St Thomas NHS Foundation Trust,04/02/2022,(84000) Transport,(id:590619) Central Services,ALLSTAR BUSINESS SOLUTIONS LTD (ARVAL),id:14861875,3257.31
Department of Health,Guys and St Thomas NHS Foundation Trust,04/02/2022,(84100) Transport,(id:590619) Central Services,Q DESPATCH (WEST) LTD,id:14798550  ,1575.00
Department of Health,Guys and St Thomas NHS Foundation Trust,25/02/2022,(84200) Rental under Operating Lease,(id:590619) Central Services,LEASEPLAN UK LIMITED,id:14936746    , 512.03
Department of Health,Guys and St Thomas NHS Foundation Trust,18/02/2022,(84200) Rental under Operating Lease,(id:590619) Central Services,ENTERPRISE RENT A CAR LTD,id:14861674    ,9127.56
Department of Health,Guys and St Thomas NHS Foundation Trust,25/02/2022,(84400) Transport,(id:42579) Central Services,STARCROSS TRADING LTD T/A BEARS,id:14970696   , 828.50
Department of Health,Guys and St Thomas NHS Foundation Trust,25/02/2022,(84400) Transport,(id:42579) Central Services,STARCROSS TRADING LTD T/A BEARS,id:14970242   ,1085.60
Department of Health,Guys and St Thomas NHS Foundation Trust,25/02/2022,(84400) Transport,(id:42579) Central Services,STARCROSS TRADING LTD T/A BEARS,id:14970678   ,1710.00
Department of Health,Guys and St Thomas NHS Foundation Trust,25/02/2022,(84400) Transport,(id:42579) Central Services,STARCROSS TRADING LTD T/A BEARS,id:14970463   ,1743.84
Department of Health,Guys and St Thomas NHS Foundation Trust,25/02/2022,(84400) Transport,(id:42579) Central Services,STARCROSS TRADING LTD T/A BEARS,id:14970702   ,3009.50
Department of Health,Guys and St Thomas NHS Foundation Trust,25/02/2022,(84400) Transport,(id:42579) Central Services,STARCROSS TRADING LTD T/A BEARS,id:14970308   ,3730.10
Department of Health,Guys and St Thomas NHS Foundation Trust,25/02/2022,(84400) Transport,(id:42579) Central Services,STARCROSS TRADING LTD T/A BEARS,id:14970225   ,3947.00
Department of Health,Guys and St Thomas NHS Foundation Trust,25/02/2022,(84400) Transport,(id:42579) Central Services,STARCROSS TRADING LTD T/A BEARS,id:14970331   ,4565.91
Department of Health,Guys and St Thomas NHS Foundation Trust,25/02/2022,(84400) Transport,(id:42579) Central Services,STARCROSS TRADING LTD T/A BEARS,id:14970199   ,6347.00
Department of Health,Guys and St Thomas NHS Foundation Trust,25/02/2022,(84400) Transport,(id:42579) Central Services,STARCROSS TRADING LTD T/A BEARS,id:14970302   ,7150.95
Department of Health,Guys and St Thomas NHS Foundation Trust,04/02/2022,(84400) Transport,(id:42579) Central Services,STARCROSS TRADING LTD T/A BEARS,id:14863539   , 653.70
Department of Health,Guys and St Thomas NHS Foundation Trust,04/02/2022,(84400) Transport,(id:42579) Central Services,STARCROSS TRADING LTD T/A BEARS,id:14846896   , 664.80
Department of Health,Guys and St Thomas NHS Foundation Trust,04/02/2022,(84400) Transport,(id:42579) Central Services,STARCROSS TRADING LTD T/A BEARS,id:14846834   , 669.60
Department of Health,Guys and St Thomas NHS Foundation Trust,04/02/2022,(84400) Transport,(id:42579) Central Services,STARCROSS TRADING LTD T/A BEARS,id:14863541   , 756.50
Department of Health,Guys and St Thomas NHS Foundation Trust,04/02/2022,(84400) Transport,(id:42579) Central Services,STARCROSS TRADING LTD T/A BEARS,id:14846854   , 774.00
Department of Health,Guys and St Thomas NHS Foundation Trust,04/02/2022,(84400) Transport,(id:42579) Central Services,STARCROSS TRADING LTD T/A BEARS,id:14863577   ,1436.66
Department of Health,Guys and St Thomas NHS Foundation Trust,04/02/2022,(84400) Transport,(id:42579) Central Services,STARCROSS TRADING LTD T/A BEARS,id:14869514   ,1941.93
Department of Health,Guys and St Thomas NHS Foundation Trust,04/02/2022,(84400) Transport,(id:42579) Central Services,STARCROSS TRADING LTD T/A BEARS,id:14863357   ,2130.00
Department of Health,Guys and St Thomas NHS Foundation Trust,04/02/2022,(84400) Transport,(id:42579) Central Services,STARCROSS TRADING LTD T/A BEARS,id:14869976   ,3200.00
Department of Health,Guys and St Thomas NHS Foundation Trust,04/02/2022,(84400) Transport,(id:42579) Central Services,STARCROSS TRADING LTD T/A BEARS,id:14863374   ,3218.50
Department of Health,Guys and St Thomas NHS Foundation Trust,04/02/2022,(84400) Transport,(id:42579) Central Services,STARCROSS TRADING LTD T/A BEARS,id:14863559   ,3833.85
Department of Health,Guys and St Thomas NHS Foundation Trust,04/02/2022,(84400) Transport,(id:42579) Central Services,STARCROSS TRADING LTD T/A BEARS,id:14863527   ,4000.00
Department of Health,Guys and St Thomas NHS Foundation Trust,04/02/2022,(84400) Transport,(id:42579) Central Services,STARCROSS TRADING LTD T/A BEARS,id:14846799   ,4135.00
Department of Health,Guys and St Thomas NHS Foundation Trust,04/02/2022,(84400) Transport,(id:42579) Central Services,STARCROSS TRADING LTD T/A BEARS,id:14846795   ,4800.00
Department of Health,Guys and St Thomas NHS Foundation Trust,04/02/2022,(84400) Transport,(id:42579) Central Services,STARCROSS TRADING LTD T/A BEARS,id:14846757   ,5200.00
Department of Health,Guys and St Thomas NHS Foundation Trust,04/02/2022,(84400) Transport,(id:42579) Central Services,SAVOY VENTURES LTD.,id:14861831,8426.36
Department of Health,Guys and St Thomas NHS Foundation Trust,04/02/2022,(84400) Transport,(id:42579) Central Services,STARCROSS TRADING LTD T/A BEARS,id:14869615   ,    10200.00
Department of Health,Guys and St Thomas NHS Foundation Trust,04/02/2022,(84400) Transport,(id:42579) Central Services,STARCROSS TRADING LTD T/A BEARS,id:14846634   ,    21600.00
Department of Health,Guys and St Thomas NHS Foundation Trust,04/02/2022,(84400) Transport,(id:42579) Central Services,STARCROSS TRADING LTD T/A BEARS,id:14869617   ,    22820.00
Department of Health,Guys and St Thomas NHS Foundation Trust,04/02/2022,(84400) Transport,(id:42579) Central Services,STARCROSS TRADING LTD T/A BEARS,id:14846754   ,5600.00
Department of Health,Guys and St Thomas NHS Foundation Trust,04/02/2022,(84400) Transport,(id:42579) Central Services,STARCROSS TRADING LTD T/A BEARS,id:14863742   ,5610.57
Department of Health,Guys and St Thomas NHS Foundation Trust,04/02/2022,(84400) Transport,(id:42579) Central Services,STARCROSS TRADING LTD T/A BEARS,id:14846636   ,5760.00
Department of Health,Guys and St Thomas NHS Foundation Trust,04/02/2022,(84400) Transport,(id:42579) Central Services,STARCROSS TRADING LTD T/A BEARS,id:14846761   ,6000.00
Department of Health,Guys and St Thomas NHS Foundation Trust,04/02/2022,(84400) Transport,(id:42579) Central Services,STARCROSS TRADING LTD T/A BEARS,id:14846778   ,6400.00
Department of Health,Guys and St Thomas NHS Foundation Trust,04/02/2022,(84400) Transport,(id:42579) Central Services,STARCROSS TRADING LTD T/A BEARS,id:14863544   , 459.20
Department of Health,Guys and St Thomas NHS Foundation Trust,11/02/2022,(84400) Transport,(id:42579) Central Services,STARCROSS TRADING LTD T/A BEARS,id:14907274   , 720.00
Department of Health,Guys and St Thomas NHS Foundation Trust,11/02/2022,(84400) Transport,(id:42579) Central Services,STARCROSS TRADING LTD T/A BEARS,id:14906194   ,1769.10
Department of Health,Guys and St Thomas NHS Foundation Trust,11/02/2022,(84400) Transport,(id:42579) Central Services,STARCROSS TRADING LTD T/A BEARS,id:14907057   ,1847.66
Department of Health,Guys and St Thomas NHS Foundation Trust,11/02/2022,(84400) Transport,(id:42579) Central Services,STARCROSS TRADING LTD T/A BEARS,id:14907514   ,3238.00
Department of Health,Guys and St Thomas NHS Foundation Trust,11/02/2022,(84400) Transport,(id:42579) Central Services,STARCROSS TRADING LTD T/A BEARS,id:14910090   ,3873.65
Department of Health,Guys and St Thomas NHS Foundation Trust,11/02/2022,(84400) Transport,(id:42579) Central Services,STARCROSS TRADING LTD T/A BEARS,id:14907085   ,5015.14
Department of Health,Guys and St Thomas NHS Foundation Trust,11/02/2022,(84400) Transport,(id:42579) Central Services,STARCROSS TRADING LTD T/A BEARS,id:14905959   ,5547.00
Department of Health,Guys and St Thomas NHS Foundation Trust,11/02/2022,(84400) Transport,(id:42579) Central Services,STARCROSS TRADING LTD T/A BEARS,id:14906075   ,5947.00
Department of Health,Guys and St Thomas NHS Foundation Trust,11/02/2022,(84400) Transport,(id:42579) Central Services,STARCROSS TRADING LTD T/A BEARS,id:14905976   ,6962.00
Department of Health,Guys and St Thomas NHS Foundation Trust,11/02/2022,(84400) Transport,(id:42579) Central Services,STARCROSS TRADING LTD T/A BEARS,id:14907081   ,7100.77
Department of Health,Guys and St Thomas NHS Foundation Trust,18/02/2022,(84400) Transport,(id:42579) Central Services,STARCROSS TRADING LTD T/A BEARS,id:14933131   , 802.50
Department of Health,Guys and St Thomas NHS Foundation Trust,18/02/2022,(84400) Transport,(id:42579) Central Services,STARCROSS TRADING LTD T/A BEARS,id:14933137   ,2121.70
Department of Health,Guys and St Thomas NHS Foundation Trust,18/02/2022,(84400) Transport,(id:42579) Central Services,STARCROSS TRADING LTD T/A BEARS,id:14932618   ,2646.44
Department of Health,Guys and St Thomas NHS Foundation Trust,18/02/2022,(84400) Transport,(id:42579) Central Services,STARCROSS TRADING LTD T/A BEARS,id:14932641   ,3051.72
Department of Health,Guys and St Thomas NHS Foundation Trust,18/02/2022,(84400) Transport,(id:42579) Central Services,STARCROSS TRADING LTD T/A BEARS,id:14933118   ,3684.00
Department of Health,Guys and St Thomas NHS Foundation Trust,18/02/2022,(84400) Transport,(id:42579) Central Services,STARCROSS TRADING LTD T/A BEARS,id:14932219   ,4000.00
Department of Health,Guys and St Thomas NHS Foundation Trust,18/02/2022,(84400) Transport,(id:42579) Central Services,STARCROSS TRADING LTD T/A BEARS,id:14932208   ,4787.00
Department of Health,Guys and St Thomas NHS Foundation Trust,18/02/2022,(84400) Transport,(id:42579) Central Services,STARCROSS TRADING LTD T/A BEARS,id:14932220   ,6000.00
Department of Health,Guys and St Thomas NHS Foundation Trust,18/02/2022,(83400) Office Equipment,(id:42579) Central Services,NHS SUPPLY CHAIN (MAIDSTONE),id:14850234    ,  10.75
Department of Health,Guys and St Thomas NHS Foundation Trust,25/02/2022,(84200) Rental under Operating Lease,(id:42579) Central Services,LEASEPLAN UK LIMITED,id:14933076,    -2860.10
Department of Health,Guys and St Thomas NHS Foundation Trust,04/02/2022,(84000) Transport,(id:42579) Central Services,ALLSTAR BUSINESS SOLUTIONS LTD (ARVAL),id:14862154 ,    23249.87
Department of Health,Guys and St Thomas NHS Foundation Trust,04/02/2022,(84100) Transport,(id:42579) Central Services,OMD AUTOS LIMITED,id:14864674  , 250.00
Department of Health,Guys and St Thomas NHS Foundation Trust,04/02/2022,(84100) Transport,(id:42579) Central Services,OMD AUTOS LIMITED,id:14864794  , 728.47
Department of Health,Guys and St Thomas NHS Foundation Trust,11/02/2022,(84100) Transport,(id:42579) Central Services,OMD AUTOS LIMITED,id:14910100  , 575.00
Department of Health,Guys and St Thomas NHS Foundation Trust,18/02/2022,(84100) Transport,(id:42579) Central Services,OMD AUTOS LIMITED,id:14933152  , 938.30
Department of Health,Guys and St Thomas NHS Foundation Trust,18/02/2022,(83400) Office Equipment,(id:907422) Central Services,NHS SUPPLY CHAIN (MAIDSTONE),id:14850234   , 325.66
Department of Health,Guys and St Thomas NHS Foundation Trust,18/02/2022,(82000) Provisions & Kitchens,(id:42566) Central Services,NHS SUPPLY CHAIN (MAIDSTONE),id:14850234    , 581.28
Department of Health,Guys and St Thomas NHS Foundation Trust,18/02/2022,(83343) Premises Services,(id:492421) Central Services,VEOLIA ES (UK) LTD,id:14905257  , 498.42
Department of Health,Guys and St Thomas NHS Foundation Trust,11/02/2022,(83342) Premises Services,(id:1771428) Central Services,SRCL LTD,id:14904914 ,3191.70
Department of Health,Guys and St Thomas NHS Foundation Trust,11/02/2022,(83342) Premises Services,(id:1771420) Central Services,PHS GROUP,id:14888499, 551.34
Department of Health,Guys and St Thomas NHS Foundation Trust,18/02/2022,(81100) Dressings,(id:42598) Central Services,NHS SUPPLY CHAIN (MAIDSTONE),id:14795733 , 103.68
Department of Health,Guys and St Thomas NHS Foundation Trust,18/02/2022,(82800) Bedding & Linen,(id:42599) Central Services,NHS SUPPLY CHAIN (MAIDSTONE),id:14795733,  80.54
Department of Health,Guys and St Thomas NHS Foundation Trust,25/02/2022,(81100) Dressings,(id:42599) Central Services,ELIS UK LIMITED,id:14941614    , 468.00
Department of Health,Guys and St Thomas NHS Foundation Trust,25/02/2022,(81100) Dressings,(id:42599) Central Services,ELIS UK LIMITED,id:14941378    , 545.90
Department of Health,Guys and St Thomas NHS Foundation Trust,04/02/2022,(81100) Dressings,(id:42599) Central Services,ELIS UK LIMITED,id:14839009    , 720.00
Department of Health,Guys and St Thomas NHS Foundation Trust,04/02/2022,(81100) Dressings,(id:42599) Central Services,ELIS UK LIMITED,id:14830950    , 707.40
Department of Health,Guys and St Thomas NHS Foundation Trust,04/02/2022,(81100) Dressings,(id:42599) Central Services,ELIS UK LIMITED,id:14837934    , 630.90
Department of Health,Guys and St Thomas NHS Foundation Trust,04/02/2022,(84500) Establishment,(id:42599) Central Services,OT GROUP LTD,id:14832754   , 574.08
Department of Health,Guys and St Thomas NHS Foundation Trust,04/02/2022,(81200) Medical Surgical Supplies & Equipment,(id:42599) Central Services,FELCON LTD,id:14860454 ,1425.60
Department of Health,Guys and St Thomas NHS Foundation Trust,11/02/2022,(81200) Medical Surgical Supplies & Equipment,(id:42599) Central Services,KARL STORZ ENDOSCOPY UK LTD,id:14897297    ,1062.00
Department of Health,Guys and St Thomas NHS Foundation Trust,18/02/2022,(81200) Medical Surgical Supplies & Equipment,(id:42599) Central Services,NHS SUPPLY CHAIN (MAIDSTONE),id:14850234   , 144.08
Department of Health,Guys and St Thomas NHS Foundation Trust,04/02/2022,(81275) Medical Surgical Supplies & Equipment,(id:42599) Central Services,SERCHEM LTD,id:14845920, 705.66
Department of Health,Guys and St Thomas NHS Foundation Trust,18/02/2022,(82000) Provisions & Kitchens,(id:42599) Central Services,NHS SUPPLY CHAIN (MAIDSTONE),id:14850234    ,   6.44
Department of Health,Guys and St Thomas NHS Foundation Trust,18/02/2022,(82000) Provisions & Kitchens,(id:42599) Central Services,NHS SUPPLY CHAIN (MAIDSTONE),id:14813451    ,  15.85
Department of Health,Guys and St Thomas NHS Foundation Trust,18/02/2022,(81200) Medical Surgical Supplies & Equipment,(id:42601) Central Services,NHS SUPPLY CHAIN (MAIDSTONE),id:14795733   , 259.20
Department of Health,Guys and St Thomas NHS Foundation Trust,18/02/2022,(81400) Medical Surgical Supplies & Equipment,(id:42601) Central Services,NHS SUPPLY CHAIN (MAIDSTONE),id:14795733   ,1760.00
Department of Health,Guys and St Thomas NHS Foundation Trust,11/02/2022,(84620) Establishment,(id:42601) Central Services,CROWN WORKSPACE (FORMERLY PREMIER MOVES),id:14885994, 730.85
Department of Health,Guys and St Thomas NHS Foundation Trust,11/02/2022,(83400) Office Equipment,(id:42540) Central Services,LAZERBEAM FIRE AND SECURITY LTD,id:14908468 , 595.00
Department of Health,Guys and St Thomas NHS Foundation Trust,11/02/2022,(83400) Office Equipment,(id:42535) Central Services,NUTRIPACK LTD,id:14904135    ,3405.60
Department of Health,Guys and St Thomas NHS Foundation Trust,11/02/2022,(82600) Uniforms & Clothing,(id:42535) Central Services,M P D (UK SALES) LTD,id:14850489    ,2043.68
Department of Health,Guys and St Thomas NHS Foundation Trust,22/02/2022,(82000) Provisions & Kitchens,(id:42527) Central Services,PELICAN PROCUREMENT SERVICES LTD,id:14965080,8007.51
Department of Health,Guys and St Thomas NHS Foundation Trust,22/02/2022,(83400) Office Equipment,(id:42527) Central Services,PELICAN PROCUREMENT SERVICES LTD,id:14965080,1216.86
Department of Health,Guys and St Thomas NHS Foundation Trust,11/02/2022,(55432) Ancillary Staff,(id:42524) Central Services,BLUE ARROW LIMITED,id:14909753, 702.36
Department of Health,Guys and St Thomas NHS Foundation Trust,22/02/2022,(82000) Provisions & Kitchens,(id:42522) Central Services,PELICAN PROCUREMENT SERVICES LTD,id:14965080, 840.55
Department of Health,Guys and St Thomas NHS Foundation Trust,22/02/2022,(83400) Office Equipment,(id:42538) Central Services,PELICAN PROCUREMENT SERVICES LTD,id:14965080,2272.94
Department of Health,Guys and St Thomas NHS Foundation Trust,18/02/2022,(84500) Establishment,(id:42538) Central Services,OT GROUP LTD,id:14917934   , 535.26
Department of Health,Guys and St Thomas NHS Foundation Trust,04/02/2022,(81225) Medical Surgical Supplies & Equipment,(id:2100420) Central Services,J P LENNARD LTD,id:14849337    ,1790.32
Department of Health,Guys and St Thomas NHS Foundation Trust,25/02/2022,(83120) Energy Costs,(id:4934427) Asset Management,TOTAL GAS & POWER LIMITED,id:14970113    , 665.62
Department of Health,Guys and St Thomas NHS Foundation Trust,04/02/2022,(83210) Water & Sewerage,(id:4933420) Asset Management,SMARTA WATER LTD,id:14795954    , 181.50
Department of Health,Guys and St Thomas NHS Foundation Trust,18/02/2022,(83755) Rental under Operating Lease,(id:492414) Asset Management,LONDON BOROUGH OF SOUTHWARK:04102500,id:14931076   ,    19500.00
Department of Health,Guys and St Thomas NHS Foundation Trust,11/02/2022,(83765) Rent,(id:2718419) Asset Management,BOUYGUES UK LTD,id:14908716  ,   138558.48
Department of Health,Guys and St Thomas NHS Foundation Trust,04/02/2022,(83210) Water & Sewerage,(id:2591419) Asset Management,SMARTA WATER LTD,id:14795954    ,3012.00
Department of Health,Guys and St Thomas NHS Foundation Trust,11/02/2022,(83755) Rental under Operating Lease,(id:42624) Asset Management,BOUYGUES UK LTD,id:14907098,   -63813.84
Department of Health,Guys and St Thomas NHS Foundation Trust,25/02/2022,(89120) Other - Legal fees,(id:42624) Asset Management,BEACHCROFT LLP OFFICE ACCOUNT,id:14968610 , 426.00
Department of Health,Guys and St Thomas NHS Foundation Trust,25/02/2022,(89120) Other - Legal fees,(id:42624) Asset Management,BEACHCROFT LLP OFFICE ACCOUNT,id:14968634 ,1019.00
Department of Health,Guys and St Thomas NHS Foundation Trust,25/02/2022,(89120) Other - Legal fees,(id:42624) Asset Management,BEACHCROFT LLP OFFICE ACCOUNT,id:14968601 ,4864.00
Department of Health,Guys and St Thomas NHS Foundation Trust,11/02/2022,(89120) Other - Legal fees,(id:42624) Asset Management,BEACHCROFT LLP OFFICE ACCOUNT,id:14901094 , 468.60
Department of Health,Guys and St Thomas NHS Foundation Trust,11/02/2022,(89120) Other - Legal fees,(id:42624) Asset Management,BEACHCROFT LLP OFFICE ACCOUNT,id:14901116 ,4502.40
Department of Health,Guys and St Thomas NHS Foundation Trust,04/02/2022,(89280) Other - Consultancy costs,(id:42603) Essentia Director,THE MANAGEMENT RECRUITMENT GROUP LTD,id:14860214 ,9000.00
Department of Health,Guys and St Thomas NHS Foundation Trust,25/02/2022,(55642) Maintenance Staff,(id:492418) Essentia Community Services,MORGAN HUNT UK LTD,id:14972738 , 989.56
Department of Health,Guys and St Thomas NHS Foundation Trust,04/02/2022,(83820) Building & Engineering,(id:1116422) Essentia Community Services,LAZERBEAM FIRE AND SECURITY LTD,id:14809059  , 495.00
Department of Health,Guys and St Thomas NHS Foundation Trust,11/02/2022,(83350) Premises Services,(id:1627419) Essentia Community Services,ASSIST SECURITY LIMITED,id:14823596,1260.00
Department of Health,Guys and St Thomas NHS Foundation Trust,18/02/2022,(83360) Premises Services,(id:1116427) Essentia Community Services,WALKERS CLEANING SERVICE,id:14901814    , 290.00
Department of Health,Guys and St Thomas NHS Foundation Trust,25/02/2022,(83360) Premises Services,(id:3950419) Essentia Community Services,BYWATERS (LEYTON) LTD,id:14955878  , 520.22
Department of Health,Guys and St Thomas NHS Foundation Trust,25/02/2022,(83360) Premises Services,(id:3950419) Essentia Community Services,BYWATERS (LEYTON) LTD,id:14955910  , 825.01
Department of Health,Guys and St Thomas NHS Foundation Trust,11/02/2022,(83360) Premises Services,(id:3950419) Essentia Community Services,BYWATERS (LEYTON) LTD,id:14898857  , 820.45
Department of Health,Guys and St Thomas NHS Foundation Trust,18/02/2022,(83360) Premises Services,(id:1116419) Essentia Community Services,WALKERS CLEANING SERVICE,id:14901814    , 190.00
Department of Health,Guys and St Thomas NHS Foundation Trust,18/02/2022,(83360) Premises Services,(id:1116432) Essentia Community Services,WALKERS CLEANING SERVICE,id:14901814    ,  80.00
Department of Health,Guys and St Thomas NHS Foundation Trust,18/02/2022,(83880) Building & Engineering,(id:492412) Essentia Community Services,GRANTLEIGH LTD,id:14844886,4790.00
Department of Health,Guys and St Thomas NHS Foundation Trust,04/02/2022,(83881) Building & Engineering,(id:492541) Essentia Community Services,LONDON & SURREY ROOFING LTD,id:14832094  ,2000.00
Department of Health,Guys and St Thomas NHS Foundation Trust,18/02/2022,(83360) Premises Services,(id:492541) Essentia Community Services,WALKERS CLEANING SERVICE,id:14901814, 149.00
Department of Health,Guys and St Thomas NHS Foundation Trust,11/02/2022,(83110) Energy Costs,(id:42626) Essentia Infrastructure,EDF ENERGY,id:14897558    ,    62304.66
Department of Health,Guys and St Thomas NHS Foundation Trust,04/02/2022,(83210) Water & Sewerage,(id:42627) Essentia Infrastructure,SMARTA WATER LTD,id:14795954    ,    22954.75
Department of Health,Guys and St Thomas NHS Foundation Trust,25/02/2022,(83120) Energy Costs,(id:1788419) Essentia Infrastructure,TOTAL GAS & POWER LIMITED,id:14970163  ,   163855.78
Department of Health,Guys and St Thomas NHS Foundation Trust,25/02/2022,(55092) Admin & Clerical,(id:5312420) Essentia COO,MORGAN HUNT UK LTD,id:14970098 ,1285.92
Department of Health,Guys and St Thomas NHS Foundation Trust,04/02/2022,(81200) Medical Surgical Supplies & Equipment,(id:42615) Essentia COO,NIFES CONSULTING GROUP,id:14784854   ,    19300.00
Department of Health,Guys and St Thomas NHS Foundation Trust,04/02/2022,(55082) Admin & Clerical,(id:42615) Essentia COO,MMP CONSULTANCY LTD,id:14862999  ,1962.84
Department of Health,Guys and St Thomas NHS Foundation Trust,04/02/2022,(55082) Admin & Clerical,(id:42615) Essentia COO,MMP CONSULTANCY LTD,id:14862996  ,2012.53
Department of Health,Guys and St Thomas NHS Foundation Trust,18/02/2022,(55082) Admin & Clerical,(id:42615) Essentia COO,MMP CONSULTANCY LTD,id:14931874  ,1937.99
Department of Health,Guys and St Thomas NHS Foundation Trust,11/02/2022,(55082) Admin & Clerical,(id:1676419) Essentia COO,INSIGHT EXECUTIVE GROUP LTD,id:14909558  ,2854.56
Department of Health,Guys and St Thomas NHS Foundation Trust,18/02/2022,(83500) Furniture & Fittings,(id:42588) Essentia COO,INNOVATIVE DISPLAYS (TALKSIGN LTD),id:14936438   ,6480.00
Department of Health,Guys and St Thomas NHS Foundation Trust,18/02/2022,(83880) Building & Engineering,(id:2614419) Guys Site services,GRANTLEIGH LTD,id:14921919   ,1985.00
Department of Health,Guys and St Thomas NHS Foundation Trust,18/02/2022,(83400) Office Equipment,(id:373411) Guys Site services,NHS SUPPLY CHAIN (MAIDSTONE),id:14795733 ,  38.76
Department of Health,Guys and St Thomas NHS Foundation Trust,25/02/2022,(55632) Maintenance Staff,(id:42662) Guys Site services,MORGAN HUNT UK LTD,id:14969929 , 809.40
Department of Health,Guys and St Thomas NHS Foundation Trust,04/02/2022,(83400) Office Equipment,(id:42631) Guys Site services,HPC  PLC (CIS5),id:14780054, 797.62
Department of Health,Guys and St Thomas NHS Foundation Trust,04/02/2022,(83880) Building & Engineering,(id:42631) Guys Site services,ARCTIC-AIRCON LTD,id:14740394  , 795.00
Department of Health,Guys and St Thomas NHS Foundation Trust,04/02/2022,(83880) Building & Engineering,(id:42631) Guys Site services,RICHMONDS OF LONDON LTD,id:14794134 ,1065.56
Department of Health,Guys and St Thomas NHS Foundation Trust,11/02/2022,(83880) Building & Engineering,(id:42631) Guys Site services,EQUIAX LTD,id:14905774    , 592.00
Department of Health,Guys and St Thomas NHS Foundation Trust,11/02/2022,(83880) Building & Engineering,(id:42631) Guys Site services,AUTOFLAME SERVICES & SUPPPORT LTD,id:14780525 , 756.23
Department of Health,Guys and St Thomas NHS Foundation Trust,18/02/2022,(83880) Building & Engineering,(id:42631) Guys Site services,DRAX (UK) LTD,id:14816549 ,7985.00
Department of Health,Guys and St Thomas NHS Foundation Trust,18/02/2022,(83880) Building & Engineering,(id:42631) Guys Site services,EQUIAX LTD,id:14795620    ,2752.00
Department of Health,Guys and St Thomas NHS Foundation Trust,18/02/2022,(83880) Building & Engineering,(id:42631) Guys Site services,DAIKIN APPLIED SERVICE,id:14546534  ,4232.10
Department of Health,Guys and St Thomas NHS Foundation Trust,18/02/2022,(83880) Building & Engineering,(id:42631) Guys Site services,BRINSON STANILAND PARTNERSHIP,id:14924215,1624.00
Department of Health,Guys and St Thomas NHS Foundation Trust,25/02/2022,(83880) Building & Engineering,(id:42632) Guys Site services,STEVE MORGAN,id:14964555  ,    12400.00
Department of Health,Guys and St Thomas NHS Foundation Trust,04/02/2022,(55652) Maintenance Staff,(id:42632) Guys Site services,MICHAEL PAGE INTERNATIONAL RECRUITMENT LTD,id:14862715  ,1359.46
Department of Health,Guys and St Thomas NHS Foundation Trust,18/02/2022,(55652) Maintenance Staff,(id:42632) Guys Site services,COMMUNITY RESOURCING LTD (T/A RESOURCING GROUP),id:14932177  ,1243.80
Department of Health,Guys and St Thomas NHS Foundation Trust,25/02/2022,(83420) Office Equipment,(id:42632) Guys Site services,OT GROUP LTD,id:14959243   ,-784.80
Department of Health,Guys and St Thomas NHS Foundation Trust,11/02/2022,(83500) Furniture & Fittings,(id:42632) Guys Site services,H C SLINGSBY PLC,id:14844816, 558.00
Department of Health,Guys and St Thomas NHS Foundation Trust,25/02/2022,(55632) Maintenance Staff,(id:42633) Guys Site services,MORGAN HUNT UK LTD,id:14972710 , 798.76
Department of Health,Guys and St Thomas NHS Foundation Trust,25/02/2022,(55632) Maintenance Staff,(id:42633) Guys Site services,MORGAN HUNT UK LTD,id:14972767 , 798.76
Department of Health,Guys and St Thomas NHS Foundation Trust,18/02/2022,(83880) Building & Engineering,(id:42634) Guys Site services,MAITLAND ENGINEERING LTD,id:14932189, 870.00
Department of Health,Guys and St Thomas NHS Foundation Trust,11/02/2022,(83400) Office Equipment,(id:42634) Guys Site services,INSTRUMENTS & GAUGES ELECTRONICS LT,id:14751034,2742.67
Department of Health,Guys and St Thomas NHS Foundation Trust,04/02/2022,(83880) Building & Engineering,(id:197407) Guys Site services,SCHNEIDER ELECTRIC,id:14863595, 843.33
Department of Health,Guys and St Thomas NHS Foundation Trust,04/02/2022,(83881) Building & Engineering,(id:197407) Guys Site services,DRAX (UK) LTD,id:14816638,1004.03
Department of Health,Guys and St Thomas NHS Foundation Trust,04/02/2022,(83881) Building & Engineering,(id:197407) Guys Site services,DRAX (UK) LTD,id:14816619,1274.08
Department of Health,Guys and St Thomas NHS Foundation Trust,04/02/2022,(83881) Building & Engineering,(id:197407) Guys Site services,TRANE UK LTD (FORMERLY INGERSOLL-RAND UK LTD),id:14828936   ,1672.50
Department of Health,Guys and St Thomas NHS Foundation Trust,04/02/2022,(83881) Building & Engineering,(id:197407) Guys Site services,FINNING UK LTD,id:14809954    ,2210.00
Department of Health,Guys and St Thomas NHS Foundation Trust,04/02/2022,(83881) Building & Engineering,(id:197407) Guys Site services,ROCK COMPLIANCE LTD,id:14769934    ,2305.80
Department of Health,Guys and St Thomas NHS Foundation Trust,04/02/2022,(83881) Building & Engineering,(id:197407) Guys Site services,DRAX (UK) LTD,id:14816634,7320.08
Department of Health,Guys and St Thomas NHS Foundation Trust,11/02/2022,(83881) Building & Engineering,(id:197407) Guys Site services,CFES LIMITED,id:14906034 ,1234.80
Department of Health,Guys and St Thomas NHS Foundation Trust,25/02/2022,(83400) Office Equipment,(id:1270419) Guys Site services,EDWARDES BROS (DULWICH) LTD,id:14944234 , 705.00
Department of Health,Guys and St Thomas NHS Foundation Trust,04/02/2022,(55042) Admin & Clerical,(id:42637) STH Site Services,MICHAEL PAGE INTERNATIONAL RECRUITMENT LTD,id:14862716    , 662.40
Department of Health,Guys and St Thomas NHS Foundation Trust,25/02/2022,(55642) Maintenance Staff,(id:42637) STH Site Services,MORGAN HUNT UK LTD,id:14972808  , 889.27
Department of Health,Guys and St Thomas NHS Foundation Trust,25/02/2022,(55642) Maintenance Staff,(id:42637) STH Site Services,MORGAN HUNT UK LTD,id:14969728  , 966.60
Department of Health,Guys and St Thomas NHS Foundation Trust,25/02/2022,(55642) Maintenance Staff,(id:42637) STH Site Services,MORGAN HUNT UK LTD,id:14969779  , 966.60
Department of Health,Guys and St Thomas NHS Foundation Trust,18/02/2022,(55642) Maintenance Staff,(id:42637) STH Site Services,MORGAN HUNT UK LTD,id:14936483  , 966.60
Department of Health,Guys and St Thomas NHS Foundation Trust,04/02/2022,(83880) Building & Engineering,(id:42638) STH Site Services,DRAX (UK) LTD,id:14791694  , 730.00
Department of Health,Guys and St Thomas NHS Foundation Trust,18/02/2022,(83880) Building & Engineering,(id:42638) STH Site Services,DUCTCLEAN UK LTD,id:14902874    , 922.00
Department of Health,Guys and St Thomas NHS Foundation Trust,25/02/2022,(83880) Building & Engineering,(id:42640) STH Site Services,MAITLAND ENGINEERING LTD,id:14943375 , 437.00
Department of Health,Guys and St Thomas NHS Foundation Trust,04/02/2022,(83880) Building & Engineering,(id:42640) STH Site Services,FIRST INTERVENTION TEAM LTD,id:14799595   ,5980.00
Department of Health,Guys and St Thomas NHS Foundation Trust,25/02/2022,(82600) Uniforms & Clothing,(id:42642) STH Site Services,1ST BIOTECH LIMITED,id:14950434    , 899.40
Department of Health,Guys and St Thomas NHS Foundation Trust,18/02/2022,(83400) Office Equipment,(id:42642) STH Site Services,RICHMONDS OF LONDON LTD,id:14897334   , 510.60
Department of Health,Guys and St Thomas NHS Foundation Trust,18/02/2022,(83880) Building & Engineering,(id:42642) STH Site Services,G K WOOD & SON LTD (T/A FULBOURN MEDICAL),id:14891654    ,9505.00
Department of Health,Guys and St Thomas NHS Foundation Trust,04/02/2022,(83881) Building & Engineering,(id:197406) STH Site Services,TESGL LTD,id:14806654,2029.83
Department of Health,Guys and St Thomas NHS Foundation Trust,11/02/2022,(83880) Building & Engineering,(id:197406) STH Site Services,SOCOTEC UK LTD,id:14844398,1475.00
Department of Health,Guys and St Thomas NHS Foundation Trust,04/02/2022,(83400) Office Equipment,(id:1271419) STH Site Services,PIPES & VALVES LTD,id:14861917 ,2581.33
Department of Health,Guys and St Thomas NHS Foundation Trust,25/02/2022,(83400) Office Equipment,(id:42585) STH Site Services,1ST BIOTECH LIMITED,id:14722836  ,1781.64
Department of Health,Guys and St Thomas NHS Foundation Trust,11/02/2022,(83400) Office Equipment,(id:4773419) STH Site Services,CITY & KENT CLEANING LTD,id:14902454,4622.75
Department of Health,Guys and St Thomas NHS Foundation Trust,18/02/2022,(83880) Building & Engineering,(id:4625420) STH Site Services,GRANTLEIGH LTD,id:14919654    ,6000.00
Department of Health,Guys and St Thomas NHS Foundation Trust,25/02/2022,(83880) Building & Engineering,(id:42664) STH Site Services,WPG REFURBISHMENTS LTD CIS6,id:14943174   , 660.00
Department of Health,Guys and St Thomas NHS Foundation Trust,25/02/2022,(83880) Building & Engineering,(id:42664) STH Site Services,WPG REFURBISHMENTS LTD CIS6,id:14891215   ,1580.00
Department of Health,Guys and St Thomas NHS Foundation Trust,25/02/2022,(83880) Building & Engineering,(id:42664) STH Site Services,GRANTLEIGH LTD,id:14910201 ,1478.00
Department of Health,Guys and St Thomas NHS Foundation Trust,25/02/2022,(83880) Building & Engineering,(id:42664) STH Site Services,GRANTLEIGH LTD,id:14910214 ,2735.00
Department of Health,Guys and St Thomas NHS Foundation Trust,25/02/2022,(83880) Building & Engineering,(id:42664) STH Site Services,GRANTLEIGH LTD,id:14929977 ,2990.00
Department of Health,Guys and St Thomas NHS Foundation Trust,11/02/2022,(83400) Office Equipment,(id:4625419) STH Site Services,CITY & KENT CLEANING LTD,id:14903754,1081.50
Department of Health,Guys and St Thomas NHS Foundation Trust,04/02/2022,(83400) Office Equipment,(id:42548) STH Site Services,CITY & KENT CLEANING LTD,id:14814011  ,2335.80
Department of Health,Guys and St Thomas NHS Foundation Trust,11/02/2022,(83400) Office Equipment,(id:42548) STH Site Services,CITY & KENT CLEANING LTD,id:14902625  , 696.60
Department of Health,Guys and St Thomas NHS Foundation Trust,18/02/2022,(83400) Office Equipment,(id:42548) STH Site Services,NHS SUPPLY CHAIN (MAIDSTONE),id:14850234   , 257.76
Department of Health,Guys and St Thomas NHS Foundation Trust,11/02/2022,(83360) Premises Services,(id:42548) STH Site Services,CITY & KENT CLEANING LTD,id:14902314 ,   -14916.61
Department of Health,Guys and St Thomas NHS Foundation Trust,11/02/2022,(81200) Medical Surgical Supplies & Equipment,(id:2195420) Design & Development,ARTINSITE LTD,id:14871694  ,    11400.00
Department of Health,Guys and St Thomas NHS Foundation Trust,11/02/2022,(81200) Medical Surgical Supplies & Equipment,(id:42676) Design & Development,ARTINSITE LTD,id:14871714    , 500.00
Department of Health,Guys and St Thomas NHS Foundation Trust,25/02/2022,(89440) Research and Development,(id:42827) Chief Nurse,CIVICA UK LTD,id:14901734 ,4964.46
Department of Health,Guys and St Thomas NHS Foundation Trust,11/02/2022,(89440) Research and Development,(id:42827) Chief Nurse,CIVICA UK LTD,id:14812594 ,4909.76
Department of Health,Guys and St Thomas NHS Foundation Trust,25/02/2022,(84600) Establishment,(id:212405) Chief Nurse,THE WHITEHALL AND INDUSTRY GROUP,id:14961055  ,2646.00
Department of Health,Guys and St Thomas NHS Foundation Trust,25/02/2022,(81230) Medical Surgical Supplies & Equipment,(id:4080419) Finance Director,COOK UK LTD,id:14815868   ,1604.88
Department of Health,Guys and St Thomas NHS Foundation Trust,25/02/2022,(81230) Medical Surgical Supplies & Equipment,(id:4080419) Finance Director,BOSTON SCIENTIFIC LTD,id:14895868   , 192.00
Department of Health,Guys and St Thomas NHS Foundation Trust,25/02/2022,(81100) Dressings,(id:4080419) Finance Director,T J SMITH & NEPHEW LTD,id:14799489, 698.40
Department of Health,Guys and St Thomas NHS Foundation Trust,11/02/2022,(81100) Dressings,(id:4080419) Finance Director,KIMAL PLC,id:14893834   ,    14633.08
Department of Health,Guys and St Thomas NHS Foundation Trust,11/02/2022,(81100) Dressings,(id:4080419) Finance Director,ROCIALLE MEDICAL LTD,id:14815654  , 670.78
Department of Health,Guys and St Thomas NHS Foundation Trust,18/02/2022,(81100) Dressings,(id:4080419) Finance Director,3M UNITED KINGDOM PLC,id:14796540 ,  80.40
Department of Health,Guys and St Thomas NHS Foundation Trust,18/02/2022,(81100) Dressings,(id:4080419) Finance Director,JOHNSON & JOHNSON MEDICAL LTD,id:14796480   ,9717.82
Department of Health,Guys and St Thomas NHS Foundation Trust,25/02/2022,(81200) Medical Surgical Supplies & Equipment,(id:4080419) Finance Director,INTERSURGICAL LTD,id:14898354  , 675.24
Department of Health,Guys and St Thomas NHS Foundation Trust,25/02/2022,(81200) Medical Surgical Supplies & Equipment,(id:4080419) Finance Director,MEDISTOCK SOLUTIONS LTD,id:14967165 ,8074.51
Department of Health,Guys and St Thomas NHS Foundation Trust,25/02/2022,(81200) Medical Surgical Supplies & Equipment,(id:4080419) Finance Director,EDWARDS LIFESCIENCES LTD,id:14972918, 552.96
Department of Health,Guys and St Thomas NHS Foundation Trust,04/02/2022,(81200) Medical Surgical Supplies & Equipment,(id:4080419) Finance Director,COOK UK LTD,id:14860514   ,    37879.80
Department of Health,Guys and St Thomas NHS Foundation Trust,04/02/2022,(81200) Medical Surgical Supplies & Equipment,(id:4080419) Finance Director,COOK UK LTD,id:14857115   ,2622.72
Department of Health,Guys and St Thomas NHS Foundation Trust,04/02/2022,(81200) Medical Surgical Supplies & Equipment,(id:4080419) Finance Director,GBUK HEALTHCARE,id:14843274    ,1144.00
Department of Health,Guys and St Thomas NHS Foundation Trust,04/02/2022,(81200) Medical Surgical Supplies & Equipment,(id:4080419) Finance Director,COOK UK LTD,id:14748120   ,1152.00
Department of Health,Guys and St Thomas NHS Foundation Trust,04/02/2022,(81200) Medical Surgical Supplies & Equipment,(id:4080419) Finance Director,BOSTON SCIENTIFIC LTD,id:14705705   ,1975.80
Department of Health,Guys and St Thomas NHS Foundation Trust,04/02/2022,(81200) Medical Surgical Supplies & Equipment,(id:4080419) Finance Director,BOSTON SCIENTIFIC LTD,id:14796428   ,1554.60
Department of Health,Guys and St Thomas NHS Foundation Trust,04/02/2022,(81200) Medical Surgical Supplies & Equipment,(id:4080419) Finance Director,FANNIN UK LTD,id:14830963 ,1146.00
Department of Health,Guys and St Thomas NHS Foundation Trust,04/02/2022,(81200) Medical Surgical Supplies & Equipment,(id:4080419) Finance Director,UNISURGE INTERNATIONAL LTD,id:14845161   , 855.60
Department of Health,Guys and St Thomas NHS Foundation Trust,04/02/2022,(81200) Medical Surgical Supplies & Equipment,(id:4080419) Finance Director,MEDLINE INDUSTRIES LTD,id:14849282  , 995.33
Department of Health,Guys and St Thomas NHS Foundation Trust,11/02/2022,(81200) Medical Surgical Supplies & Equipment,(id:4080419) Finance Director,FANNIN UK LTD,id:14844134 ,1416.00
Department of Health,Guys and St Thomas NHS Foundation Trust,11/02/2022,(81200) Medical Surgical Supplies & Equipment,(id:4080419) Finance Director,GREINER BIO-ONE LTD,id:14844358,2063.77
Department of Health,Guys and St Thomas NHS Foundation Trust,11/02/2022,(81200) Medical Surgical Supplies & Equipment,(id:4080419) Finance Director,MOLNLYCKE HEALTH CARE LTD,id:14854574    ,3297.47
Department of Health,Guys and St Thomas NHS Foundation Trust,11/02/2022,(81200) Medical Surgical Supplies & Equipment,(id:4080419) Finance Director,COOK UK LTD,id:14786484   , 912.00
Department of Health,Guys and St Thomas NHS Foundation Trust,18/02/2022,(81200) Medical Surgical Supplies & Equipment,(id:4080419) Finance Director,MOLNLYCKE HEALTH CARE LTD,id:14931273    ,1461.28
Department of Health,Guys and St Thomas NHS Foundation Trust,18/02/2022,(81200) Medical Surgical Supplies & Equipment,(id:4080419) Finance Director,3M UNITED KINGDOM PLC,id:14796512   , 949.41
Department of Health,Guys and St Thomas NHS Foundation Trust,25/02/2022,(81235) Medical Surgical Supplies & Equipment,(id:4080419) Finance Director,BOSTON SCIENTIFIC LTD,id:14895868   , 576.00
Department of Health,Guys and St Thomas NHS Foundation Trust,25/02/2022,(55422) Ancillary Staff,(id:177407) Finance Director,REED EMPLOYMENT PLC,id:14931745   , 683.48
Department of Health,Guys and St Thomas NHS Foundation Trust,04/02/2022,(55422) Ancillary Staff,(id:177407) Finance Director,REED EMPLOYMENT PLC,id:14830300   , 584.30
Department of Health,Guys and St Thomas NHS Foundation Trust,04/02/2022,(55422) Ancillary Staff,(id:177407) Finance Director,REED EMPLOYMENT PLC,id:14830356   , 705.17
Department of Health,Guys and St Thomas NHS Foundation Trust,11/02/2022,(55432) Ancillary Staff,(id:177407) Finance Director,REED EMPLOYMENT PLC,id:14909793   , 697.59
Department of Health,Guys and St Thomas NHS Foundation Trust,25/02/2022,(55632) Maintenance Staff,(id:177407) Finance Director,REED EMPLOYMENT PLC,id:14972829 , 689.55
Department of Health,Guys and St Thomas NHS Foundation Trust,18/02/2022,(84657) Establishment,(id:4269419) Finance Director,CEVA LOGISTICS LIMITED,id:14849174 ,   327129.00
Department of Health,Guys and St Thomas NHS Foundation Trust,25/02/2022,(84600) Establishment,(id:847442) Finance Director,CLARITY TRAVEL MANAGEMENT,id:14843478    ,  74.60
Department of Health,Guys and St Thomas NHS Foundation Trust,25/02/2022,(89270) Establishment,(id:847441) Finance Director,LONDON NORTH WEST HEALTHCARE NHS TRUST,id:14815789 ,6506.09
Department of Health,Guys and St Thomas NHS Foundation Trust,04/02/2022,(89120) Other - Legal fees,(id:847436) Finance Director,BIRKETTS LLP,id:14797930  ,1450.00
Department of Health,Guys and St Thomas NHS Foundation Trust,25/02/2022,(83400) Office Equipment,(id:847436) Finance Director,CROWN COMMERCIAL SERVICE,id:14891546  ,5142.90
Department of Health,Guys and St Thomas NHS Foundation Trust,11/02/2022,(83400) Office Equipment,(id:847436) Finance Director,CROWN COMMERCIAL SERVICE,id:14815777  ,  -139156.31
